Body Name,Body,Service Label    ,Service Code,Service Division Label,Service Division Code,Organisational Unit,Expenditure Category,Expenditure Code,CIPFA Detailed Expenditure Type,CIPFA Detailed Expenditure Code,Date,Transaction Number,  Net Amount  ,Supplier Name, Payment_Amount ,Payment Number
Liberty Leisure Limited,http://statistics.data.gov.uk/id/local-authority/37UD,Leisure,LEIS,Leisure Management,LMAN,Liberty Leisure Limited / Chilwell Olympia,Repairs & Maintenance,1000,Central Pot,Central,01/04/2022,V006744,125,Chilwell School,4644.62,BAC004449
Liberty Leisure Limited,http://statistics.data.gov.uk/id/local-authority/37UD,Leisure,LEIS,Leisure Management,LMAN,Liberty Leisure Limited / Chilwell Olympia,Repairs & Maintenance,1000,Central Pot,Central,01/04/2022,V006744,651,Chilwell School,4644.62,BAC004449
Liberty Leisure Limited,http://statistics.data.gov.uk/id/local-authority/37UD,Leisure,LEIS,Leisure Management,LMAN,Liberty Leisure Limited / Chilwell Olympia,Electricity,1310,Utilities,Utility,01/04/2022,V006744,2636.48,Chilwell School,4644.62,BAC004449
Liberty Leisure Limited,http://statistics.data.gov.uk/id/local-authority/37UD,Leisure,LEIS,Leisure Management,LMAN,Liberty Leisure Limited / Chilwell Olympia,Solid Fuel,1330,Utilities,Utility,01/04/2022,V006744,1232.14,Chilwell School,4644.62,BAC004449
Liberty Leisure Limited,http://statistics.data.gov.uk/id/local-authority/37UD,Leisure,LEIS,Leisure Management,LMAN,Liberty Leisure Limited / Chilwell Olympia,Repairs & Maintenance,1000,Central Pot,Central,01/04/2022,V006744,125,Chilwell School,4644.62,BAC004449
Liberty Leisure Limited,http://statistics.data.gov.uk/id/local-authority/37UD,Leisure,LEIS,Leisure Management,LMAN,Liberty Leisure Limited / Chilwell Olympia,Repairs & Maintenance,1000,Central Pot,Central,01/04/2022,V006744,651,Chilwell School,4644.62,BAC004449
Liberty Leisure Limited,http://statistics.data.gov.uk/id/local-authority/37UD,Leisure,LEIS,Leisure Management,LMAN,Liberty Leisure Limited / Chilwell Olympia,Electricity,1310,Utilities,Utility,01/04/2022,V006744,2636.48,Chilwell School,4644.62,BAC004449
Liberty Leisure Limited,http://statistics.data.gov.uk/id/local-authority/37UD,Leisure,LEIS,Leisure Management,LMAN,Liberty Leisure Limited / Chilwell Olympia,Solid Fuel,1330,Utilities,Utility,01/04/2022,V006744,1232.14,Chilwell School,4644.62,BAC004449
Liberty Leisure Limited,http://statistics.data.gov.uk/id/local-authority/37UD,Leisure,LEIS,Leisure Management,LMAN,Liberty Leisure Limited / Kimberley Leisure Centre,Uniforms,3221,Other Supplies & Services,OtherSS,01/04/2022,V006749,2057.12,Corporate Trends,6171.36,BAC004450
Liberty Leisure Limited,http://statistics.data.gov.uk/id/local-authority/37UD,Leisure,LEIS,Leisure Management,LMAN,Liberty Leisure Limited / Kimberley Leisure Centre,Uniforms,3221,Other Supplies & Services,OtherSS,01/04/2022,V006749,1028.56,Corporate Trends,6171.36,BAC004450
Liberty Leisure Limited,http://statistics.data.gov.uk/id/local-authority/37UD,Leisure,LEIS,Leisure Management,LMAN,Liberty Leisure Limited / Kimberley Leisure Centre,Uniforms,3221,Other Supplies & Services,OtherSS,01/04/2022,V006749,2057.12,Corporate Trends,6171.36,BAC004450
Liberty Leisure Limited,http://statistics.data.gov.uk/id/local-authority/37UD,Leisure,LEIS,Leisure Management,LMAN,Liberty Leisure Limited / Kimberley Leisure Centre,Uniforms,3221,Other Supplies & Services,OtherSS,01/04/2022,V006749,2057.12,Corporate Trends,6171.36,BAC004450
Liberty Leisure Limited,http://statistics.data.gov.uk/id/local-authority/37UD,Leisure,LEIS,Leisure Management,LMAN,Liberty Leisure Limited / Kimberley Leisure Centre,Uniforms,3221,Other Supplies & Services,OtherSS,01/04/2022,V006749,1028.56,Corporate Trends,6171.36,BAC004450
Liberty Leisure Limited,http://statistics.data.gov.uk/id/local-authority/37UD,Leisure,LEIS,Leisure Management,LMAN,Liberty Leisure Limited / Kimberley Leisure Centre,Uniforms,3221,Other Supplies & Services,OtherSS,01/04/2022,V006749,2057.12,Corporate Trends,6171.36,BAC004450
Liberty Leisure Limited,http://statistics.data.gov.uk/id/local-authority/37UD,Leisure,LEIS,Leisure Management,LMAN,Liberty Leisure Limited / Bramcote Leisure Centre,Repairs & Maintenance,1000,Central Pot,Central,01/04/2022,V006760,575,DC Gas Services,3144,BAC004454
Liberty Leisure Limited,http://statistics.data.gov.uk/id/local-authority/37UD,Leisure,LEIS,Leisure Management,LMAN,Liberty Leisure Limited / Bramcote Leisure Centre,Repairs & Maintenance,1000,Central Pot,Central,01/04/2022,V006761,2045,DC Gas Services,3144,BAC004454
Liberty Leisure Limited,http://statistics.data.gov.uk/id/local-authority/37UD,Leisure,LEIS,Leisure Management,LMAN,Liberty Leisure Limited / Bramcote Leisure Centre,Repairs & Maintenance,1000,Central Pot,Central,01/04/2022,V006760,575,DC Gas Services,3144,BAC004454
Liberty Leisure Limited,http://statistics.data.gov.uk/id/local-authority/37UD,Leisure,LEIS,Leisure Management,LMAN,Liberty Leisure Limited / Bramcote Leisure Centre,Repairs & Maintenance,1000,Central Pot,Central,01/04/2022,V006761,2045,DC Gas Services,3144,BAC004454
Liberty Leisure Limited,http://statistics.data.gov.uk/id/local-authority/37UD,Leisure,LEIS,Leisure Management,LMAN,Liberty Leisure Limited / Bramcote Leisure Centre,Repairs & Maintenance,1000,Central Pot,Central,01/04/2022,V006753,950,Deltron Lifts Limited,1680,BAC004451
Liberty Leisure Limited,http://statistics.data.gov.uk/id/local-authority/37UD,Leisure,LEIS,Leisure Management,LMAN,Liberty Leisure Limited / Bramcote Leisure Centre,Repairs & Maintenance,1000,Central Pot,Central,01/04/2022,V006753,450,Deltron Lifts Limited,1680,BAC004451
Liberty Leisure Limited,http://statistics.data.gov.uk/id/local-authority/37UD,Leisure,LEIS,Leisure Management,LMAN,Liberty Leisure Limited / Bramcote Leisure Centre,Repairs & Maintenance,1000,Central Pot,Central,01/04/2022,V006753,950,Deltron Lifts Limited,1680,BAC004451
Liberty Leisure Limited,http://statistics.data.gov.uk/id/local-authority/37UD,Leisure,LEIS,Leisure Management,LMAN,Liberty Leisure Limited / Bramcote Leisure Centre,Repairs & Maintenance,1000,Central Pot,Central,01/04/2022,V006753,450,Deltron Lifts Limited,1680,BAC004451
Liberty Leisure Limited,http://statistics.data.gov.uk/id/local-authority/37UD,Leisure,LEIS,Leisure Management,LMAN,Liberty Leisure Limited / Bramcote Leisure Centre,Repairs & Maintenance,1000,Central Pot,Central,01/04/2022,V006763,1850,Fast Graphics,3079.68,BAC004455
Liberty Leisure Limited,http://statistics.data.gov.uk/id/local-authority/37UD,Leisure,LEIS,Leisure Management,LMAN,Liberty Leisure Limited / Chilwell Olympia,Advertising,3412,Advertising,Advert,01/04/2022,V006764,716.4,Fast Graphics,3079.68,BAC004455
Liberty Leisure Limited,http://statistics.data.gov.uk/id/local-authority/37UD,Leisure,LEIS,Leisure Management,LMAN,Liberty Leisure Limited / Bramcote Leisure Centre,Repairs & Maintenance,1000,Central Pot,Central,01/04/2022,V006763,1850,Fast Graphics,3079.68,BAC004455
Liberty Leisure Limited,http://statistics.data.gov.uk/id/local-authority/37UD,Leisure,LEIS,Leisure Management,LMAN,Liberty Leisure Limited / Chilwell Olympia,Advertising,3412,Advertising,Advert,01/04/2022,V006764,716.4,Fast Graphics,3079.68,BAC004455
Liberty Leisure Limited,http://statistics.data.gov.uk/id/local-authority/37UD,Leisure,LEIS,Leisure Management,LMAN,Liberty Leisure Limited / Bramcote Leisure Centre,Chemicals,3152,Other Supplies & Services,OtherSS,01/04/2022,V006754,748,Gaffey Technical Services,897.6,BAC004443
Liberty Leisure Limited,http://statistics.data.gov.uk/id/local-authority/37UD,Leisure,LEIS,Leisure Management,LMAN,Liberty Leisure Limited / Bramcote Leisure Centre,Chemicals,3152,Other Supplies & Services,OtherSS,01/04/2022,V006754,748,Gaffey Technical Services,897.6,BAC004443
Liberty Leisure Limited,http://statistics.data.gov.uk/id/local-authority/37UD,Leisure,LEIS,Leisure Management,LMAN,Liberty Leisure Limited / Bramcote Leisure Centre,Repairs & Maintenance,1000,Central Pot,Central,01/04/2022,V006759,173.61,J P Carty Limited,2139.74,BAC004442
Liberty Leisure Limited,http://statistics.data.gov.uk/id/local-authority/37UD,Leisure,LEIS,Leisure Management,LMAN,Liberty Leisure Limited / Bramcote Leisure Centre,Repairs & Maintenance,1000,Central Pot,Central,01/04/2022,V006758,197.24,J P Carty Limited,2139.74,BAC004442
Liberty Leisure Limited,http://statistics.data.gov.uk/id/local-authority/37UD,Leisure,LEIS,Leisure Management,LMAN,Liberty Leisure Limited / Bramcote Leisure Centre,Repairs & Maintenance,1000,Central Pot,Central,01/04/2022,V006757,1412.27,J P Carty Limited,2139.74,BAC004442
Liberty Leisure Limited,http://statistics.data.gov.uk/id/local-authority/37UD,Leisure,LEIS,Leisure Management,LMAN,Liberty Leisure Limited / Bramcote Leisure Centre,Repairs & Maintenance,1000,Central Pot,Central,01/04/2022,V006759,173.61,J P Carty Limited,2139.74,BAC004442
Liberty Leisure Limited,http://statistics.data.gov.uk/id/local-authority/37UD,Leisure,LEIS,Leisure Management,LMAN,Liberty Leisure Limited / Bramcote Leisure Centre,Repairs & Maintenance,1000,Central Pot,Central,01/04/2022,V006758,197.24,J P Carty Limited,2139.74,BAC004442
Liberty Leisure Limited,http://statistics.data.gov.uk/id/local-authority/37UD,Leisure,LEIS,Leisure Management,LMAN,Liberty Leisure Limited / Bramcote Leisure Centre,Repairs & Maintenance,1000,Central Pot,Central,01/04/2022,V006757,1412.27,J P Carty Limited,2139.74,BAC004442
Liberty Leisure Limited,http://statistics.data.gov.uk/id/local-authority/37UD,Leisure,LEIS,Leisure Management,LMAN,Liberty Leisure Limited / Bramcote Leisure Centre,Sports Equipment,3002,Equipment,Equip,01/04/2022,V006743,15.8,J P Lennard Limited,503.16,BAC004444
Liberty Leisure Limited,http://statistics.data.gov.uk/id/local-authority/37UD,Leisure,LEIS,Leisure Management,LMAN,Liberty Leisure Limited / Bramcote Leisure Centre,Sports Equipment,3002,Equipment,Equip,01/04/2022,V006746,15.8,J P Lennard Limited,503.16,BAC004444
Liberty Leisure Limited,http://statistics.data.gov.uk/id/local-authority/37UD,Leisure,LEIS,Leisure Management,LMAN,Liberty Leisure Limited / Bramcote Leisure Centre,Sports Equipment,3002,Equipment,Equip,01/04/2022,V006745,24.16,J P Lennard Limited,503.16,BAC004444
Liberty Leisure Limited,http://statistics.data.gov.uk/id/local-authority/37UD,Leisure,LEIS,Leisure Management,LMAN,Liberty Leisure Limited / Bramcote Leisure Centre,Sports Equipment,3002,Equipment,Equip,01/04/2022,V006745,15.8,J P Lennard Limited,503.16,BAC004444
Liberty Leisure Limited,http://statistics.data.gov.uk/id/local-authority/37UD,Leisure,LEIS,Leisure Management,LMAN,Liberty Leisure Limited / Bramcote Leisure Centre,Sports Equipment,3002,Equipment,Equip,01/04/2022,V006746,6.7,J P Lennard Limited,503.16,BAC004444
Liberty Leisure Limited,http://statistics.data.gov.uk/id/local-authority/37UD,Leisure,LEIS,Leisure Management,LMAN,Liberty Leisure Limited / Bramcote Leisure Centre,Sports Equipment,3002,Equipment,Equip,01/04/2022,V006745,45.8,J P Lennard Limited,503.16,BAC004444
Liberty Leisure Limited,http://statistics.data.gov.uk/id/local-authority/37UD,Leisure,LEIS,Leisure Management,LMAN,Liberty Leisure Limited / Bramcote Leisure Centre,Sports Equipment,3002,Equipment,Equip,01/04/2022,V006745,14.9,J P Lennard Limited,503.16,BAC004444
Liberty Leisure Limited,http://statistics.data.gov.uk/id/local-authority/37UD,Leisure,LEIS,Leisure Management,LMAN,Liberty Leisure Limited / Bramcote Leisure Centre,Sports Equipment,3002,Equipment,Equip,01/04/2022,V006743,24.3,J P Lennard Limited,503.16,BAC004444
Liberty Leisure Limited,http://statistics.data.gov.uk/id/local-authority/37UD,Leisure,LEIS,Leisure Management,LMAN,Liberty Leisure Limited / Bramcote Leisure Centre,Sports Equipment,3002,Equipment,Equip,01/04/2022,V006745,14.64,J P Lennard Limited,503.16,BAC004444
Liberty Leisure Limited,http://statistics.data.gov.uk/id/local-authority/37UD,Leisure,LEIS,Leisure Management,LMAN,Liberty Leisure Limited / Bramcote Leisure Centre,Sports Equipment,3002,Equipment,Equip,01/04/2022,V006743,32,J P Lennard Limited,503.16,BAC004444
Liberty Leisure Limited,http://statistics.data.gov.uk/id/local-authority/37UD,Leisure,LEIS,Leisure Management,LMAN,Liberty Leisure Limited / Bramcote Leisure Centre,Sports Equipment,3002,Equipment,Equip,01/04/2022,V006746,6.7,J P Lennard Limited,503.16,BAC004444
Liberty Leisure Limited,http://statistics.data.gov.uk/id/local-authority/37UD,Leisure,LEIS,Leisure Management,LMAN,Liberty Leisure Limited / Bramcote Leisure Centre,Sports Equipment,3002,Equipment,Equip,01/04/2022,V006746,6.7,J P Lennard Limited,503.16,BAC004444
Liberty Leisure Limited,http://statistics.data.gov.uk/id/local-authority/37UD,Leisure,LEIS,Leisure Management,LMAN,Liberty Leisure Limited / Bramcote Leisure Centre,Sports Equipment,3002,Equipment,Equip,01/04/2022,V006746,6.7,J P Lennard Limited,503.16,BAC004444
Liberty Leisure Limited,http://statistics.data.gov.uk/id/local-authority/37UD,Leisure,LEIS,Leisure Management,LMAN,Liberty Leisure Limited / Bramcote Leisure Centre,Sports Equipment,3002,Equipment,Equip,01/04/2022,V006743,11.84,J P Lennard Limited,503.16,BAC004444
Liberty Leisure Limited,http://statistics.data.gov.uk/id/local-authority/37UD,Leisure,LEIS,Leisure Management,LMAN,Liberty Leisure Limited / Bramcote Leisure Centre,Sports Equipment,3002,Equipment,Equip,01/04/2022,V006743,108.16,J P Lennard Limited,503.16,BAC004444
Liberty Leisure Limited,http://statistics.data.gov.uk/id/local-authority/37UD,Leisure,LEIS,Leisure Management,LMAN,Liberty Leisure Limited / Bramcote Leisure Centre,Sports Equipment,3002,Equipment,Equip,01/04/2022,V006746,6.7,J P Lennard Limited,503.16,BAC004444
Liberty Leisure Limited,http://statistics.data.gov.uk/id/local-authority/37UD,Leisure,LEIS,Leisure Management,LMAN,Liberty Leisure Limited / Bramcote Leisure Centre,Sports Equipment,3002,Equipment,Equip,01/04/2022,V006746,6.7,J P Lennard Limited,503.16,BAC004444
Liberty Leisure Limited,http://statistics.data.gov.uk/id/local-authority/37UD,Leisure,LEIS,Leisure Management,LMAN,Liberty Leisure Limited / Bramcote Leisure Centre,Sports Equipment,3002,Equipment,Equip,01/04/2022,V006743,35.8,J P Lennard Limited,503.16,BAC004444
Liberty Leisure Limited,http://statistics.data.gov.uk/id/local-authority/37UD,Leisure,LEIS,Leisure Management,LMAN,Liberty Leisure Limited / Bramcote Leisure Centre,Sports Equipment,3002,Equipment,Equip,01/04/2022,V006746,6.7,J P Lennard Limited,503.16,BAC004444
Liberty Leisure Limited,http://statistics.data.gov.uk/id/local-authority/37UD,Leisure,LEIS,Leisure Management,LMAN,Liberty Leisure Limited / Bramcote Leisure Centre,Sports Equipment,3002,Equipment,Equip,01/04/2022,V006746,6.7,J P Lennard Limited,503.16,BAC004444
Liberty Leisure Limited,http://statistics.data.gov.uk/id/local-authority/37UD,Leisure,LEIS,Leisure Management,LMAN,Liberty Leisure Limited / Bramcote Leisure Centre,Sports Equipment,3002,Equipment,Equip,01/04/2022,V006746,6.7,J P Lennard Limited,503.16,BAC004444
Liberty Leisure Limited,http://statistics.data.gov.uk/id/local-authority/37UD,Leisure,LEIS,Leisure Management,LMAN,Liberty Leisure Limited / Bramcote Leisure Centre,Sports Equipment,3002,Equipment,Equip,01/04/2022,V006743,15.8,J P Lennard Limited,503.16,BAC004444
Liberty Leisure Limited,http://statistics.data.gov.uk/id/local-authority/37UD,Leisure,LEIS,Leisure Management,LMAN,Liberty Leisure Limited / Bramcote Leisure Centre,Sports Equipment,3002,Equipment,Equip,01/04/2022,V006746,15.8,J P Lennard Limited,503.16,BAC004444
Liberty Leisure Limited,http://statistics.data.gov.uk/id/local-authority/37UD,Leisure,LEIS,Leisure Management,LMAN,Liberty Leisure Limited / Bramcote Leisure Centre,Sports Equipment,3002,Equipment,Equip,01/04/2022,V006745,24.16,J P Lennard Limited,503.16,BAC004444
Liberty Leisure Limited,http://statistics.data.gov.uk/id/local-authority/37UD,Leisure,LEIS,Leisure Management,LMAN,Liberty Leisure Limited / Bramcote Leisure Centre,Sports Equipment,3002,Equipment,Equip,01/04/2022,V006745,15.8,J P Lennard Limited,503.16,BAC004444
Liberty Leisure Limited,http://statistics.data.gov.uk/id/local-authority/37UD,Leisure,LEIS,Leisure Management,LMAN,Liberty Leisure Limited / Bramcote Leisure Centre,Sports Equipment,3002,Equipment,Equip,01/04/2022,V006746,6.7,J P Lennard Limited,503.16,BAC004444
Liberty Leisure Limited,http://statistics.data.gov.uk/id/local-authority/37UD,Leisure,LEIS,Leisure Management,LMAN,Liberty Leisure Limited / Bramcote Leisure Centre,Sports Equipment,3002,Equipment,Equip,01/04/2022,V006745,45.8,J P Lennard Limited,503.16,BAC004444
Liberty Leisure Limited,http://statistics.data.gov.uk/id/local-authority/37UD,Leisure,LEIS,Leisure Management,LMAN,Liberty Leisure Limited / Bramcote Leisure Centre,Sports Equipment,3002,Equipment,Equip,01/04/2022,V006745,14.9,J P Lennard Limited,503.16,BAC004444
Liberty Leisure Limited,http://statistics.data.gov.uk/id/local-authority/37UD,Leisure,LEIS,Leisure Management,LMAN,Liberty Leisure Limited / Bramcote Leisure Centre,Sports Equipment,3002,Equipment,Equip,01/04/2022,V006743,24.3,J P Lennard Limited,503.16,BAC004444
Liberty Leisure Limited,http://statistics.data.gov.uk/id/local-authority/37UD,Leisure,LEIS,Leisure Management,LMAN,Liberty Leisure Limited / Bramcote Leisure Centre,Sports Equipment,3002,Equipment,Equip,01/04/2022,V006745,14.64,J P Lennard Limited,503.16,BAC004444
Liberty Leisure Limited,http://statistics.data.gov.uk/id/local-authority/37UD,Leisure,LEIS,Leisure Management,LMAN,Liberty Leisure Limited / Bramcote Leisure Centre,Sports Equipment,3002,Equipment,Equip,01/04/2022,V006743,32,J P Lennard Limited,503.16,BAC004444
Liberty Leisure Limited,http://statistics.data.gov.uk/id/local-authority/37UD,Leisure,LEIS,Leisure Management,LMAN,Liberty Leisure Limited / Bramcote Leisure Centre,Sports Equipment,3002,Equipment,Equip,01/04/2022,V006746,6.7,J P Lennard Limited,503.16,BAC004444
Liberty Leisure Limited,http://statistics.data.gov.uk/id/local-authority/37UD,Leisure,LEIS,Leisure Management,LMAN,Liberty Leisure Limited / Bramcote Leisure Centre,Sports Equipment,3002,Equipment,Equip,01/04/2022,V006746,6.7,J P Lennard Limited,503.16,BAC004444
Liberty Leisure Limited,http://statistics.data.gov.uk/id/local-authority/37UD,Leisure,LEIS,Leisure Management,LMAN,Liberty Leisure Limited / Bramcote Leisure Centre,Sports Equipment,3002,Equipment,Equip,01/04/2022,V006746,6.7,J P Lennard Limited,503.16,BAC004444
Liberty Leisure Limited,http://statistics.data.gov.uk/id/local-authority/37UD,Leisure,LEIS,Leisure Management,LMAN,Liberty Leisure Limited / Bramcote Leisure Centre,Sports Equipment,3002,Equipment,Equip,01/04/2022,V006743,11.84,J P Lennard Limited,503.16,BAC004444
Liberty Leisure Limited,http://statistics.data.gov.uk/id/local-authority/37UD,Leisure,LEIS,Leisure Management,LMAN,Liberty Leisure Limited / Bramcote Leisure Centre,Sports Equipment,3002,Equipment,Equip,01/04/2022,V006743,108.16,J P Lennard Limited,503.16,BAC004444
Liberty Leisure Limited,http://statistics.data.gov.uk/id/local-authority/37UD,Leisure,LEIS,Leisure Management,LMAN,Liberty Leisure Limited / Bramcote Leisure Centre,Sports Equipment,3002,Equipment,Equip,01/04/2022,V006746,6.7,J P Lennard Limited,503.16,BAC004444
Liberty Leisure Limited,http://statistics.data.gov.uk/id/local-authority/37UD,Leisure,LEIS,Leisure Management,LMAN,Liberty Leisure Limited / Bramcote Leisure Centre,Sports Equipment,3002,Equipment,Equip,01/04/2022,V006746,6.7,J P Lennard Limited,503.16,BAC004444
Liberty Leisure Limited,http://statistics.data.gov.uk/id/local-authority/37UD,Leisure,LEIS,Leisure Management,LMAN,Liberty Leisure Limited / Bramcote Leisure Centre,Sports Equipment,3002,Equipment,Equip,01/04/2022,V006743,35.8,J P Lennard Limited,503.16,BAC004444
Liberty Leisure Limited,http://statistics.data.gov.uk/id/local-authority/37UD,Leisure,LEIS,Leisure Management,LMAN,Liberty Leisure Limited / Bramcote Leisure Centre,Sports Equipment,3002,Equipment,Equip,01/04/2022,V006746,6.7,J P Lennard Limited,503.16,BAC004444
Liberty Leisure Limited,http://statistics.data.gov.uk/id/local-authority/37UD,Leisure,LEIS,Leisure Management,LMAN,Liberty Leisure Limited / Bramcote Leisure Centre,Sports Equipment,3002,Equipment,Equip,01/04/2022,V006746,6.7,J P Lennard Limited,503.16,BAC004444
Liberty Leisure Limited,http://statistics.data.gov.uk/id/local-authority/37UD,Leisure,LEIS,Leisure Management,LMAN,Liberty Leisure Limited / Bramcote Leisure Centre,Sports Equipment,3002,Equipment,Equip,01/04/2022,V006746,6.7,J P Lennard Limited,503.16,BAC004444
Liberty Leisure Limited,http://statistics.data.gov.uk/id/local-authority/37UD,Leisure,LEIS,Leisure Management,LMAN,Liberty Leisure Limited / Bramcote Leisure Centre,Electrical Testing,1043,Central Pot,Central,01/04/2022,V006742,643.52,JIH Electrical Ltd,772.22,BAC004452
Liberty Leisure Limited,http://statistics.data.gov.uk/id/local-authority/37UD,Leisure,LEIS,Leisure Management,LMAN,Liberty Leisure Limited / Bramcote Leisure Centre,Electrical Testing,1043,Central Pot,Central,01/04/2022,V006742,643.52,JIH Electrical Ltd,772.22,BAC004452
Liberty Leisure Limited,http://statistics.data.gov.uk/id/local-authority/37UD,Leisure,LEIS,Leisure Management,LMAN,Liberty Leisure Limited / Bramcote Leisure Centre,Service Contracts,3056,Other Supplies & Services,OtherSS,01/04/2022,V006755,855.06,Kohler Mira Ltd,1026.07,BAC004453
Liberty Leisure Limited,http://statistics.data.gov.uk/id/local-authority/37UD,Leisure,LEIS,Leisure Management,LMAN,Liberty Leisure Limited / Bramcote Leisure Centre,Service Contracts,3056,Other Supplies & Services,OtherSS,01/04/2022,V006755,855.06,Kohler Mira Ltd,1026.07,BAC004453
Liberty Leisure Limited,http://statistics.data.gov.uk/id/local-authority/37UD,Leisure,LEIS,Leisure Management,LMAN,Liberty Leisure Limited / Bramcote Leisure Centre,Repairs & Maintenance,1000,Central Pot,Central,01/04/2022,V006762,720,M A Technical Services Ltd,3024,BAC004445
Liberty Leisure Limited,http://statistics.data.gov.uk/id/local-authority/37UD,Leisure,LEIS,Leisure Management,LMAN,Liberty Leisure Limited / Bramcote Leisure Centre,Repairs & Maintenance,1000,Central Pot,Central,01/04/2022,V006741,1800,M A Technical Services Ltd,3024,BAC004445
Liberty Leisure Limited,http://statistics.data.gov.uk/id/local-authority/37UD,Leisure,LEIS,Leisure Management,LMAN,Liberty Leisure Limited / Bramcote Leisure Centre,Repairs & Maintenance,1000,Central Pot,Central,01/04/2022,V006762,720,M A Technical Services Ltd,3024,BAC004445
Liberty Leisure Limited,http://statistics.data.gov.uk/id/local-authority/37UD,Leisure,LEIS,Leisure Management,LMAN,Liberty Leisure Limited / Bramcote Leisure Centre,Repairs & Maintenance,1000,Central Pot,Central,01/04/2022,V006741,1800,M A Technical Services Ltd,3024,BAC004445
Liberty Leisure Limited,http://statistics.data.gov.uk/id/local-authority/37UD,Leisure,LEIS,Leisure Management,LMAN,Liberty Leisure Limited / Kimberley Leisure Centre,Repairs & Maintenance,1000,Central Pot,Central,01/04/2022,V006750,378.87,NCC Supplies,1277.95,BAC004446
Liberty Leisure Limited,http://statistics.data.gov.uk/id/local-authority/37UD,Leisure,LEIS,Leisure Management,LMAN,Liberty Leisure Limited / Kimberley Leisure Centre,Cleaning Materials,1510,Other Prem,OthPrem,01/04/2022,V006756,377.51,NCC Supplies,1277.95,BAC004446
Liberty Leisure Limited,http://statistics.data.gov.uk/id/local-authority/37UD,Leisure,LEIS,Leisure Management,LMAN,Liberty Leisure Limited / Kimberley Leisure Centre,Cleaning Materials,1510,Other Prem,OthPrem,01/04/2022,V006756,308.58,NCC Supplies,1277.95,BAC004446
Liberty Leisure Limited,http://statistics.data.gov.uk/id/local-authority/37UD,Leisure,LEIS,Leisure Management,LMAN,Liberty Leisure Limited / Kimberley Leisure Centre,Repairs & Maintenance,1000,Central Pot,Central,01/04/2022,V006750,378.87,NCC Supplies,1277.95,BAC004446
Liberty Leisure Limited,http://statistics.data.gov.uk/id/local-authority/37UD,Leisure,LEIS,Leisure Management,LMAN,Liberty Leisure Limited / Kimberley Leisure Centre,Cleaning Materials,1510,Other Prem,OthPrem,01/04/2022,V006756,377.51,NCC Supplies,1277.95,BAC004446
Liberty Leisure Limited,http://statistics.data.gov.uk/id/local-authority/37UD,Leisure,LEIS,Leisure Management,LMAN,Liberty Leisure Limited / Kimberley Leisure Centre,Cleaning Materials,1510,Other Prem,OthPrem,01/04/2022,V006756,308.58,NCC Supplies,1277.95,BAC004446
Liberty Leisure Limited,http://statistics.data.gov.uk/id/local-authority/37UD,Leisure,LEIS,Leisure Management,LMAN,Liberty Leisure Limited / Bramcote Leisure Centre,Repairs & Maintenance,1000,Central Pot,Central,01/04/2022,V006752,1000,Pumptec - Pump and Valve Repairs,1200,BAC004448
Liberty Leisure Limited,http://statistics.data.gov.uk/id/local-authority/37UD,Leisure,LEIS,Leisure Management,LMAN,Liberty Leisure Limited / Bramcote Leisure Centre,Repairs & Maintenance,1000,Central Pot,Central,01/04/2022,V006752,1000,Pumptec - Pump and Valve Repairs,1200,BAC004448
Liberty Leisure Limited,http://statistics.data.gov.uk/id/local-authority/37UD,Leisure,LEIS,Leisure Management,LMAN,Liberty Leisure Limited / Bramcote Leisure Centre,Sports Equipment,3002,Equipment,Equip,01/04/2022,V006747,15,Technogym UK Ltd,496.96,BAC004447
Liberty Leisure Limited,http://statistics.data.gov.uk/id/local-authority/37UD,Leisure,LEIS,Leisure Management,LMAN,Liberty Leisure Limited / Bramcote Leisure Centre,Sports Equipment,3002,Equipment,Equip,01/04/2022,V006748,15,Technogym UK Ltd,496.96,BAC004447
Liberty Leisure Limited,http://statistics.data.gov.uk/id/local-authority/37UD,Leisure,LEIS,Leisure Management,LMAN,Liberty Leisure Limited / Bramcote Leisure Centre,Sports Equipment,3002,Equipment,Equip,01/04/2022,V006748,96.79,Technogym UK Ltd,496.96,BAC004447
Liberty Leisure Limited,http://statistics.data.gov.uk/id/local-authority/37UD,Leisure,LEIS,Leisure Management,LMAN,Liberty Leisure Limited / Bramcote Leisure Centre,Sports Equipment,3002,Equipment,Equip,01/04/2022,V006747,287.34,Technogym UK Ltd,496.96,BAC004447
Liberty Leisure Limited,http://statistics.data.gov.uk/id/local-authority/37UD,Leisure,LEIS,Leisure Management,LMAN,Liberty Leisure Limited / Bramcote Leisure Centre,Sports Equipment,3002,Equipment,Equip,01/04/2022,V006747,15,Technogym UK Ltd,496.96,BAC004447
Liberty Leisure Limited,http://statistics.data.gov.uk/id/local-authority/37UD,Leisure,LEIS,Leisure Management,LMAN,Liberty Leisure Limited / Bramcote Leisure Centre,Sports Equipment,3002,Equipment,Equip,01/04/2022,V006748,15,Technogym UK Ltd,496.96,BAC004447
Liberty Leisure Limited,http://statistics.data.gov.uk/id/local-authority/37UD,Leisure,LEIS,Leisure Management,LMAN,Liberty Leisure Limited / Bramcote Leisure Centre,Sports Equipment,3002,Equipment,Equip,01/04/2022,V006748,96.79,Technogym UK Ltd,496.96,BAC004447
Liberty Leisure Limited,http://statistics.data.gov.uk/id/local-authority/37UD,Leisure,LEIS,Leisure Management,LMAN,Liberty Leisure Limited / Bramcote Leisure Centre,Sports Equipment,3002,Equipment,Equip,01/04/2022,V006747,287.34,Technogym UK Ltd,496.96,BAC004447
Liberty Leisure Limited,http://statistics.data.gov.uk/id/local-authority/37UD,Leisure,LEIS,Leisure Management,LMAN,Liberty Leisure Limited / Kimberley Leisure Centre,Course & Examination Fees,720,Indirect Employee Exp Oncosts,Oncosts,08/04/2022,V006777,1794,Athleticum Morelli Enterprises Ltd,2152.8,BAC004467
Liberty Leisure Limited,http://statistics.data.gov.uk/id/local-authority/37UD,Leisure,LEIS,Leisure Management,LMAN,Liberty Leisure Limited / Kimberley Leisure Centre,Course & Examination Fees,720,Indirect Employee Exp Oncosts,Oncosts,08/04/2022,V006777,1794,Athleticum Morelli Enterprises Ltd,2152.8,BAC004467
Liberty Leisure Limited,http://statistics.data.gov.uk/id/local-authority/37UD,Leisure,LEIS,Leisure Management,LMAN,Liberty Leisure Limited / Chilwell Olympia,Vending Provisions  - Purchase,3204,Catering,Cat,08/04/2022,V006766,-19.19,Automatic Retailing northern Ltd,1645.54,BAC004468
Liberty Leisure Limited,http://statistics.data.gov.uk/id/local-authority/37UD,Leisure,LEIS,Leisure Management,LMAN,Liberty Leisure Limited / Chilwell Olympia,Vending Provisions  - Purchase,3204,Catering,Cat,08/04/2022,V006766,-9.29,Automatic Retailing northern Ltd,1645.54,BAC004468
Liberty Leisure Limited,http://statistics.data.gov.uk/id/local-authority/37UD,Leisure,LEIS,Leisure Management,LMAN,Liberty Leisure Limited / Chilwell Olympia,Vending Provisions  - Purchase,3204,Catering,Cat,08/04/2022,V006765,9.29,Automatic Retailing northern Ltd,1645.54,BAC004468
Liberty Leisure Limited,http://statistics.data.gov.uk/id/local-authority/37UD,Leisure,LEIS,Leisure Management,LMAN,Liberty Leisure Limited / Chilwell Olympia,Vending Provisions  - Purchase,3204,Catering,Cat,08/04/2022,V006765,502.08,Automatic Retailing northern Ltd,1645.54,BAC004468
Liberty Leisure Limited,http://statistics.data.gov.uk/id/local-authority/37UD,Leisure,LEIS,Leisure Management,LMAN,Liberty Leisure Limited / Kimberley Leisure Centre,Vending Provisions  - Purchase,3204,Catering,Cat,08/04/2022,V006705,-28.39,Automatic Retailing northern Ltd,1645.54,BAC004468
Liberty Leisure Limited,http://statistics.data.gov.uk/id/local-authority/37UD,Leisure,LEIS,Leisure Management,LMAN,Liberty Leisure Limited / Kimberley Leisure Centre,Vending Provisions  - Purchase,3204,Catering,Cat,08/04/2022,V006774,135.95,Automatic Retailing northern Ltd,1645.54,BAC004468
Liberty Leisure Limited,http://statistics.data.gov.uk/id/local-authority/37UD,Leisure,LEIS,Leisure Management,LMAN,Liberty Leisure Limited / Kimberley Leisure Centre,Vending Provisions  - Purchase,3204,Catering,Cat,08/04/2022,V006774,803.49,Automatic Retailing northern Ltd,1645.54,BAC004468
Liberty Leisure Limited,http://statistics.data.gov.uk/id/local-authority/37UD,Leisure,LEIS,Leisure Management,LMAN,Liberty Leisure Limited / Chilwell Olympia,Vending Provisions  - Purchase,3204,Catering,Cat,08/04/2022,V006766,-19.19,Automatic Retailing northern Ltd,1645.54,BAC004468
Liberty Leisure Limited,http://statistics.data.gov.uk/id/local-authority/37UD,Leisure,LEIS,Leisure Management,LMAN,Liberty Leisure Limited / Chilwell Olympia,Vending Provisions  - Purchase,3204,Catering,Cat,08/04/2022,V006766,-9.29,Automatic Retailing northern Ltd,1645.54,BAC004468
Liberty Leisure Limited,http://statistics.data.gov.uk/id/local-authority/37UD,Leisure,LEIS,Leisure Management,LMAN,Liberty Leisure Limited / Chilwell Olympia,Vending Provisions  - Purchase,3204,Catering,Cat,08/04/2022,V006765,9.29,Automatic Retailing northern Ltd,1645.54,BAC004468
Liberty Leisure Limited,http://statistics.data.gov.uk/id/local-authority/37UD,Leisure,LEIS,Leisure Management,LMAN,Liberty Leisure Limited / Chilwell Olympia,Vending Provisions  - Purchase,3204,Catering,Cat,08/04/2022,V006765,502.08,Automatic Retailing northern Ltd,1645.54,BAC004468
Liberty Leisure Limited,http://statistics.data.gov.uk/id/local-authority/37UD,Leisure,LEIS,Leisure Management,LMAN,Liberty Leisure Limited / Kimberley Leisure Centre,Vending Provisions  - Purchase,3204,Catering,Cat,08/04/2022,V006705,-28.39,Automatic Retailing northern Ltd,1645.54,BAC004468
Liberty Leisure Limited,http://statistics.data.gov.uk/id/local-authority/37UD,Leisure,LEIS,Leisure Management,LMAN,Liberty Leisure Limited / Kimberley Leisure Centre,Vending Provisions  - Purchase,3204,Catering,Cat,08/04/2022,V006774,135.95,Automatic Retailing northern Ltd,1645.54,BAC004468
Liberty Leisure Limited,http://statistics.data.gov.uk/id/local-authority/37UD,Leisure,LEIS,Leisure Management,LMAN,Liberty Leisure Limited / Kimberley Leisure Centre,Vending Provisions  - Purchase,3204,Catering,Cat,08/04/2022,V006774,803.49,Automatic Retailing northern Ltd,1645.54,BAC004468
Liberty Leisure Limited,http://statistics.data.gov.uk/id/local-authority/37UD,Leisure,LEIS,Leisure Management,LMAN,Liberty Leisure Limited / Bramcote Leisure Centre,Repairs & Maintenance,1000,Central Pot,Central,08/04/2022,V006788,1400,Deltron Lifts Limited,1680,BAC004464
Liberty Leisure Limited,http://statistics.data.gov.uk/id/local-authority/37UD,Leisure,LEIS,Leisure Management,LMAN,Liberty Leisure Limited / Bramcote Leisure Centre,Repairs & Maintenance,1000,Central Pot,Central,08/04/2022,V006788,1400,Deltron Lifts Limited,1680,BAC004464
Liberty Leisure Limited,http://statistics.data.gov.uk/id/local-authority/37UD,Leisure,LEIS,Leisure Management,LMAN,Liberty Leisure Limited / Bramcote Leisure Centre,Repairs & Maintenance,1000,Central Pot,Central,08/04/2022,V006779,360,Dickie Greenleaf,360,BAC004472
Liberty Leisure Limited,http://statistics.data.gov.uk/id/local-authority/37UD,Leisure,LEIS,Leisure Management,LMAN,Liberty Leisure Limited / Bramcote Leisure Centre,Repairs & Maintenance,1000,Central Pot,Central,08/04/2022,V006779,360,Dickie Greenleaf,360,BAC004472
Liberty Leisure Limited,http://statistics.data.gov.uk/id/local-authority/37UD,Leisure,LEIS,Leisure Management,LMAN,Liberty Leisure Limited / Bramcote Leisure Centre,Service Contracts,3056,Other Supplies & Services,OtherSS,08/04/2022,V006778,300,EME Power Systems,360,BAC004469
Liberty Leisure Limited,http://statistics.data.gov.uk/id/local-authority/37UD,Leisure,LEIS,Leisure Management,LMAN,Liberty Leisure Limited / Bramcote Leisure Centre,Service Contracts,3056,Other Supplies & Services,OtherSS,08/04/2022,V006778,300,EME Power Systems,360,BAC004469
Liberty Leisure Limited,http://statistics.data.gov.uk/id/local-authority/37UD,Leisure,LEIS,Leisure Management,LMAN,Liberty Leisure Limited / Bramcote Leisure Centre,Repairs & Maintenance,1000,Central Pot,Central,08/04/2022,V006767,306.63,J P Carty Limited,3186.3,BAC004457
Liberty Leisure Limited,http://statistics.data.gov.uk/id/local-authority/37UD,Leisure,LEIS,Leisure Management,LMAN,Liberty Leisure Limited / Chilwell Olympia,Repairs & Maintenance,1000,Central Pot,Central,08/04/2022,V006768,608.12,J P Carty Limited,3186.3,BAC004457
Liberty Leisure Limited,http://statistics.data.gov.uk/id/local-authority/37UD,Leisure,LEIS,Leisure Management,LMAN,Liberty Leisure Limited / Chilwell Olympia,Repairs & Maintenance,1000,Central Pot,Central,08/04/2022,V006768,216,J P Carty Limited,3186.3,BAC004457
Liberty Leisure Limited,http://statistics.data.gov.uk/id/local-authority/37UD,Leisure,LEIS,Leisure Management,LMAN,Liberty Leisure Limited / Chilwell Olympia,Repairs & Maintenance,1000,Central Pot,Central,08/04/2022,V006768,1524.5,J P Carty Limited,3186.3,BAC004457
Liberty Leisure Limited,http://statistics.data.gov.uk/id/local-authority/37UD,Leisure,LEIS,Leisure Management,LMAN,Liberty Leisure Limited / Bramcote Leisure Centre,Repairs & Maintenance,1000,Central Pot,Central,08/04/2022,V006767,306.63,J P Carty Limited,3186.3,BAC004457
Liberty Leisure Limited,http://statistics.data.gov.uk/id/local-authority/37UD,Leisure,LEIS,Leisure Management,LMAN,Liberty Leisure Limited / Chilwell Olympia,Repairs & Maintenance,1000,Central Pot,Central,08/04/2022,V006768,608.12,J P Carty Limited,3186.3,BAC004457
Liberty Leisure Limited,http://statistics.data.gov.uk/id/local-authority/37UD,Leisure,LEIS,Leisure Management,LMAN,Liberty Leisure Limited / Chilwell Olympia,Repairs & Maintenance,1000,Central Pot,Central,08/04/2022,V006768,216,J P Carty Limited,3186.3,BAC004457
Liberty Leisure Limited,http://statistics.data.gov.uk/id/local-authority/37UD,Leisure,LEIS,Leisure Management,LMAN,Liberty Leisure Limited / Chilwell Olympia,Repairs & Maintenance,1000,Central Pot,Central,08/04/2022,V006768,1524.5,J P Carty Limited,3186.3,BAC004457
Liberty Leisure Limited,http://statistics.data.gov.uk/id/local-authority/37UD,Culture and Heritage,CULT,Events,LEVE,Liberty Leisure Limited / Events,Basic Pay,10,Employee Direct Costs,Direct,08/04/2022,V006770,1666.66,NinaSmithMusic,2500,BAC004473
Liberty Leisure Limited,http://statistics.data.gov.uk/id/local-authority/37UD,Culture and Heritage,CULT,Events,LEVE,Liberty Leisure Limited / Events,Basic Pay,10,Employee Direct Costs,Direct,08/04/2022,V006770,833.34,NinaSmithMusic,2500,BAC004473
Liberty Leisure Limited,http://statistics.data.gov.uk/id/local-authority/37UD,Leisure,LEIS,Leisure Management,LMAN,Liberty Leisure Limited / Kimberley Leisure Centre,Service Contracts,3056,Other Supplies & Services,OtherSS,08/04/2022,V006772,-698.38,PHS Group Plc,842.68,BAC004458
Liberty Leisure Limited,http://statistics.data.gov.uk/id/local-authority/37UD,Leisure,LEIS,Leisure Management,LMAN,Liberty Leisure Limited / Kimberley Leisure Centre,Service Contracts,3056,Other Supplies & Services,OtherSS,08/04/2022,V006771,1400.62,PHS Group Plc,842.68,BAC004458
Liberty Leisure Limited,http://statistics.data.gov.uk/id/local-authority/37UD,Leisure,LEIS,Leisure Management,LMAN,Liberty Leisure Limited / Kimberley Leisure Centre,Service Contracts,3056,Other Supplies & Services,OtherSS,08/04/2022,V006772,-698.38,PHS Group Plc,842.68,BAC004458
Liberty Leisure Limited,http://statistics.data.gov.uk/id/local-authority/37UD,Leisure,LEIS,Leisure Management,LMAN,Liberty Leisure Limited / Kimberley Leisure Centre,Service Contracts,3056,Other Supplies & Services,OtherSS,08/04/2022,V006771,1400.62,PHS Group Plc,842.68,BAC004458
Liberty Leisure Limited,http://statistics.data.gov.uk/id/local-authority/37UD,Leisure,LEIS,Leisure Management,LMAN,Liberty Leisure Limited / Kimberley Leisure Centre,Repairs & Maintenance,1000,Central Pot,Central,08/04/2022,V006773,2200.8,T/A L & R Pool Cleaners,2640.96,BAC004466
Liberty Leisure Limited,http://statistics.data.gov.uk/id/local-authority/37UD,Leisure,LEIS,Leisure Management,LMAN,Liberty Leisure Limited / Kimberley Leisure Centre,Repairs & Maintenance,1000,Central Pot,Central,08/04/2022,V006773,2200.8,T/A L & R Pool Cleaners,2640.96,BAC004466
Liberty Leisure Limited,http://statistics.data.gov.uk/id/local-authority/37UD,Leisure,LEIS,Leisure Management,LMAN,Liberty Leisure Limited / Liberty Leisure Development,Licences,3613,Other Supplies & Services,OtherSS,08/04/2022,V006783,2940,Technogym UK Ltd,7056,BAC004459
Liberty Leisure Limited,http://statistics.data.gov.uk/id/local-authority/37UD,Leisure,LEIS,Leisure Management,LMAN,Liberty Leisure Limited / Liberty Leisure Development,Licences,3613,Other Supplies & Services,OtherSS,08/04/2022,V006784,2940,Technogym UK Ltd,7056,BAC004459
Liberty Leisure Limited,http://statistics.data.gov.uk/id/local-authority/37UD,Leisure,LEIS,Leisure Management,LMAN,Liberty Leisure Limited / Liberty Leisure Development,Licences,3613,Other Supplies & Services,OtherSS,08/04/2022,V006783,2940,Technogym UK Ltd,7056,BAC004459
Liberty Leisure Limited,http://statistics.data.gov.uk/id/local-authority/37UD,Leisure,LEIS,Leisure Management,LMAN,Liberty Leisure Limited / Liberty Leisure Development,Licences,3613,Other Supplies & Services,OtherSS,08/04/2022,V006784,2940,Technogym UK Ltd,7056,BAC004459
Liberty Leisure Limited,http://statistics.data.gov.uk/id/local-authority/37UD,Leisure,LEIS,Leisure Management,LMAN,Liberty Leisure Limited / Bramcote Leisure Centre,Chemicals,3152,Other Supplies & Services,OtherSS,08/04/2022,V006780,39.5,Univar Solutions BV,1525.84,BAC004460
Liberty Leisure Limited,http://statistics.data.gov.uk/id/local-authority/37UD,Leisure,LEIS,Leisure Management,LMAN,Liberty Leisure Limited / Bramcote Leisure Centre,Chemicals,3152,Other Supplies & Services,OtherSS,08/04/2022,V006781,39.5,Univar Solutions BV,1525.84,BAC004460
Liberty Leisure Limited,http://statistics.data.gov.uk/id/local-authority/37UD,Leisure,LEIS,Leisure Management,LMAN,Liberty Leisure Limited / Bramcote Leisure Centre,Chemicals,3152,Other Supplies & Services,OtherSS,08/04/2022,V006780,154.6,Univar Solutions BV,1525.84,BAC004460
Liberty Leisure Limited,http://statistics.data.gov.uk/id/local-authority/37UD,Leisure,LEIS,Leisure Management,LMAN,Liberty Leisure Limited / Bramcote Leisure Centre,Chemicals,3152,Other Supplies & Services,OtherSS,08/04/2022,V006781,788.04,Univar Solutions BV,1525.84,BAC004460
Liberty Leisure Limited,http://statistics.data.gov.uk/id/local-authority/37UD,Leisure,LEIS,Leisure Management,LMAN,Liberty Leisure Limited / Bramcote Leisure Centre,Chemicals,3152,Other Supplies & Services,OtherSS,08/04/2022,V006780,62.44,Univar Solutions BV,1525.84,BAC004460
Liberty Leisure Limited,http://statistics.data.gov.uk/id/local-authority/37UD,Leisure,LEIS,Leisure Management,LMAN,Liberty Leisure Limited / Bramcote Leisure Centre,Chemicals,3152,Other Supplies & Services,OtherSS,08/04/2022,V006780,69.84,Univar Solutions BV,1525.84,BAC004460
Liberty Leisure Limited,http://statistics.data.gov.uk/id/local-authority/37UD,Leisure,LEIS,Leisure Management,LMAN,Liberty Leisure Limited / Bramcote Leisure Centre,Chemicals,3152,Other Supplies & Services,OtherSS,08/04/2022,V006781,117.61,Univar Solutions BV,1525.84,BAC004460
Liberty Leisure Limited,http://statistics.data.gov.uk/id/local-authority/37UD,Leisure,LEIS,Leisure Management,LMAN,Liberty Leisure Limited / Bramcote Leisure Centre,Chemicals,3152,Other Supplies & Services,OtherSS,08/04/2022,V006780,39.5,Univar Solutions BV,1525.84,BAC004460
Liberty Leisure Limited,http://statistics.data.gov.uk/id/local-authority/37UD,Leisure,LEIS,Leisure Management,LMAN,Liberty Leisure Limited / Bramcote Leisure Centre,Chemicals,3152,Other Supplies & Services,OtherSS,08/04/2022,V006781,39.5,Univar Solutions BV,1525.84,BAC004460
Liberty Leisure Limited,http://statistics.data.gov.uk/id/local-authority/37UD,Leisure,LEIS,Leisure Management,LMAN,Liberty Leisure Limited / Bramcote Leisure Centre,Chemicals,3152,Other Supplies & Services,OtherSS,08/04/2022,V006780,154.6,Univar Solutions BV,1525.84,BAC004460
Liberty Leisure Limited,http://statistics.data.gov.uk/id/local-authority/37UD,Leisure,LEIS,Leisure Management,LMAN,Liberty Leisure Limited / Bramcote Leisure Centre,Chemicals,3152,Other Supplies & Services,OtherSS,08/04/2022,V006781,788.04,Univar Solutions BV,1525.84,BAC004460
Liberty Leisure Limited,http://statistics.data.gov.uk/id/local-authority/37UD,Leisure,LEIS,Leisure Management,LMAN,Liberty Leisure Limited / Bramcote Leisure Centre,Chemicals,3152,Other Supplies & Services,OtherSS,08/04/2022,V006780,62.44,Univar Solutions BV,1525.84,BAC004460
Liberty Leisure Limited,http://statistics.data.gov.uk/id/local-authority/37UD,Leisure,LEIS,Leisure Management,LMAN,Liberty Leisure Limited / Bramcote Leisure Centre,Chemicals,3152,Other Supplies & Services,OtherSS,08/04/2022,V006780,69.84,Univar Solutions BV,1525.84,BAC004460
Liberty Leisure Limited,http://statistics.data.gov.uk/id/local-authority/37UD,Leisure,LEIS,Leisure Management,LMAN,Liberty Leisure Limited / Bramcote Leisure Centre,Chemicals,3152,Other Supplies & Services,OtherSS,08/04/2022,V006781,117.61,Univar Solutions BV,1525.84,BAC004460
Liberty Leisure Limited,http://statistics.data.gov.uk/id/local-authority/37UD,Leisure,LEIS,Leisure Management,LMAN,Liberty Leisure Limited / Bramcote Leisure Centre,Service Contracts,3056,Other Supplies & Services,OtherSS,08/04/2022,V006786,3235.75,Ylem Energy Limited,3882.9,BAC004470
Liberty Leisure Limited,http://statistics.data.gov.uk/id/local-authority/37UD,Leisure,LEIS,Leisure Management,LMAN,Liberty Leisure Limited / Bramcote Leisure Centre,Service Contracts,3056,Other Supplies & Services,OtherSS,08/04/2022,V006786,3235.75,Ylem Energy Limited,3882.9,BAC004470
Liberty Leisure Limited,http://statistics.data.gov.uk/id/local-authority/37UD,Culture and Heritage,CULT,Events,LEVE,Liberty Leisure Limited / Events,Promotion of The Arts,3066,Office Supplies,Offsup,22/04/2022,V006790,7510,Big TV (UK) Ltd,9012,BAC004489
Liberty Leisure Limited,http://statistics.data.gov.uk/id/local-authority/37UD,Culture and Heritage,CULT,Events,LEVE,Liberty Leisure Limited / Events,Promotion of The Arts,3066,Office Supplies,Offsup,22/04/2022,V006790,7510,Big TV (UK) Ltd,9012,BAC004489
Liberty Leisure Limited,http://statistics.data.gov.uk/id/local-authority/37UD,Leisure,LEIS,Leisure Management,LMAN,Liberty Leisure Limited / Liberty Leisure Development,Licences,3613,Other Supplies & Services,OtherSS,22/04/2022,V006791,1155,Broxtowe Borough Council,3249,BAC004474
Liberty Leisure Limited,http://statistics.data.gov.uk/id/local-authority/37UD,Leisure,LEIS,Leisure Management,LMAN,Liberty Leisure Limited / Liberty Leisure Development,Licences,3613,Other Supplies & Services,OtherSS,22/04/2022,V006791,1035,Broxtowe Borough Council,3249,BAC004474
Liberty Leisure Limited,http://statistics.data.gov.uk/id/local-authority/37UD,Leisure,LEIS,Leisure Management,LMAN,Liberty Leisure Limited / Liberty Leisure Development,Licences,3613,Other Supplies & Services,OtherSS,22/04/2022,V006791,1059,Broxtowe Borough Council,3249,BAC004474
Liberty Leisure Limited,http://statistics.data.gov.uk/id/local-authority/37UD,Leisure,LEIS,Leisure Management,LMAN,Liberty Leisure Limited / Liberty Leisure Development,Licences,3613,Other Supplies & Services,OtherSS,22/04/2022,V006791,1155,Broxtowe Borough Council,3249,BAC004474
Liberty Leisure Limited,http://statistics.data.gov.uk/id/local-authority/37UD,Leisure,LEIS,Leisure Management,LMAN,Liberty Leisure Limited / Liberty Leisure Development,Licences,3613,Other Supplies & Services,OtherSS,22/04/2022,V006791,1035,Broxtowe Borough Council,3249,BAC004474
Liberty Leisure Limited,http://statistics.data.gov.uk/id/local-authority/37UD,Leisure,LEIS,Leisure Management,LMAN,Liberty Leisure Limited / Liberty Leisure Development,Licences,3613,Other Supplies & Services,OtherSS,22/04/2022,V006791,1059,Broxtowe Borough Council,3249,BAC004474
Liberty Leisure Limited,http://statistics.data.gov.uk/id/local-authority/37UD,Leisure,LEIS,Leisure Management,LMAN,Liberty Leisure Limited / Kimberley Leisure Centre,Chemicals,3152,Other Supplies & Services,OtherSS,22/04/2022,V006807,683.92,Cryoservice Limited,820.7,BAC004475
Liberty Leisure Limited,http://statistics.data.gov.uk/id/local-authority/37UD,Leisure,LEIS,Leisure Management,LMAN,Liberty Leisure Limited / Kimberley Leisure Centre,Chemicals,3152,Other Supplies & Services,OtherSS,22/04/2022,V006807,683.92,Cryoservice Limited,820.7,BAC004475
Liberty Leisure Limited,http://statistics.data.gov.uk/id/local-authority/37UD,Culture and Heritage,CULT,Heritage,LHER,Liberty Leisure Limited / DHL Museum,Fees and Charges - Costs,3098,Other Supplies & Services,OtherSS,22/04/2022,V006814,345.78,Darlings Tea Room,345.78,BAC004490
Liberty Leisure Limited,http://statistics.data.gov.uk/id/local-authority/37UD,Culture and Heritage,CULT,Heritage,LHER,Liberty Leisure Limited / DHL Museum,Fees and Charges - Costs,3098,Other Supplies & Services,OtherSS,22/04/2022,V006814,345.78,Darlings Tea Room,345.78,BAC004490
Liberty Leisure Limited,http://statistics.data.gov.uk/id/local-authority/37UD,Leisure,LEIS,Leisure Management,LMAN,Liberty Leisure Limited / Kimberley Leisure Centre,Electrical Testing,1043,Central Pot,Central,22/04/2022,V006808,2264.38,FREDK LAMB,2717.26,BAC004486
Liberty Leisure Limited,http://statistics.data.gov.uk/id/local-authority/37UD,Leisure,LEIS,Leisure Management,LMAN,Liberty Leisure Limited / Kimberley Leisure Centre,Electrical Testing,1043,Central Pot,Central,22/04/2022,V006808,2264.38,FREDK LAMB,2717.26,BAC004486
Liberty Leisure Limited,http://statistics.data.gov.uk/id/local-authority/37UD,Leisure,LEIS,Leisure Management,LMAN,Liberty Leisure Limited / Kimberley Leisure Centre,Licences,3613,Other Supplies & Services,OtherSS,22/04/2022,V006802,150,Halo Leisure Enterprises Ltd,540,BAC004488
Liberty Leisure Limited,http://statistics.data.gov.uk/id/local-authority/37UD,Leisure,LEIS,Leisure Management,LMAN,Liberty Leisure Limited / Kimberley Leisure Centre,Licences,3613,Other Supplies & Services,OtherSS,22/04/2022,V006802,150,Halo Leisure Enterprises Ltd,540,BAC004488
Liberty Leisure Limited,http://statistics.data.gov.uk/id/local-authority/37UD,Leisure,LEIS,Leisure Management,LMAN,Liberty Leisure Limited / Kimberley Leisure Centre,Licences,3613,Other Supplies & Services,OtherSS,22/04/2022,V006802,150,Halo Leisure Enterprises Ltd,540,BAC004488
Liberty Leisure Limited,http://statistics.data.gov.uk/id/local-authority/37UD,Leisure,LEIS,Leisure Management,LMAN,Liberty Leisure Limited / Kimberley Leisure Centre,Licences,3613,Other Supplies & Services,OtherSS,22/04/2022,V006802,150,Halo Leisure Enterprises Ltd,540,BAC004488
Liberty Leisure Limited,http://statistics.data.gov.uk/id/local-authority/37UD,Leisure,LEIS,Leisure Management,LMAN,Liberty Leisure Limited / Kimberley Leisure Centre,Licences,3613,Other Supplies & Services,OtherSS,22/04/2022,V006802,150,Halo Leisure Enterprises Ltd,540,BAC004488
Liberty Leisure Limited,http://statistics.data.gov.uk/id/local-authority/37UD,Leisure,LEIS,Leisure Management,LMAN,Liberty Leisure Limited / Kimberley Leisure Centre,Licences,3613,Other Supplies & Services,OtherSS,22/04/2022,V006802,150,Halo Leisure Enterprises Ltd,540,BAC004488
Liberty Leisure Limited,http://statistics.data.gov.uk/id/local-authority/37UD,Leisure,LEIS,Leisure Management,LMAN,Liberty Leisure Limited / Kimberley Leisure Centre,Cleaning Materials,1510,Other Prem,OthPrem,22/04/2022,V006796,99.12,J P Lennard Limited,650,BAC004476
Liberty Leisure Limited,http://statistics.data.gov.uk/id/local-authority/37UD,Leisure,LEIS,Leisure Management,LMAN,Liberty Leisure Limited / Kimberley Leisure Centre,Pool Equipment Purchase,3020,Other Supplies & Services,OtherSS,22/04/2022,V006796,14.4,J P Lennard Limited,650,BAC004476
Liberty Leisure Limited,http://statistics.data.gov.uk/id/local-authority/37UD,Leisure,LEIS,Leisure Management,LMAN,Liberty Leisure Limited / Kimberley Leisure Centre,Pool Equipment Purchase,3020,Other Supplies & Services,OtherSS,22/04/2022,V006797,19.35,J P Lennard Limited,650,BAC004476
Liberty Leisure Limited,http://statistics.data.gov.uk/id/local-authority/37UD,Leisure,LEIS,Leisure Management,LMAN,Liberty Leisure Limited / Kimberley Leisure Centre,Pool Equipment Purchase,3020,Other Supplies & Services,OtherSS,22/04/2022,V006796,20.7,J P Lennard Limited,650,BAC004476
Liberty Leisure Limited,http://statistics.data.gov.uk/id/local-authority/37UD,Leisure,LEIS,Leisure Management,LMAN,Liberty Leisure Limited / Kimberley Leisure Centre,Pool Equipment Purchase,3020,Other Supplies & Services,OtherSS,22/04/2022,V006797,15.8,J P Lennard Limited,650,BAC004476
Liberty Leisure Limited,http://statistics.data.gov.uk/id/local-authority/37UD,Leisure,LEIS,Leisure Management,LMAN,Liberty Leisure Limited / Kimberley Leisure Centre,Pool Equipment Purchase,3020,Other Supplies & Services,OtherSS,22/04/2022,V006797,16.85,J P Lennard Limited,650,BAC004476
Liberty Leisure Limited,http://statistics.data.gov.uk/id/local-authority/37UD,Leisure,LEIS,Leisure Management,LMAN,Liberty Leisure Limited / Kimberley Leisure Centre,Pool Equipment Purchase,3020,Other Supplies & Services,OtherSS,22/04/2022,V006797,10.25,J P Lennard Limited,650,BAC004476
Liberty Leisure Limited,http://statistics.data.gov.uk/id/local-authority/37UD,Leisure,LEIS,Leisure Management,LMAN,Liberty Leisure Limited / Kimberley Leisure Centre,Pool Equipment Purchase,3020,Other Supplies & Services,OtherSS,22/04/2022,V006797,18.8,J P Lennard Limited,650,BAC004476
Liberty Leisure Limited,http://statistics.data.gov.uk/id/local-authority/37UD,Leisure,LEIS,Leisure Management,LMAN,Liberty Leisure Limited / Kimberley Leisure Centre,Pool Equipment Purchase,3020,Other Supplies & Services,OtherSS,22/04/2022,V006797,9.7,J P Lennard Limited,650,BAC004476
Liberty Leisure Limited,http://statistics.data.gov.uk/id/local-authority/37UD,Leisure,LEIS,Leisure Management,LMAN,Liberty Leisure Limited / Kimberley Leisure Centre,Pool Equipment Purchase,3020,Other Supplies & Services,OtherSS,22/04/2022,V006797,7.24,J P Lennard Limited,650,BAC004476
Liberty Leisure Limited,http://statistics.data.gov.uk/id/local-authority/37UD,Leisure,LEIS,Leisure Management,LMAN,Liberty Leisure Limited / Kimberley Leisure Centre,Pool Equipment Purchase,3020,Other Supplies & Services,OtherSS,22/04/2022,V006797,7.24,J P Lennard Limited,650,BAC004476
Liberty Leisure Limited,http://statistics.data.gov.uk/id/local-authority/37UD,Leisure,LEIS,Leisure Management,LMAN,Liberty Leisure Limited / Kimberley Leisure Centre,Pool Equipment Purchase,3020,Other Supplies & Services,OtherSS,22/04/2022,V006797,7.24,J P Lennard Limited,650,BAC004476
Liberty Leisure Limited,http://statistics.data.gov.uk/id/local-authority/37UD,Leisure,LEIS,Leisure Management,LMAN,Liberty Leisure Limited / Kimberley Leisure Centre,Pool Equipment Purchase,3020,Other Supplies & Services,OtherSS,22/04/2022,V006797,60.4,J P Lennard Limited,650,BAC004476
Liberty Leisure Limited,http://statistics.data.gov.uk/id/local-authority/37UD,Leisure,LEIS,Leisure Management,LMAN,Liberty Leisure Limited / Kimberley Leisure Centre,Pool Equipment Purchase,3020,Other Supplies & Services,OtherSS,22/04/2022,V006797,13.65,J P Lennard Limited,650,BAC004476
Liberty Leisure Limited,http://statistics.data.gov.uk/id/local-authority/37UD,Leisure,LEIS,Leisure Management,LMAN,Liberty Leisure Limited / Kimberley Leisure Centre,Pool Equipment Purchase,3020,Other Supplies & Services,OtherSS,22/04/2022,V006797,40.95,J P Lennard Limited,650,BAC004476
Liberty Leisure Limited,http://statistics.data.gov.uk/id/local-authority/37UD,Leisure,LEIS,Leisure Management,LMAN,Liberty Leisure Limited / Kimberley Leisure Centre,Pool Equipment Purchase,3020,Other Supplies & Services,OtherSS,22/04/2022,V006797,7.24,J P Lennard Limited,650,BAC004476
Liberty Leisure Limited,http://statistics.data.gov.uk/id/local-authority/37UD,Leisure,LEIS,Leisure Management,LMAN,Liberty Leisure Limited / Kimberley Leisure Centre,Pool Equipment Purchase,3020,Other Supplies & Services,OtherSS,22/04/2022,V006797,98,J P Lennard Limited,650,BAC004476
Liberty Leisure Limited,http://statistics.data.gov.uk/id/local-authority/37UD,Leisure,LEIS,Leisure Management,LMAN,Liberty Leisure Limited / Kimberley Leisure Centre,Pool Equipment Purchase,3020,Other Supplies & Services,OtherSS,22/04/2022,V006797,7.24,J P Lennard Limited,650,BAC004476
Liberty Leisure Limited,http://statistics.data.gov.uk/id/local-authority/37UD,Leisure,LEIS,Leisure Management,LMAN,Liberty Leisure Limited / Kimberley Leisure Centre,Pool Equipment Purchase,3020,Other Supplies & Services,OtherSS,22/04/2022,V006796,8.5,J P Lennard Limited,650,BAC004476
Liberty Leisure Limited,http://statistics.data.gov.uk/id/local-authority/37UD,Leisure,LEIS,Leisure Management,LMAN,Liberty Leisure Limited / Kimberley Leisure Centre,Pool Equipment Purchase,3020,Other Supplies & Services,OtherSS,22/04/2022,V006797,59,J P Lennard Limited,650,BAC004476
Liberty Leisure Limited,http://statistics.data.gov.uk/id/local-authority/37UD,Leisure,LEIS,Leisure Management,LMAN,Liberty Leisure Limited / Kimberley Leisure Centre,Cleaning Materials,1510,Other Prem,OthPrem,22/04/2022,V006796,99.12,J P Lennard Limited,650,BAC004476
Liberty Leisure Limited,http://statistics.data.gov.uk/id/local-authority/37UD,Leisure,LEIS,Leisure Management,LMAN,Liberty Leisure Limited / Kimberley Leisure Centre,Pool Equipment Purchase,3020,Other Supplies & Services,OtherSS,22/04/2022,V006796,14.4,J P Lennard Limited,650,BAC004476
Liberty Leisure Limited,http://statistics.data.gov.uk/id/local-authority/37UD,Leisure,LEIS,Leisure Management,LMAN,Liberty Leisure Limited / Kimberley Leisure Centre,Pool Equipment Purchase,3020,Other Supplies & Services,OtherSS,22/04/2022,V006797,19.35,J P Lennard Limited,650,BAC004476
Liberty Leisure Limited,http://statistics.data.gov.uk/id/local-authority/37UD,Leisure,LEIS,Leisure Management,LMAN,Liberty Leisure Limited / Kimberley Leisure Centre,Pool Equipment Purchase,3020,Other Supplies & Services,OtherSS,22/04/2022,V006796,20.7,J P Lennard Limited,650,BAC004476
Liberty Leisure Limited,http://statistics.data.gov.uk/id/local-authority/37UD,Leisure,LEIS,Leisure Management,LMAN,Liberty Leisure Limited / Kimberley Leisure Centre,Pool Equipment Purchase,3020,Other Supplies & Services,OtherSS,22/04/2022,V006797,15.8,J P Lennard Limited,650,BAC004476
Liberty Leisure Limited,http://statistics.data.gov.uk/id/local-authority/37UD,Leisure,LEIS,Leisure Management,LMAN,Liberty Leisure Limited / Kimberley Leisure Centre,Pool Equipment Purchase,3020,Other Supplies & Services,OtherSS,22/04/2022,V006797,16.85,J P Lennard Limited,650,BAC004476
Liberty Leisure Limited,http://statistics.data.gov.uk/id/local-authority/37UD,Leisure,LEIS,Leisure Management,LMAN,Liberty Leisure Limited / Kimberley Leisure Centre,Pool Equipment Purchase,3020,Other Supplies & Services,OtherSS,22/04/2022,V006797,10.25,J P Lennard Limited,650,BAC004476
Liberty Leisure Limited,http://statistics.data.gov.uk/id/local-authority/37UD,Leisure,LEIS,Leisure Management,LMAN,Liberty Leisure Limited / Kimberley Leisure Centre,Pool Equipment Purchase,3020,Other Supplies & Services,OtherSS,22/04/2022,V006797,18.8,J P Lennard Limited,650,BAC004476
Liberty Leisure Limited,http://statistics.data.gov.uk/id/local-authority/37UD,Leisure,LEIS,Leisure Management,LMAN,Liberty Leisure Limited / Kimberley Leisure Centre,Pool Equipment Purchase,3020,Other Supplies & Services,OtherSS,22/04/2022,V006797,9.7,J P Lennard Limited,650,BAC004476
Liberty Leisure Limited,http://statistics.data.gov.uk/id/local-authority/37UD,Leisure,LEIS,Leisure Management,LMAN,Liberty Leisure Limited / Kimberley Leisure Centre,Pool Equipment Purchase,3020,Other Supplies & Services,OtherSS,22/04/2022,V006797,7.24,J P Lennard Limited,650,BAC004476
Liberty Leisure Limited,http://statistics.data.gov.uk/id/local-authority/37UD,Leisure,LEIS,Leisure Management,LMAN,Liberty Leisure Limited / Kimberley Leisure Centre,Pool Equipment Purchase,3020,Other Supplies & Services,OtherSS,22/04/2022,V006797,7.24,J P Lennard Limited,650,BAC004476
Liberty Leisure Limited,http://statistics.data.gov.uk/id/local-authority/37UD,Leisure,LEIS,Leisure Management,LMAN,Liberty Leisure Limited / Kimberley Leisure Centre,Pool Equipment Purchase,3020,Other Supplies & Services,OtherSS,22/04/2022,V006797,7.24,J P Lennard Limited,650,BAC004476
Liberty Leisure Limited,http://statistics.data.gov.uk/id/local-authority/37UD,Leisure,LEIS,Leisure Management,LMAN,Liberty Leisure Limited / Kimberley Leisure Centre,Pool Equipment Purchase,3020,Other Supplies & Services,OtherSS,22/04/2022,V006797,60.4,J P Lennard Limited,650,BAC004476
Liberty Leisure Limited,http://statistics.data.gov.uk/id/local-authority/37UD,Leisure,LEIS,Leisure Management,LMAN,Liberty Leisure Limited / Kimberley Leisure Centre,Pool Equipment Purchase,3020,Other Supplies & Services,OtherSS,22/04/2022,V006797,13.65,J P Lennard Limited,650,BAC004476
Liberty Leisure Limited,http://statistics.data.gov.uk/id/local-authority/37UD,Leisure,LEIS,Leisure Management,LMAN,Liberty Leisure Limited / Kimberley Leisure Centre,Pool Equipment Purchase,3020,Other Supplies & Services,OtherSS,22/04/2022,V006797,40.95,J P Lennard Limited,650,BAC004476
Liberty Leisure Limited,http://statistics.data.gov.uk/id/local-authority/37UD,Leisure,LEIS,Leisure Management,LMAN,Liberty Leisure Limited / Kimberley Leisure Centre,Pool Equipment Purchase,3020,Other Supplies & Services,OtherSS,22/04/2022,V006797,7.24,J P Lennard Limited,650,BAC004476
Liberty Leisure Limited,http://statistics.data.gov.uk/id/local-authority/37UD,Leisure,LEIS,Leisure Management,LMAN,Liberty Leisure Limited / Kimberley Leisure Centre,Pool Equipment Purchase,3020,Other Supplies & Services,OtherSS,22/04/2022,V006797,98,J P Lennard Limited,650,BAC004476
Liberty Leisure Limited,http://statistics.data.gov.uk/id/local-authority/37UD,Leisure,LEIS,Leisure Management,LMAN,Liberty Leisure Limited / Kimberley Leisure Centre,Pool Equipment Purchase,3020,Other Supplies & Services,OtherSS,22/04/2022,V006797,7.24,J P Lennard Limited,650,BAC004476
Liberty Leisure Limited,http://statistics.data.gov.uk/id/local-authority/37UD,Leisure,LEIS,Leisure Management,LMAN,Liberty Leisure Limited / Kimberley Leisure Centre,Pool Equipment Purchase,3020,Other Supplies & Services,OtherSS,22/04/2022,V006796,8.5,J P Lennard Limited,650,BAC004476
Liberty Leisure Limited,http://statistics.data.gov.uk/id/local-authority/37UD,Leisure,LEIS,Leisure Management,LMAN,Liberty Leisure Limited / Kimberley Leisure Centre,Pool Equipment Purchase,3020,Other Supplies & Services,OtherSS,22/04/2022,V006797,59,J P Lennard Limited,650,BAC004476
Liberty Leisure Limited,http://statistics.data.gov.uk/id/local-authority/37UD,Leisure,LEIS,Leisure Management,LMAN,Liberty Leisure Limited / Liberty Leisure Development,Subscriptions,3730,Other Supplies & Services,OtherSS,22/04/2022,V006794,112,Personnel Checks,432,BAC004493
Liberty Leisure Limited,http://statistics.data.gov.uk/id/local-authority/37UD,Leisure,LEIS,Leisure Management,LMAN,Liberty Leisure Limited / Liberty Leisure Development,Subscriptions,3730,Other Supplies & Services,OtherSS,22/04/2022,V006794,320,Personnel Checks,432,BAC004493
Liberty Leisure Limited,http://statistics.data.gov.uk/id/local-authority/37UD,Leisure,LEIS,Leisure Management,LMAN,Liberty Leisure Limited / Liberty Leisure Development,Subscriptions,3730,Other Supplies & Services,OtherSS,22/04/2022,V006794,112,Personnel Checks,432,BAC004493
Liberty Leisure Limited,http://statistics.data.gov.uk/id/local-authority/37UD,Leisure,LEIS,Leisure Management,LMAN,Liberty Leisure Limited / Liberty Leisure Development,Subscriptions,3730,Other Supplies & Services,OtherSS,22/04/2022,V006794,320,Personnel Checks,432,BAC004493
Liberty Leisure Limited,http://statistics.data.gov.uk/id/local-authority/37UD,Leisure,LEIS,Leisure Management,LMAN,Liberty Leisure Limited / Kimberley Leisure Centre,Chemicals,3152,Other Supplies & Services,OtherSS,22/04/2022,V006798,80,Sterling Hydrotech Limited,263.76,BAC004479
Liberty Leisure Limited,http://statistics.data.gov.uk/id/local-authority/37UD,Leisure,LEIS,Leisure Management,LMAN,Liberty Leisure Limited / Kimberley Leisure Centre,Chemicals,3152,Other Supplies & Services,OtherSS,22/04/2022,V006798,11.6,Sterling Hydrotech Limited,263.76,BAC004479
Liberty Leisure Limited,http://statistics.data.gov.uk/id/local-authority/37UD,Leisure,LEIS,Leisure Management,LMAN,Liberty Leisure Limited / Kimberley Leisure Centre,Chemicals,3152,Other Supplies & Services,OtherSS,22/04/2022,V006798,128.2,Sterling Hydrotech Limited,263.76,BAC004479
Liberty Leisure Limited,http://statistics.data.gov.uk/id/local-authority/37UD,Leisure,LEIS,Leisure Management,LMAN,Liberty Leisure Limited / Kimberley Leisure Centre,Chemicals,3152,Other Supplies & Services,OtherSS,22/04/2022,V006798,80,Sterling Hydrotech Limited,263.76,BAC004479
Liberty Leisure Limited,http://statistics.data.gov.uk/id/local-authority/37UD,Leisure,LEIS,Leisure Management,LMAN,Liberty Leisure Limited / Kimberley Leisure Centre,Chemicals,3152,Other Supplies & Services,OtherSS,22/04/2022,V006798,11.6,Sterling Hydrotech Limited,263.76,BAC004479
Liberty Leisure Limited,http://statistics.data.gov.uk/id/local-authority/37UD,Leisure,LEIS,Leisure Management,LMAN,Liberty Leisure Limited / Kimberley Leisure Centre,Chemicals,3152,Other Supplies & Services,OtherSS,22/04/2022,V006798,128.2,Sterling Hydrotech Limited,263.76,BAC004479
Liberty Leisure Limited,http://statistics.data.gov.uk/id/local-authority/37UD,Leisure,LEIS,Leisure Management,LMAN,Liberty Leisure Limited / Kimberley Leisure Centre,Gas,1320,Utilities,Utility,22/04/2022,V006800,3430.05,The Kimberley School (EMET),7818.9,BAC004480
Liberty Leisure Limited,http://statistics.data.gov.uk/id/local-authority/37UD,Leisure,LEIS,Leisure Management,LMAN,Liberty Leisure Limited / Kimberley Leisure Centre,Water Charges,1410,Utilities,Utility,22/04/2022,V006801,4388.85,The Kimberley School (EMET),7818.9,BAC004480
Liberty Leisure Limited,http://statistics.data.gov.uk/id/local-authority/37UD,Leisure,LEIS,Leisure Management,LMAN,Liberty Leisure Limited / Kimberley Leisure Centre,Gas,1320,Utilities,Utility,22/04/2022,V006800,3430.05,The Kimberley School (EMET),7818.9,BAC004480
Liberty Leisure Limited,http://statistics.data.gov.uk/id/local-authority/37UD,Leisure,LEIS,Leisure Management,LMAN,Liberty Leisure Limited / Kimberley Leisure Centre,Water Charges,1410,Utilities,Utility,22/04/2022,V006801,4388.85,The Kimberley School (EMET),7818.9,BAC004480
Liberty Leisure Limited,http://statistics.data.gov.uk/id/local-authority/37UD,Leisure,LEIS,Leisure Management,LMAN,Liberty Leisure Limited / Bramcote Leisure Centre,Vending Provisions  - Purchase,3204,Catering,Cat,06/05/2022,V006818,252.9,Automatic Retailing northern Ltd,2250.24,BAC004515
Liberty Leisure Limited,http://statistics.data.gov.uk/id/local-authority/37UD,Leisure,LEIS,Leisure Management,LMAN,Liberty Leisure Limited / Bramcote Leisure Centre,Vending Provisions  - Purchase,3204,Catering,Cat,06/05/2022,V006818,827.62,Automatic Retailing northern Ltd,2250.24,BAC004515
Liberty Leisure Limited,http://statistics.data.gov.uk/id/local-authority/37UD,Leisure,LEIS,Leisure Management,LMAN,Liberty Leisure Limited / Kimberley Leisure Centre,Vending Provisions  - Purchase,3204,Catering,Cat,06/05/2022,V006854,661.47,Automatic Retailing northern Ltd,2250.24,BAC004515
Liberty Leisure Limited,http://statistics.data.gov.uk/id/local-authority/37UD,Leisure,LEIS,Leisure Management,LMAN,Liberty Leisure Limited / Kimberley Leisure Centre,Vending Provisions  - Purchase,3204,Catering,Cat,06/05/2022,V006854,210.44,Automatic Retailing northern Ltd,2250.24,BAC004515
Liberty Leisure Limited,http://statistics.data.gov.uk/id/local-authority/37UD,Leisure,LEIS,Leisure Management,LMAN,Liberty Leisure Limited / Chilwell Olympia,Repairs & Maintenance,1000,Central Pot,Central,06/05/2022,V006751,950,B.E. Walker,8739,BAC004521
Liberty Leisure Limited,http://statistics.data.gov.uk/id/local-authority/37UD,Leisure,LEIS,Leisure Management,LMAN,Liberty Leisure Limited / Chilwell Olympia,Repairs & Maintenance,1000,Central Pot,Central,06/05/2022,V006751,715,B.E. Walker,8739,BAC004521
Liberty Leisure Limited,http://statistics.data.gov.uk/id/local-authority/37UD,Leisure,LEIS,Leisure Management,LMAN,Liberty Leisure Limited / Chilwell Olympia,Repairs & Maintenance,1000,Central Pot,Central,06/05/2022,V006751,1185,B.E. Walker,8739,BAC004521
Liberty Leisure Limited,http://statistics.data.gov.uk/id/local-authority/37UD,Leisure,LEIS,Leisure Management,LMAN,Liberty Leisure Limited / Chilwell Olympia,Repairs & Maintenance,1000,Central Pot,Central,06/05/2022,V006751,480,B.E. Walker,8739,BAC004521
Liberty Leisure Limited,http://statistics.data.gov.uk/id/local-authority/37UD,Leisure,LEIS,Leisure Management,LMAN,Liberty Leisure Limited / Chilwell Olympia,Repairs & Maintenance,1000,Central Pot,Central,06/05/2022,V006751,1390,B.E. Walker,8739,BAC004521
Liberty Leisure Limited,http://statistics.data.gov.uk/id/local-authority/37UD,Leisure,LEIS,Leisure Management,LMAN,Liberty Leisure Limited / Chilwell Olympia,Repairs & Maintenance,1000,Central Pot,Central,06/05/2022,V006751,980,B.E. Walker,8739,BAC004521
Liberty Leisure Limited,http://statistics.data.gov.uk/id/local-authority/37UD,Leisure,LEIS,Leisure Management,LMAN,Liberty Leisure Limited / Chilwell Olympia,Repairs & Maintenance,1000,Central Pot,Central,06/05/2022,V006751,1189,B.E. Walker,8739,BAC004521
Liberty Leisure Limited,http://statistics.data.gov.uk/id/local-authority/37UD,Leisure,LEIS,Leisure Management,LMAN,Liberty Leisure Limited / Chilwell Olympia,Repairs & Maintenance,1000,Central Pot,Central,06/05/2022,V006751,870,B.E. Walker,8739,BAC004521
Liberty Leisure Limited,http://statistics.data.gov.uk/id/local-authority/37UD,Leisure,LEIS,Leisure Management,LMAN,Liberty Leisure Limited / Chilwell Olympia,Repairs & Maintenance,1000,Central Pot,Central,06/05/2022,V006751,980,B.E. Walker,8739,BAC004521
Liberty Leisure Limited,http://statistics.data.gov.uk/id/local-authority/37UD,Leisure,LEIS,Leisure Management,LMAN,Liberty Leisure Limited / Bramcote Leisure Centre,Uniforms,3221,Other Supplies & Services,OtherSS,06/05/2022,V006851,426.5,Behrens Group,1036.8,BAC004518
Liberty Leisure Limited,http://statistics.data.gov.uk/id/local-authority/37UD,Leisure,LEIS,Leisure Management,LMAN,Liberty Leisure Limited / Chilwell Olympia,Uniforms,3221,Other Supplies & Services,OtherSS,06/05/2022,V006857,437.5,Behrens Group,1036.8,BAC004518
Liberty Leisure Limited,http://statistics.data.gov.uk/id/local-authority/37UD,Leisure,LEIS,Leisure Management,LMAN,Liberty Leisure Limited / Kimberley Leisure Centre,Service Contracts,3056,Other Supplies & Services,OtherSS,06/05/2022,V006852,536.5,BG Energy Solutions,643.8,BAC004511
Liberty Leisure Limited,http://statistics.data.gov.uk/id/local-authority/37UD,Leisure,LEIS,Leisure Management,LMAN,Liberty Leisure Limited / Bramcote Leisure Centre,Chemicals,3152,Other Supplies & Services,OtherSS,06/05/2022,V006844,4400,Brenntag UK Limited,5280,BAC004513
Liberty Leisure Limited,http://statistics.data.gov.uk/id/local-authority/37UD,Leisure,LEIS,Leisure Management,LMAN,Liberty Leisure Limited / Liberty Leisure Development,Third Party Payments,4200,Other Third Party Payments,OtherTP,06/05/2022,V006845,132020,Broxtowe Borough Council,158424,BAC004494
Liberty Leisure Limited,http://statistics.data.gov.uk/id/local-authority/37UD,Leisure,LEIS,Leisure Management,LMAN,Liberty Leisure Limited / Chilwell Olympia,Electricity,1310,Utilities,Utility,06/05/2022,V006858,2036.44,Chilwell School,2818.17,BAC004505
Liberty Leisure Limited,http://statistics.data.gov.uk/id/local-authority/37UD,Leisure,LEIS,Leisure Management,LMAN,Liberty Leisure Limited / Chilwell Olympia,Water Charges,1410,Utilities,Utility,06/05/2022,V006858,781.73,Chilwell School,2818.17,BAC004505
Liberty Leisure Limited,http://statistics.data.gov.uk/id/local-authority/37UD,Leisure,LEIS,Leisure Management,LMAN,Liberty Leisure Limited / Kimberley Leisure Centre,Chemicals,3152,Other Supplies & Services,OtherSS,06/05/2022,V006865,469.17,Cryoservice Limited,576.39,BAC004496
Liberty Leisure Limited,http://statistics.data.gov.uk/id/local-authority/37UD,Leisure,LEIS,Leisure Management,LMAN,Liberty Leisure Limited / Kimberley Leisure Centre,Chemicals,3152,Other Supplies & Services,OtherSS,06/05/2022,V006835,11.16,Cryoservice Limited,576.39,BAC004496
Liberty Leisure Limited,http://statistics.data.gov.uk/id/local-authority/37UD,Leisure,LEIS,Leisure Management,LMAN,Liberty Leisure Limited / Liberty Leisure Development,Course & Examination Fees,720,Indirect Employee Exp Oncosts,Oncosts,06/05/2022,V006823,399.5,HFE,955,BAC004527
Liberty Leisure Limited,http://statistics.data.gov.uk/id/local-authority/37UD,Leisure,LEIS,Leisure Management,LMAN,Liberty Leisure Limited / Liberty Leisure Development,Course & Examination Fees,720,Indirect Employee Exp Oncosts,Oncosts,06/05/2022,V006823,475.6,HFE,955,BAC004527
Liberty Leisure Limited,http://statistics.data.gov.uk/id/local-authority/37UD,Leisure,LEIS,Leisure Management,LMAN,Liberty Leisure Limited / Bramcote Leisure Centre,Repairs & Maintenance,1000,Central Pot,Central,06/05/2022,V006843,89.89,J P Carty Limited,385.07,BAC004495
Liberty Leisure Limited,http://statistics.data.gov.uk/id/local-authority/37UD,Leisure,LEIS,Leisure Management,LMAN,Liberty Leisure Limited / Chilwell Olympia,Repairs & Maintenance,1000,Central Pot,Central,06/05/2022,V006839,231,J P Carty Limited,385.07,BAC004495
Liberty Leisure Limited,http://statistics.data.gov.uk/id/local-authority/37UD,Leisure,LEIS,Leisure Management,LMAN,Liberty Leisure Limited / Kimberley Leisure Centre,Repairs & Maintenance,1000,Central Pot,Central,06/05/2022,V006853,12684.5,JW Simpkin,15221.4,BAC004526
Liberty Leisure Limited,http://statistics.data.gov.uk/id/local-authority/37UD,Leisure,LEIS,Leisure Management,LMAN,Liberty Leisure Limited / Liberty Leisure Development,Course & Examination Fees,720,Indirect Employee Exp Oncosts,Oncosts,06/05/2022,V006821,750,LFX,750,BAC004520
Liberty Leisure Limited,http://statistics.data.gov.uk/id/local-authority/37UD,Leisure,LEIS,Leisure Management,LMAN,Liberty Leisure Limited / Bramcote Leisure Centre,Repairs & Maintenance,1000,Central Pot,Central,06/05/2022,V006859,180,M A Technical Services Ltd,2004,BAC004498
Liberty Leisure Limited,http://statistics.data.gov.uk/id/local-authority/37UD,Leisure,LEIS,Leisure Management,LMAN,Liberty Leisure Limited / Kimberley Leisure Centre,Repairs & Maintenance,1000,Central Pot,Central,06/05/2022,V006837,580,M A Technical Services Ltd,2004,BAC004498
Liberty Leisure Limited,http://statistics.data.gov.uk/id/local-authority/37UD,Leisure,LEIS,Leisure Management,LMAN,Liberty Leisure Limited / Kimberley Leisure Centre,Repairs & Maintenance,1000,Central Pot,Central,06/05/2022,V006838,560,M A Technical Services Ltd,2004,BAC004498
Liberty Leisure Limited,http://statistics.data.gov.uk/id/local-authority/37UD,Leisure,LEIS,Leisure Management,LMAN,Liberty Leisure Limited / Kimberley Leisure Centre,Repairs & Maintenance,1000,Central Pot,Central,06/05/2022,V006864,350,M A Technical Services Ltd,2004,BAC004498
Liberty Leisure Limited,http://statistics.data.gov.uk/id/local-authority/37UD,Leisure,LEIS,Leisure Management,LMAN,Liberty Leisure Limited / Kimberley Leisure Centre,Cleaning Materials,1510,Other Prem,OthPrem,06/05/2022,V006855,100.33,Mark-Douglas Industrial Supplies Limited,967.52,BAC004506
Liberty Leisure Limited,http://statistics.data.gov.uk/id/local-authority/37UD,Leisure,LEIS,Leisure Management,LMAN,Liberty Leisure Limited / Kimberley Leisure Centre,Cleaning Materials,1510,Other Prem,OthPrem,06/05/2022,V006856,705.95,Mark-Douglas Industrial Supplies Limited,967.52,BAC004506
Liberty Leisure Limited,http://statistics.data.gov.uk/id/local-authority/37UD,Culture and Heritage,CULT,Heritage,LHER,Liberty Leisure Limited / DHL Museum,Licences,3613,Other Supplies & Services,OtherSS,06/05/2022,V006847,222.5,MODES Users Association,267,BAC004516
Liberty Leisure Limited,http://statistics.data.gov.uk/id/local-authority/37UD,Culture and Heritage,CULT,Events,LEVE,Liberty Leisure Limited / Events,Basic Pay,10,Employee Direct Costs,Direct,06/05/2022,V006866,500,NinaSmithMusic,2525,BAC004525
Liberty Leisure Limited,http://statistics.data.gov.uk/id/local-authority/37UD,Culture and Heritage,CULT,Events,LEVE,Liberty Leisure Limited / Events,Basic Pay,10,Employee Direct Costs,Direct,06/05/2022,V006866,1000,NinaSmithMusic,2525,BAC004525
Liberty Leisure Limited,http://statistics.data.gov.uk/id/local-authority/37UD,Culture and Heritage,CULT,Events,LEVE,Liberty Leisure Limited / Events,Basic Pay,10,Employee Direct Costs,Direct,06/05/2022,V006866,800,NinaSmithMusic,2525,BAC004525
Liberty Leisure Limited,http://statistics.data.gov.uk/id/local-authority/37UD,Culture and Heritage,CULT,Events,LEVE,Liberty Leisure Limited / Events,Basic Pay,10,Employee Direct Costs,Direct,06/05/2022,V006866,225,NinaSmithMusic,2525,BAC004525
Liberty Leisure Limited,http://statistics.data.gov.uk/id/local-authority/37UD,Leisure,LEIS,Leisure Management,LMAN,Liberty Leisure Limited / Bramcote Leisure Centre,Vending Provisions  - Purchase,3204,Catering,Cat,06/05/2022,V006840,45.9,Rijo 42 Machines Ltd,384.8,BAC004524
Liberty Leisure Limited,http://statistics.data.gov.uk/id/local-authority/37UD,Leisure,LEIS,Leisure Management,LMAN,Liberty Leisure Limited / Bramcote Leisure Centre,Vending Provisions  - Purchase,3204,Catering,Cat,06/05/2022,V006840,6.5,Rijo 42 Machines Ltd,384.8,BAC004524
Liberty Leisure Limited,http://statistics.data.gov.uk/id/local-authority/37UD,Leisure,LEIS,Leisure Management,LMAN,Liberty Leisure Limited / Bramcote Leisure Centre,Vending Provisions  - Purchase,3204,Catering,Cat,06/05/2022,V006840,321.92,Rijo 42 Machines Ltd,384.8,BAC004524
Liberty Leisure Limited,http://statistics.data.gov.uk/id/local-authority/37UD,Leisure,LEIS,Leisure Management,LMAN,Liberty Leisure Limited / Bramcote Leisure Centre,Sports Equipment,3002,Equipment,Equip,06/05/2022,V006816,15,Technogym UK Ltd,3645.46,BAC004502
Liberty Leisure Limited,http://statistics.data.gov.uk/id/local-authority/37UD,Leisure,LEIS,Leisure Management,LMAN,Liberty Leisure Limited / Bramcote Leisure Centre,Sports Equipment,3002,Equipment,Equip,06/05/2022,V006816,7.48,Technogym UK Ltd,3645.46,BAC004502
Liberty Leisure Limited,http://statistics.data.gov.uk/id/local-authority/37UD,Leisure,LEIS,Leisure Management,LMAN,Liberty Leisure Limited / Kimberley Leisure Centre,Repairs & Maintenance,1000,Central Pot,Central,06/05/2022,V006828,15,Technogym UK Ltd,3645.46,BAC004502
Liberty Leisure Limited,http://statistics.data.gov.uk/id/local-authority/37UD,Leisure,LEIS,Leisure Management,LMAN,Liberty Leisure Limited / Kimberley Leisure Centre,Repairs & Maintenance,1000,Central Pot,Central,06/05/2022,V006828,19.88,Technogym UK Ltd,3645.46,BAC004502
Liberty Leisure Limited,http://statistics.data.gov.uk/id/local-authority/37UD,Leisure,LEIS,Leisure Management,LMAN,Liberty Leisure Limited / Kimberley Leisure Centre,Repairs & Maintenance,1000,Central Pot,Central,06/05/2022,V006828,22.28,Technogym UK Ltd,3645.46,BAC004502
Liberty Leisure Limited,http://statistics.data.gov.uk/id/local-authority/37UD,Leisure,LEIS,Leisure Management,LMAN,Liberty Leisure Limited / Kimberley Leisure Centre,Repairs & Maintenance,1000,Central Pot,Central,06/05/2022,V006828,16.84,Technogym UK Ltd,3645.46,BAC004502
Liberty Leisure Limited,http://statistics.data.gov.uk/id/local-authority/37UD,Leisure,LEIS,Leisure Management,LMAN,Liberty Leisure Limited / Kimberley Leisure Centre,Repairs & Maintenance,1000,Central Pot,Central,06/05/2022,V006828,1.4,Technogym UK Ltd,3645.46,BAC004502
Liberty Leisure Limited,http://statistics.data.gov.uk/id/local-authority/37UD,Leisure,LEIS,Leisure Management,LMAN,Liberty Leisure Limited / Kimberley Leisure Centre,Licences,3613,Other Supplies & Services,OtherSS,06/05/2022,V006827,2940,Technogym UK Ltd,3645.46,BAC004502
Liberty Leisure Limited,http://statistics.data.gov.uk/id/local-authority/37UD,Leisure,LEIS,Leisure Management,LMAN,Liberty Leisure Limited / Kimberley Leisure Centre,Gas,1320,Utilities,Utility,06/05/2022,V006862,3406.97,The Kimberley School (EMET),5973.78,BAC004503
Liberty Leisure Limited,http://statistics.data.gov.uk/id/local-authority/37UD,Leisure,LEIS,Leisure Management,LMAN,Liberty Leisure Limited / Kimberley Leisure Centre,Water Charges,1410,Utilities,Utility,06/05/2022,V006863,2566.81,The Kimberley School (EMET),5973.78,BAC004503
Liberty Leisure Limited,http://statistics.data.gov.uk/id/local-authority/37UD,Culture and Heritage,CULT,Heritage,LHER,Liberty Leisure Limited / DHL Museum,Electricity,1310,Utilities,Utility,06/05/2022,V006848,539.41,TotalEnergies Gas & Power Ltd,13845.97,BAC004512
Liberty Leisure Limited,http://statistics.data.gov.uk/id/local-authority/37UD,Leisure,LEIS,Leisure Management,LMAN,Liberty Leisure Limited / Bramcote Leisure Centre,Electricity,1310,Utilities,Utility,06/05/2022,V006825,2066.53,TotalEnergies Gas & Power Ltd,13845.97,BAC004512
Liberty Leisure Limited,http://statistics.data.gov.uk/id/local-authority/37UD,Leisure,LEIS,Leisure Management,LMAN,Liberty Leisure Limited / Bramcote Leisure Centre,Gas,1320,Utilities,Utility,06/05/2022,V006824,4726.56,TotalEnergies Gas & Power Ltd,13845.97,BAC004512
Liberty Leisure Limited,http://statistics.data.gov.uk/id/local-authority/37UD,Leisure,LEIS,Leisure Management,LMAN,Liberty Leisure Limited / Kimberley Leisure Centre,Electricity,1310,Utilities,Utility,06/05/2022,V006834,4205.8,TotalEnergies Gas & Power Ltd,13845.97,BAC004512
Liberty Leisure Limited,http://statistics.data.gov.uk/id/local-authority/37UD,Leisure,LEIS,Leisure Management,LMAN,Liberty Leisure Limited / Chilwell Olympia,Repairs & Maintenance,1000,Central Pot,Central,06/05/2022,V006817,234,Wattbike Ltd,280.8,BAC004514
Liberty Leisure Limited,http://statistics.data.gov.uk/id/local-authority/37UD,Leisure,LEIS,Leisure Management,LMAN,Liberty Leisure Limited / Bramcote Leisure Centre,Course & Examination Fees,720,Indirect Employee Exp Oncosts,Oncosts,20/05/2022,V006872,705,Athleticum Morelli Enterprises Ltd,705,BAC004546
Liberty Leisure Limited,http://statistics.data.gov.uk/id/local-authority/37UD,Leisure,LEIS,Leisure Management,LMAN,Liberty Leisure Limited / Chilwell Olympia,Repairs & Maintenance,1000,Central Pot,Central,20/05/2022,V006875,355,Attenborough Industrial Doors,426,BAC004533
Liberty Leisure Limited,http://statistics.data.gov.uk/id/local-authority/37UD,Leisure,LEIS,Leisure Management,LMAN,Liberty Leisure Limited / Bramcote Leisure Centre,Uniforms,3221,Other Supplies & Services,OtherSS,20/05/2022,V006870,292.5,Behrens Group,351,BAC004548
Liberty Leisure Limited,http://statistics.data.gov.uk/id/local-authority/37UD,Leisure,LEIS,Leisure Management,LMAN,Liberty Leisure Limited / Kimberley Leisure Centre,Repairs & Maintenance,1000,Central Pot,Central,20/05/2022,V006877,300,BG Energy Solutions,360,BAC004543
Liberty Leisure Limited,http://statistics.data.gov.uk/id/local-authority/37UD,Leisure,LEIS,Leisure Management,LMAN,Liberty Leisure Limited / Bramcote Leisure Centre,Repairs & Maintenance,1000,Central Pot,Central,20/05/2022,V006876,210,Deltron Lifts Limited,252,BAC004540
Liberty Leisure Limited,http://statistics.data.gov.uk/id/local-authority/37UD,Leisure,LEIS,Leisure Management,LMAN,Liberty Leisure Limited / Bramcote Leisure Centre,Repairs & Maintenance,1000,Central Pot,Central,20/05/2022,V006895,480,Geoff Green Joinery,576,BAC004538
Liberty Leisure Limited,http://statistics.data.gov.uk/id/local-authority/37UD,Leisure,LEIS,Leisure Management,LMAN,Liberty Leisure Limited / Liberty Leisure Development,Licences,3613,Other Supplies & Services,OtherSS,20/05/2022,V006869,2600,Gladstone MRM Limited,3120,BAC004551
Liberty Leisure Limited,http://statistics.data.gov.uk/id/local-authority/37UD,Leisure,LEIS,Leisure Management,LMAN,Liberty Leisure Limited / Bramcote Leisure Centre,Repairs & Maintenance,1000,Central Pot,Central,20/05/2022,V006881,313.28,Local Vending,375.93,BAC004537
Liberty Leisure Limited,http://statistics.data.gov.uk/id/local-authority/37UD,Leisure,LEIS,Leisure Management,LMAN,Liberty Leisure Limited / Bramcote Leisure Centre,Repairs & Maintenance,1000,Central Pot,Central,20/05/2022,V006889,608.14,Long Eaton Glass,729.77,BAC004534
Liberty Leisure Limited,http://statistics.data.gov.uk/id/local-authority/37UD,Leisure,LEIS,Leisure Management,LMAN,Liberty Leisure Limited / Bramcote Leisure Centre,Cleaning Materials,1510,Other Prem,OthPrem,20/05/2022,V006891,97.18,Mark-Douglas Industrial Supplies Limited,421.93,BAC004539
Liberty Leisure Limited,http://statistics.data.gov.uk/id/local-authority/37UD,Leisure,LEIS,Leisure Management,LMAN,Liberty Leisure Limited / Bramcote Leisure Centre,Cleaning Materials,1510,Other Prem,OthPrem,20/05/2022,V006891,39.45,Mark-Douglas Industrial Supplies Limited,421.93,BAC004539
Liberty Leisure Limited,http://statistics.data.gov.uk/id/local-authority/37UD,Leisure,LEIS,Leisure Management,LMAN,Liberty Leisure Limited / Bramcote Leisure Centre,Cleaning Materials,1510,Other Prem,OthPrem,20/05/2022,V006891,39.56,Mark-Douglas Industrial Supplies Limited,421.93,BAC004539
Liberty Leisure Limited,http://statistics.data.gov.uk/id/local-authority/37UD,Leisure,LEIS,Leisure Management,LMAN,Liberty Leisure Limited / Bramcote Leisure Centre,Cleaning Materials,1510,Other Prem,OthPrem,20/05/2022,V006891,17.61,Mark-Douglas Industrial Supplies Limited,421.93,BAC004539
Liberty Leisure Limited,http://statistics.data.gov.uk/id/local-authority/37UD,Leisure,LEIS,Leisure Management,LMAN,Liberty Leisure Limited / Bramcote Leisure Centre,Cleaning Materials,1510,Other Prem,OthPrem,20/05/2022,V006891,11.82,Mark-Douglas Industrial Supplies Limited,421.93,BAC004539
Liberty Leisure Limited,http://statistics.data.gov.uk/id/local-authority/37UD,Leisure,LEIS,Leisure Management,LMAN,Liberty Leisure Limited / Bramcote Leisure Centre,Cleaning Materials,1510,Other Prem,OthPrem,20/05/2022,V006891,77,Mark-Douglas Industrial Supplies Limited,421.93,BAC004539
Liberty Leisure Limited,http://statistics.data.gov.uk/id/local-authority/37UD,Leisure,LEIS,Leisure Management,LMAN,Liberty Leisure Limited / Bramcote Leisure Centre,Cleaning Materials,1510,Other Prem,OthPrem,20/05/2022,V006891,11.82,Mark-Douglas Industrial Supplies Limited,421.93,BAC004539
Liberty Leisure Limited,http://statistics.data.gov.uk/id/local-authority/37UD,Leisure,LEIS,Leisure Management,LMAN,Liberty Leisure Limited / Bramcote Leisure Centre,Cleaning Materials,1510,Other Prem,OthPrem,20/05/2022,V006891,17.61,Mark-Douglas Industrial Supplies Limited,421.93,BAC004539
Liberty Leisure Limited,http://statistics.data.gov.uk/id/local-authority/37UD,Leisure,LEIS,Leisure Management,LMAN,Liberty Leisure Limited / Bramcote Leisure Centre,Cleaning Materials,1510,Other Prem,OthPrem,20/05/2022,V006891,39.56,Mark-Douglas Industrial Supplies Limited,421.93,BAC004539
Liberty Leisure Limited,http://statistics.data.gov.uk/id/local-authority/37UD,Leisure,LEIS,Leisure Management,LMAN,Liberty Leisure Limited / Kimberley Leisure Centre,Service Contracts,3056,Other Supplies & Services,OtherSS,20/05/2022,V006893,2193.29,Pennine Pneumatic Services Ltd,2631.95,BAC004550
Liberty Leisure Limited,http://statistics.data.gov.uk/id/local-authority/37UD,Leisure,LEIS,Leisure Management,LMAN,Liberty Leisure Limited / Liberty Leisure Development,Subscriptions,3730,Other Supplies & Services,OtherSS,20/05/2022,V006871,81.69,Personnel Checks,364,BAC004552
Liberty Leisure Limited,http://statistics.data.gov.uk/id/local-authority/37UD,Leisure,LEIS,Leisure Management,LMAN,Liberty Leisure Limited / Liberty Leisure Development,Subscriptions,3730,Other Supplies & Services,OtherSS,20/05/2022,V006871,266,Personnel Checks,364,BAC004552
Liberty Leisure Limited,http://statistics.data.gov.uk/id/local-authority/37UD,Leisure,LEIS,Leisure Management,LMAN,Liberty Leisure Limited / Bramcote Leisure Centre,Repairs & Maintenance,1000,Central Pot,Central,20/05/2022,V006880,120,Pitch and Track Ltd,2551.2,BAC004541
Liberty Leisure Limited,http://statistics.data.gov.uk/id/local-authority/37UD,Leisure,LEIS,Leisure Management,LMAN,Liberty Leisure Limited / Chilwell Olympia,Repairs & Maintenance,1000,Central Pot,Central,20/05/2022,V006874,2106,Pitch and Track Ltd,2551.2,BAC004541
Liberty Leisure Limited,http://statistics.data.gov.uk/id/local-authority/37UD,Leisure,LEIS,Leisure Management,LMAN,Liberty Leisure Limited / Bramcote Leisure Centre,Repairs & Maintenance,1000,Central Pot,Central,20/05/2022,V006879,-100,Pitch and Track Ltd,2551.2,BAC004541
Liberty Leisure Limited,http://statistics.data.gov.uk/id/local-authority/37UD,Leisure,LEIS,Leisure Management,LMAN,Liberty Leisure Limited / Bramcote Leisure Centre,Legionella Testing,1042,Central Pot,Central,20/05/2022,V006873,87,Sterilizing Services,382.8,BAC004536
Liberty Leisure Limited,http://statistics.data.gov.uk/id/local-authority/37UD,Leisure,LEIS,Leisure Management,LMAN,Liberty Leisure Limited / Kimberley Leisure Centre,Legionella Testing,1042,Central Pot,Central,20/05/2022,V006882,58,Sterilizing Services,382.8,BAC004536
Liberty Leisure Limited,http://statistics.data.gov.uk/id/local-authority/37UD,Leisure,LEIS,Leisure Management,LMAN,Liberty Leisure Limited / Kimberley Leisure Centre,Legionella Testing,1042,Central Pot,Central,20/05/2022,V006883,58,Sterilizing Services,382.8,BAC004536
Liberty Leisure Limited,http://statistics.data.gov.uk/id/local-authority/37UD,Leisure,LEIS,Leisure Management,LMAN,Liberty Leisure Limited / Kimberley Leisure Centre,Legionella Testing,1042,Central Pot,Central,20/05/2022,V006884,58,Sterilizing Services,382.8,BAC004536
Liberty Leisure Limited,http://statistics.data.gov.uk/id/local-authority/37UD,Leisure,LEIS,Leisure Management,LMAN,Liberty Leisure Limited / Kimberley Leisure Centre,Legionella Testing,1042,Central Pot,Central,20/05/2022,V006885,58,Sterilizing Services,382.8,BAC004536
Liberty Leisure Limited,http://statistics.data.gov.uk/id/local-authority/37UD,Leisure,LEIS,Leisure Management,LMAN,Liberty Leisure Limited / Bramcote Leisure Centre,Electricity,1310,Utilities,Utility,20/05/2022,V006892,1915.31,TotalEnergies Gas & Power Ltd,15647.22,BAC004544
Liberty Leisure Limited,http://statistics.data.gov.uk/id/local-authority/37UD,Leisure,LEIS,Leisure Management,LMAN,Liberty Leisure Limited / Bramcote Leisure Centre,Gas,1320,Utilities,Utility,20/05/2022,V006888,7254.15,TotalEnergies Gas & Power Ltd,15647.22,BAC004544
Liberty Leisure Limited,http://statistics.data.gov.uk/id/local-authority/37UD,Leisure,LEIS,Leisure Management,LMAN,Liberty Leisure Limited / Kimberley Leisure Centre,Electricity,1310,Utilities,Utility,20/05/2022,V006894,3869.89,TotalEnergies Gas & Power Ltd,15647.22,BAC004544
Liberty Leisure Limited,http://statistics.data.gov.uk/id/local-authority/37UD,Culture and Heritage,CULT,Events,LEVE,Liberty Leisure Limited / Events,Promotion of The Arts,3066,Office Supplies,Offsup,06/06/2022,V006905,0,Broxtowe Borough Council,466,BAC004553
Liberty Leisure Limited,http://statistics.data.gov.uk/id/local-authority/37UD,Culture and Heritage,CULT,Events,LEVE,Liberty Leisure Limited / Events,Promotion of The Arts,3066,Office Supplies,Offsup,06/06/2022,V006905,466,Broxtowe Borough Council,466,BAC004553
Liberty Leisure Limited,http://statistics.data.gov.uk/id/local-authority/37UD,Leisure,LEIS,Leisure Management,LMAN,Liberty Leisure Limited / Bramcote Leisure Centre,Service Contracts,3056,Other Supplies & Services,OtherSS,06/06/2022,V006907,417.73,NBE Fire and Security Limited,501.28,BAC004561
Liberty Leisure Limited,http://statistics.data.gov.uk/id/local-authority/37UD,Leisure,LEIS,Leisure Management,LMAN,Liberty Leisure Limited / Bramcote Leisure Centre,Repairs & Maintenance,1000,Central Pot,Central,06/06/2022,V006906,360,Pumptec - Pump and Valve Repairs,432,BAC004557
Liberty Leisure Limited,http://statistics.data.gov.uk/id/local-authority/37UD,Leisure,LEIS,Leisure Management,LMAN,Liberty Leisure Limited / Bramcote Leisure Centre,Course & Examination Fees,720,Indirect Employee Exp Oncosts,Oncosts,06/06/2022,V006898,270,Swimbag Ltd,699,BAC004563
Liberty Leisure Limited,http://statistics.data.gov.uk/id/local-authority/37UD,Leisure,LEIS,Leisure Management,LMAN,Liberty Leisure Limited / Bramcote Leisure Centre,Course & Examination Fees,720,Indirect Employee Exp Oncosts,Oncosts,06/06/2022,V006898,375,Swimbag Ltd,699,BAC004563
Liberty Leisure Limited,http://statistics.data.gov.uk/id/local-authority/37UD,Leisure,LEIS,Leisure Development,LDEV,Liberty Leisure Limited / Chilwell Olympia,Advertising,3412,Advertising,Advert,06/06/2022,V006917,211,Targettip T/A Phase,549.6,BAC004555
Liberty Leisure Limited,http://statistics.data.gov.uk/id/local-authority/37UD,Leisure,LEIS,Leisure Development,LDEV,Liberty Leisure Limited / Chilwell Olympia,Advertising,3412,Advertising,Advert,06/06/2022,V006917,247,Targettip T/A Phase,549.6,BAC004555
Liberty Leisure Limited,http://statistics.data.gov.uk/id/local-authority/37UD,Leisure,LEIS,Leisure Management,LMAN,Liberty Leisure Limited / Bramcote Leisure Centre,Sewerage Charges,1420,Utilities,Utility,06/06/2022,V006912,6348.19,Waterplus,6355.27,BAC004562
Liberty Leisure Limited,http://statistics.data.gov.uk/id/local-authority/37UD,Leisure,LEIS,Leisure Management,LMAN,Liberty Leisure Limited / Chilwell Olympia,Water Charges,1410,Utilities,Utility,06/06/2022,V006913,7.08,Waterplus,6355.27,BAC004562
Liberty Leisure Limited,http://statistics.data.gov.uk/id/local-authority/37UD,Leisure,LEIS,Leisure Management,LMAN,Liberty Leisure Limited / Bramcote Leisure Centre,Vending Provisions  - Purchase,3204,Catering,Cat,17/06/2022,V006918,52.44,Automatic Retailing northern Ltd,2239.17,BAC004588
Liberty Leisure Limited,http://statistics.data.gov.uk/id/local-authority/37UD,Leisure,LEIS,Leisure Management,LMAN,Liberty Leisure Limited / Bramcote Leisure Centre,Vending Provisions  - Purchase,3204,Catering,Cat,17/06/2022,V006918,1011.09,Automatic Retailing northern Ltd,2239.17,BAC004588
Liberty Leisure Limited,http://statistics.data.gov.uk/id/local-authority/37UD,Leisure,LEIS,Leisure Management,LMAN,Liberty Leisure Limited / Kimberley Leisure Centre,Vending Provisions  - Purchase,3204,Catering,Cat,17/06/2022,V006928,99.18,Automatic Retailing northern Ltd,2239.17,BAC004588
Liberty Leisure Limited,http://statistics.data.gov.uk/id/local-authority/37UD,Leisure,LEIS,Leisure Management,LMAN,Liberty Leisure Limited / Kimberley Leisure Centre,Vending Provisions  - Purchase,3204,Catering,Cat,17/06/2022,V006928,728.53,Automatic Retailing northern Ltd,2239.17,BAC004588
Liberty Leisure Limited,http://statistics.data.gov.uk/id/local-authority/37UD,Leisure,LEIS,Leisure Management,LMAN,Liberty Leisure Limited / Bramcote Leisure Centre,Uniforms,3221,Other Supplies & Services,OtherSS,17/06/2022,V006951,238.94,Behrens Group,286.73,BAC004594
Liberty Leisure Limited,http://statistics.data.gov.uk/id/local-authority/37UD,Leisure,LEIS,Leisure Management,LMAN,Liberty Leisure Limited / Liberty Leisure Development,Third Party Payments,4200,Other Third Party Payments,OtherTP,17/06/2022,V006933,132020,Broxtowe Borough Council,158893.84,BAC004569
Liberty Leisure Limited,http://statistics.data.gov.uk/id/local-authority/37UD,Culture and Heritage,CULT,Events,LEVE,Liberty Leisure Limited / Events,Promotion of The Arts,3066,Office Supplies,Offsup,17/06/2022,V006950,265.74,Broxtowe Borough Council,158893.84,BAC004569
Liberty Leisure Limited,http://statistics.data.gov.uk/id/local-authority/37UD,Culture and Heritage,CULT,Events,LEVE,Liberty Leisure Limited / Events,Promotion of The Arts,3066,Office Supplies,Offsup,17/06/2022,V006950,204.1,Broxtowe Borough Council,158893.84,BAC004569
Liberty Leisure Limited,http://statistics.data.gov.uk/id/local-authority/37UD,Leisure,LEIS,Leisure Management,LMAN,Liberty Leisure Limited / Kimberley Leisure Centre,Service Contracts,3056,Other Supplies & Services,OtherSS,17/06/2022,V006914,562,Complete Cooling Services Limited,674.4,BAC004570
Liberty Leisure Limited,http://statistics.data.gov.uk/id/local-authority/37UD,Culture and Heritage,CULT,Events,LEVE,Liberty Leisure Limited / Events,Promotion of The Arts,3066,Office Supplies,Offsup,17/06/2022,V006958,375,Cranberry Flick,375,BAC004606
Liberty Leisure Limited,http://statistics.data.gov.uk/id/local-authority/37UD,Leisure,LEIS,Leisure Management,LMAN,Liberty Leisure Limited / Kimberley Leisure Centre,Chemicals,3152,Other Supplies & Services,OtherSS,17/06/2022,V006930,755.79,Cryoservice Limited,1327.76,BAC004571
Liberty Leisure Limited,http://statistics.data.gov.uk/id/local-authority/37UD,Leisure,LEIS,Leisure Management,LMAN,Liberty Leisure Limited / Kimberley Leisure Centre,Chemicals,3152,Other Supplies & Services,OtherSS,17/06/2022,V006954,339.88,Cryoservice Limited,1327.76,BAC004571
Liberty Leisure Limited,http://statistics.data.gov.uk/id/local-authority/37UD,Leisure,LEIS,Leisure Management,LMAN,Liberty Leisure Limited / Kimberley Leisure Centre,Chemicals,3152,Other Supplies & Services,OtherSS,17/06/2022,V006908,10.8,Cryoservice Limited,1327.76,BAC004571
Liberty Leisure Limited,http://statistics.data.gov.uk/id/local-authority/37UD,Culture and Heritage,CULT,Events,LEVE,Liberty Leisure Limited / DHL Museum,Promotion of The Arts,3066,Office Supplies,Offsup,17/06/2022,V006964,400,D.H. Lawrence Society,400,BAC004591
Liberty Leisure Limited,http://statistics.data.gov.uk/id/local-authority/37UD,Culture and Heritage,CULT,Events,LEVE,Liberty Leisure Limited / Events,Promotion of The Arts,3066,Office Supplies,Offsup,17/06/2022,V006959,400,Deep Down Brass,400,BAC004607
Liberty Leisure Limited,http://statistics.data.gov.uk/id/local-authority/37UD,Culture and Heritage,CULT,Events,LEVE,Liberty Leisure Limited / Events,Promotion of The Arts,3066,Office Supplies,Offsup,17/06/2022,V006960,500,Dj expression,500,BAC004590
Liberty Leisure Limited,http://statistics.data.gov.uk/id/local-authority/37UD,Leisure,LEIS,Leisure Management,LMAN,Liberty Leisure Limited / Bramcote Leisure Centre,Repairs & Maintenance,1000,Central Pot,Central,17/06/2022,V006945,1600,EME Power Systems,1920,BAC004597
Liberty Leisure Limited,http://statistics.data.gov.uk/id/local-authority/37UD,Leisure,LEIS,Leisure Management,LMAN,Liberty Leisure Limited / Chilwell Olympia,Advertising,3412,Advertising,Advert,17/06/2022,V006946,550,Fast Graphics,660,BAC004599
Liberty Leisure Limited,http://statistics.data.gov.uk/id/local-authority/37UD,Leisure,LEIS,Leisure Management,LMAN,Liberty Leisure Limited / Bramcote Leisure Centre,Advertising,3412,Advertising,Advert,17/06/2022,V006944,230,G & S Sign Services Ltd,276,BAC004600
Liberty Leisure Limited,http://statistics.data.gov.uk/id/local-authority/37UD,Leisure,LEIS,Leisure Management,LMAN,Liberty Leisure Limited / Liberty Leisure Development,Licences,3613,Other Supplies & Services,OtherSS,17/06/2022,V006938,3250,Gladstone MRM Limited,3900,BAC004602
Liberty Leisure Limited,http://statistics.data.gov.uk/id/local-authority/37UD,Leisure,LEIS,Leisure Management,LMAN,Liberty Leisure Limited / Liberty Leisure Development,Professional Fees,730,Indirect Employee Exp Oncosts,Oncosts,17/06/2022,V006936,4500,Haines Watts Nottingham Ltd,5400,BAC004596
Liberty Leisure Limited,http://statistics.data.gov.uk/id/local-authority/37UD,Leisure,LEIS,Leisure Management,LMAN,Liberty Leisure Limited / Bramcote Leisure Centre,Cleaning Materials,1510,Other Prem,OthPrem,17/06/2022,V006931,15.8,J P Lennard Limited,324.66,BAC004572
Liberty Leisure Limited,http://statistics.data.gov.uk/id/local-authority/37UD,Leisure,LEIS,Leisure Management,LMAN,Liberty Leisure Limited / Bramcote Leisure Centre,Cleaning Materials,1510,Other Prem,OthPrem,17/06/2022,V006931,47,J P Lennard Limited,324.66,BAC004572
Liberty Leisure Limited,http://statistics.data.gov.uk/id/local-authority/37UD,Leisure,LEIS,Leisure Management,LMAN,Liberty Leisure Limited / Bramcote Leisure Centre,Cleaning Materials,1510,Other Prem,OthPrem,17/06/2022,V006931,130,J P Lennard Limited,324.66,BAC004572
Liberty Leisure Limited,http://statistics.data.gov.uk/id/local-authority/37UD,Leisure,LEIS,Leisure Management,LMAN,Liberty Leisure Limited / Kimberley Leisure Centre,Pool Equipment Purchase,3020,Other Supplies & Services,OtherSS,17/06/2022,V006927,61.95,J P Lennard Limited,324.66,BAC004572
Liberty Leisure Limited,http://statistics.data.gov.uk/id/local-authority/37UD,Leisure,LEIS,Leisure Management,LMAN,Liberty Leisure Limited / Kimberley Leisure Centre,Pool Equipment Purchase,3020,Other Supplies & Services,OtherSS,17/06/2022,V006927,15.8,J P Lennard Limited,324.66,BAC004572
Liberty Leisure Limited,http://statistics.data.gov.uk/id/local-authority/37UD,Leisure,LEIS,Leisure Management,LMAN,Liberty Leisure Limited / Bramcote Leisure Centre,Cleaning Materials,1510,Other Prem,OthPrem,17/06/2022,V006942,96.25,Mark-Douglas Industrial Supplies Limited,439.99,BAC004579
Liberty Leisure Limited,http://statistics.data.gov.uk/id/local-authority/37UD,Leisure,LEIS,Leisure Management,LMAN,Liberty Leisure Limited / Bramcote Leisure Centre,Cleaning Materials,1510,Other Prem,OthPrem,17/06/2022,V006942,39.56,Mark-Douglas Industrial Supplies Limited,439.99,BAC004579
Liberty Leisure Limited,http://statistics.data.gov.uk/id/local-authority/37UD,Leisure,LEIS,Leisure Management,LMAN,Liberty Leisure Limited / Bramcote Leisure Centre,Cleaning Materials,1510,Other Prem,OthPrem,17/06/2022,V006942,28.72,Mark-Douglas Industrial Supplies Limited,439.99,BAC004579
Liberty Leisure Limited,http://statistics.data.gov.uk/id/local-authority/37UD,Leisure,LEIS,Leisure Management,LMAN,Liberty Leisure Limited / Bramcote Leisure Centre,Cleaning Materials,1510,Other Prem,OthPrem,17/06/2022,V006942,81.26,Mark-Douglas Industrial Supplies Limited,439.99,BAC004579
Liberty Leisure Limited,http://statistics.data.gov.uk/id/local-authority/37UD,Leisure,LEIS,Leisure Management,LMAN,Liberty Leisure Limited / Kimberley Leisure Centre,Cleaning Materials,1510,Other Prem,OthPrem,17/06/2022,V006952,120.87,Mark-Douglas Industrial Supplies Limited,439.99,BAC004579
Liberty Leisure Limited,http://statistics.data.gov.uk/id/local-authority/37UD,Culture and Heritage,CULT,Heritage,LHER,Liberty Leisure Limited / DHL Museum,Repairs & Maintenance,1000,Central Pot,Central,17/06/2022,V006963,330,Marlowe Fire & Security,396,BAC004593
Liberty Leisure Limited,http://statistics.data.gov.uk/id/local-authority/37UD,Culture and Heritage,CULT,Heritage,LHER,Liberty Leisure Limited / DHL Museum,Equipment Storage & Conservation,3008,Other Supplies & Services,OtherSS,17/06/2022,V006922,506,Meaco Measurement & Control Ltd,607.2,BAC004605
Liberty Leisure Limited,http://statistics.data.gov.uk/id/local-authority/37UD,Leisure,LEIS,Leisure Management,LMAN,Liberty Leisure Limited / Bramcote Leisure Centre,Repairs & Maintenance,1000,Central Pot,Central,17/06/2022,V006949,273.5,NBE Fire and Security Limited,586.79,BAC004585
Liberty Leisure Limited,http://statistics.data.gov.uk/id/local-authority/37UD,Leisure,LEIS,Leisure Management,LMAN,Liberty Leisure Limited / Bramcote Leisure Centre,Repairs & Maintenance,1000,Central Pot,Central,17/06/2022,V006948,215.49,NBE Fire and Security Limited,586.79,BAC004585
Liberty Leisure Limited,http://statistics.data.gov.uk/id/local-authority/37UD,Culture and Heritage,CULT,Events,LEVE,Liberty Leisure Limited / DHL Museum,Basic Pay,10,Employee Direct Costs,Direct,17/06/2022,V006921,2000,NinaSmithMusic,2000,BAC004603
Liberty Leisure Limited,http://statistics.data.gov.uk/id/local-authority/37UD,Leisure,LEIS,Leisure Management,LMAN,Liberty Leisure Limited / Chilwell Olympia,Repairs & Maintenance,1000,Central Pot,Central,17/06/2022,V006939,350,Nottinghamshire County Council,420,BAC004574
Liberty Leisure Limited,http://statistics.data.gov.uk/id/local-authority/37UD,Culture and Heritage,CULT,Events,LEVE,Liberty Leisure Limited / Events,Promotion of The Arts,3066,Office Supplies,Offsup,17/06/2022,V006956,590,Peter Johnson Entertainments Ltd,730,BAC004578
Liberty Leisure Limited,http://statistics.data.gov.uk/id/local-authority/37UD,Culture and Heritage,CULT,Events,LEVE,Liberty Leisure Limited / Events,Promotion of The Arts,3066,Office Supplies,Offsup,17/06/2022,V006956,140,Peter Johnson Entertainments Ltd,730,BAC004578
Liberty Leisure Limited,http://statistics.data.gov.uk/id/local-authority/37UD,Leisure,LEIS,Leisure Management,LMAN,Liberty Leisure Limited / Bramcote Leisure Centre,Repairs & Maintenance,1000,Central Pot,Central,17/06/2022,V006941,535,Pumptec - Pump and Valve Repairs,642,BAC004577
Liberty Leisure Limited,http://statistics.data.gov.uk/id/local-authority/37UD,Culture and Heritage,CULT,Events,LEVE,Liberty Leisure Limited / Events,Promotion of The Arts,3066,Office Supplies,Offsup,17/06/2022,V006957,600,Same Difference Arts Limited,600,BAC004595
Liberty Leisure Limited,http://statistics.data.gov.uk/id/local-authority/37UD,Culture and Heritage,CULT,Heritage,LHER,Liberty Leisure Limited / DHL Museum,Electricity,1310,Utilities,Utility,17/06/2022,V006924,384.19,TotalEnergies Gas & Power Ltd,16454.49,BAC004584
Liberty Leisure Limited,http://statistics.data.gov.uk/id/local-authority/37UD,Culture and Heritage,CULT,Heritage,LHER,Liberty Leisure Limited / DHL Museum,Electricity,1310,Utilities,Utility,17/06/2022,V006965,622.34,TotalEnergies Gas & Power Ltd,16454.49,BAC004584
Liberty Leisure Limited,http://statistics.data.gov.uk/id/local-authority/37UD,Leisure,LEIS,Leisure Management,LMAN,Liberty Leisure Limited / Bramcote Leisure Centre,Electricity,1310,Utilities,Utility,17/06/2022,V006962,2889.09,TotalEnergies Gas & Power Ltd,16454.49,BAC004584
Liberty Leisure Limited,http://statistics.data.gov.uk/id/local-authority/37UD,Leisure,LEIS,Leisure Management,LMAN,Liberty Leisure Limited / Bramcote Leisure Centre,Gas,1320,Utilities,Utility,17/06/2022,V006961,5901.43,TotalEnergies Gas & Power Ltd,16454.49,BAC004584
Liberty Leisure Limited,http://statistics.data.gov.uk/id/local-authority/37UD,Leisure,LEIS,Leisure Management,LMAN,Liberty Leisure Limited / Kimberley Leisure Centre,Electricity,1310,Utilities,Utility,17/06/2022,V006955,3992.8,TotalEnergies Gas & Power Ltd,16454.49,BAC004584
Liberty Leisure Limited,http://statistics.data.gov.uk/id/local-authority/37UD,Leisure,LEIS,Leisure Management,LMAN,Liberty Leisure Limited / Bramcote Leisure Centre,Water Charges,1410,Utilities,Utility,17/06/2022,V006934,393.47,Waterplus,393.47,BAC004598
Liberty Leisure Limited,http://statistics.data.gov.uk/id/local-authority/37UD,Culture and Heritage,CULT,Events,LEVE,Liberty Leisure Limited / Events,Promotion of The Arts,3066,Office Supplies,Offsup,01/07/2022,V006999,350,Adams & Co,350,BAC004637
Liberty Leisure Limited,http://statistics.data.gov.uk/id/local-authority/37UD,Culture and Heritage,CULT,Events,LEVE,Liberty Leisure Limited / DHL Museum,Promotion of The Arts,3066,Office Supplies,Offsup,01/07/2022,V007010,600,Broxtowe Borough Council,1047,BAC004608
Liberty Leisure Limited,http://statistics.data.gov.uk/id/local-authority/37UD,Culture and Heritage,CULT,Events,LEVE,Liberty Leisure Limited / DHL Museum,Promotion of The Arts,3066,Office Supplies,Offsup,01/07/2022,V007004,272.5,Broxtowe Borough Council,1047,BAC004608
Liberty Leisure Limited,http://statistics.data.gov.uk/id/local-authority/37UD,Leisure,LEIS,Leisure Management,LMAN,Liberty Leisure Limited / Bramcote Leisure Centre,Repairs & Maintenance,1000,Central Pot,Central,01/07/2022,V006992,266.31,BSS Pipeline & Heating Solutions,319.57,BAC004641
Liberty Leisure Limited,http://statistics.data.gov.uk/id/local-authority/37UD,Culture and Heritage,CULT,Events,LEVE,Liberty Leisure Limited / DHL Museum,Promotion of The Arts,3066,Office Supplies,Offsup,01/07/2022,V007003,600,Central Medical Services,2904,BAC004633
Liberty Leisure Limited,http://statistics.data.gov.uk/id/local-authority/37UD,Culture and Heritage,CULT,Events,LEVE,Liberty Leisure Limited / DHL Museum,Promotion of The Arts,3066,Office Supplies,Offsup,01/07/2022,V007003,1920,Central Medical Services,2904,BAC004633
Liberty Leisure Limited,http://statistics.data.gov.uk/id/local-authority/37UD,Leisure,LEIS,Leisure Management,LMAN,Liberty Leisure Limited / Bramcote Leisure Centre,Repairs & Maintenance,1000,Central Pot,Central,01/07/2022,V007002,769,Deltron Lifts Limited,1225.13,BAC004620
Liberty Leisure Limited,http://statistics.data.gov.uk/id/local-authority/37UD,Leisure,LEIS,Leisure Management,LMAN,Liberty Leisure Limited / Bramcote Leisure Centre,Repairs & Maintenance,1000,Central Pot,Central,01/07/2022,V006985,251.94,Deltron Lifts Limited,1225.13,BAC004620
Liberty Leisure Limited,http://statistics.data.gov.uk/id/local-authority/37UD,Leisure,LEIS,Leisure Centres,LCEN,Liberty Leisure Limited / Kimberley Leisure Centre,Repairs & Maintenance,1000,Central Pot,Central,01/07/2022,V006970,362.74,East Midlands Vending,435.29,BAC004636
Liberty Leisure Limited,http://statistics.data.gov.uk/id/local-authority/37UD,Leisure,LEIS,Leisure Management,LMAN,Liberty Leisure Limited / Bramcote Leisure Centre,Repairs & Maintenance,1000,Central Pot,Central,01/07/2022,V006986,1700,Fast Graphics,2040,BAC004634
Liberty Leisure Limited,http://statistics.data.gov.uk/id/local-authority/37UD,Leisure,LEIS,Leisure Management,LMAN,Liberty Leisure Limited / Bramcote Leisure Centre,Chemicals,3152,Other Supplies & Services,OtherSS,01/07/2022,V006890,748,Gaffey Technical Services,897.6,BAC004611
Liberty Leisure Limited,http://statistics.data.gov.uk/id/local-authority/37UD,Leisure,LEIS,Leisure Management,LMAN,Liberty Leisure Limited / Bramcote Leisure Centre,Repairs & Maintenance,1000,Central Pot,Central,01/07/2022,V006994,291,J P Carty Limited,349.2,BAC004609
Liberty Leisure Limited,http://statistics.data.gov.uk/id/local-authority/37UD,Culture and Heritage,CULT,Events,LEVE,Liberty Leisure Limited / DHL Museum,Promotion of The Arts,3066,Office Supplies,Offsup,01/07/2022,V007001,800,Kniftons Mobile Toilets,960,BAC004617
Liberty Leisure Limited,http://statistics.data.gov.uk/id/local-authority/37UD,Leisure,LEIS,Leisure Management,LMAN,Liberty Leisure Limited / Bramcote Leisure Centre,Repairs & Maintenance,1000,Central Pot,Central,01/07/2022,V007008,100,Lee Jackson Air Conditioning Ltd,480,BAC004625
Liberty Leisure Limited,http://statistics.data.gov.uk/id/local-authority/37UD,Leisure,LEIS,Leisure Management,LMAN,Liberty Leisure Limited / Chilwell Olympia,Repairs & Maintenance,1000,Central Pot,Central,01/07/2022,V007009,300,Lee Jackson Air Conditioning Ltd,480,BAC004625
Liberty Leisure Limited,http://statistics.data.gov.uk/id/local-authority/37UD,Leisure,LEIS,Leisure Management,LMAN,Liberty Leisure Limited / Bramcote Leisure Centre,Cleaning Materials,1510,Other Prem,OthPrem,01/07/2022,V006996,96.25,Mark-Douglas Industrial Supplies Limited,405.3,BAC004618
Liberty Leisure Limited,http://statistics.data.gov.uk/id/local-authority/37UD,Leisure,LEIS,Leisure Management,LMAN,Liberty Leisure Limited / Bramcote Leisure Centre,Cleaning Materials,1510,Other Prem,OthPrem,01/07/2022,V006996,81.26,Mark-Douglas Industrial Supplies Limited,405.3,BAC004618
Liberty Leisure Limited,http://statistics.data.gov.uk/id/local-authority/37UD,Leisure,LEIS,Leisure Management,LMAN,Liberty Leisure Limited / Bramcote Leisure Centre,Cleaning Materials,1510,Other Prem,OthPrem,01/07/2022,V006996,11.74,Mark-Douglas Industrial Supplies Limited,405.3,BAC004618
Liberty Leisure Limited,http://statistics.data.gov.uk/id/local-authority/37UD,Leisure,LEIS,Leisure Management,LMAN,Liberty Leisure Limited / Bramcote Leisure Centre,Cleaning Materials,1510,Other Prem,OthPrem,01/07/2022,V006996,26.3,Mark-Douglas Industrial Supplies Limited,405.3,BAC004618
Liberty Leisure Limited,http://statistics.data.gov.uk/id/local-authority/37UD,Leisure,LEIS,Leisure Management,LMAN,Liberty Leisure Limited / Bramcote Leisure Centre,Cleaning Materials,1510,Other Prem,OthPrem,01/07/2022,V006996,43.08,Mark-Douglas Industrial Supplies Limited,405.3,BAC004618
Liberty Leisure Limited,http://statistics.data.gov.uk/id/local-authority/37UD,Leisure,LEIS,Leisure Management,LMAN,Liberty Leisure Limited / Bramcote Leisure Centre,Cleaning Materials,1510,Other Prem,OthPrem,01/07/2022,V006996,79.12,Mark-Douglas Industrial Supplies Limited,405.3,BAC004618
Liberty Leisure Limited,http://statistics.data.gov.uk/id/local-authority/37UD,Culture and Heritage,CULT,Events,LEVE,Liberty Leisure Limited / Events,Promotion of The Arts,3066,Office Supplies,Offsup,01/07/2022,V007000,400,Mellanie Page & MPB,400,BAC004628
Liberty Leisure Limited,http://statistics.data.gov.uk/id/local-authority/37UD,Culture and Heritage,CULT,Events,LEVE,Liberty Leisure Limited / Events,Basic Pay,10,Employee Direct Costs,Direct,01/07/2022,V006997,600,NinaSmithMusic,2000,BAC004639
Liberty Leisure Limited,http://statistics.data.gov.uk/id/local-authority/37UD,Culture and Heritage,CULT,Events,LEVE,Liberty Leisure Limited / Events,Basic Pay,10,Employee Direct Costs,Direct,01/07/2022,V006997,600,NinaSmithMusic,2000,BAC004639
Liberty Leisure Limited,http://statistics.data.gov.uk/id/local-authority/37UD,Culture and Heritage,CULT,Events,LEVE,Liberty Leisure Limited / Events,Basic Pay,10,Employee Direct Costs,Direct,01/07/2022,V006997,800,NinaSmithMusic,2000,BAC004639
Liberty Leisure Limited,http://statistics.data.gov.uk/id/local-authority/37UD,Leisure,LEIS,Leisure Management,LMAN,Liberty Leisure Limited / Bramcote Leisure Centre,Vending Drinks  - Purchase,3205,Catering,Cat,01/07/2022,V006993,4.99,Rijo 42 Machines Ltd,513.58,BAC004638
Liberty Leisure Limited,http://statistics.data.gov.uk/id/local-authority/37UD,Leisure,LEIS,Leisure Management,LMAN,Liberty Leisure Limited / Bramcote Leisure Centre,Vending Drinks  - Purchase,3205,Catering,Cat,01/07/2022,V006987,61,Rijo 42 Machines Ltd,513.58,BAC004638
Liberty Leisure Limited,http://statistics.data.gov.uk/id/local-authority/37UD,Leisure,LEIS,Leisure Management,LMAN,Liberty Leisure Limited / Bramcote Leisure Centre,Vending Drinks  - Purchase,3205,Catering,Cat,01/07/2022,V006993,112.2,Rijo 42 Machines Ltd,513.58,BAC004638
Liberty Leisure Limited,http://statistics.data.gov.uk/id/local-authority/37UD,Leisure,LEIS,Leisure Management,LMAN,Liberty Leisure Limited / Bramcote Leisure Centre,Vending Drinks  - Purchase,3205,Catering,Cat,01/07/2022,V006993,101.52,Rijo 42 Machines Ltd,513.58,BAC004638
Liberty Leisure Limited,http://statistics.data.gov.uk/id/local-authority/37UD,Leisure,LEIS,Leisure Management,LMAN,Liberty Leisure Limited / Bramcote Leisure Centre,Vending Drinks  - Purchase,3205,Catering,Cat,01/07/2022,V006993,58.4,Rijo 42 Machines Ltd,513.58,BAC004638
Liberty Leisure Limited,http://statistics.data.gov.uk/id/local-authority/37UD,Leisure,LEIS,Leisure Management,LMAN,Liberty Leisure Limited / Bramcote Leisure Centre,Vending Drinks  - Purchase,3205,Catering,Cat,01/07/2022,V006987,6.5,Rijo 42 Machines Ltd,513.58,BAC004638
Liberty Leisure Limited,http://statistics.data.gov.uk/id/local-authority/37UD,Leisure,LEIS,Leisure Management,LMAN,Liberty Leisure Limited / Bramcote Leisure Centre,Vending Drinks  - Purchase,3205,Catering,Cat,01/07/2022,V006993,6.5,Rijo 42 Machines Ltd,513.58,BAC004638
Liberty Leisure Limited,http://statistics.data.gov.uk/id/local-authority/37UD,Leisure,LEIS,Leisure Management,LMAN,Liberty Leisure Limited / Bramcote Leisure Centre,Vending Drinks  - Purchase,3205,Catering,Cat,01/07/2022,V006993,49.8,Rijo 42 Machines Ltd,513.58,BAC004638
Liberty Leisure Limited,http://statistics.data.gov.uk/id/local-authority/37UD,Leisure,LEIS,Leisure Management,LMAN,Liberty Leisure Limited / Bramcote Leisure Centre,Vending Drinks  - Purchase,3205,Catering,Cat,01/07/2022,V006993,19.99,Rijo 42 Machines Ltd,513.58,BAC004638
Liberty Leisure Limited,http://statistics.data.gov.uk/id/local-authority/37UD,Leisure,LEIS,Leisure Management,LMAN,Liberty Leisure Limited / Bramcote Leisure Centre,Vending Drinks  - Purchase,3205,Catering,Cat,01/07/2022,V006993,21.8,Rijo 42 Machines Ltd,513.58,BAC004638
Liberty Leisure Limited,http://statistics.data.gov.uk/id/local-authority/37UD,Leisure,LEIS,Leisure Management,LMAN,Liberty Leisure Limited / Bramcote Leisure Centre,Vending Drinks  - Purchase,3205,Catering,Cat,01/07/2022,V006993,45.9,Rijo 42 Machines Ltd,513.58,BAC004638
Liberty Leisure Limited,http://statistics.data.gov.uk/id/local-authority/37UD,Culture and Heritage,CULT,Events,LEVE,Liberty Leisure Limited / DHL Museum,Promotion of The Arts,3066,Office Supplies,Offsup,01/07/2022,V007005,2370.88,SA Atkin Services,2845.06,BAC004623
Liberty Leisure Limited,http://statistics.data.gov.uk/id/local-authority/37UD,Culture and Heritage,CULT,Heritage,LHER,Liberty Leisure Limited / DHL Museum,Repairs & Maintenance,1000,Central Pot,Central,01/07/2022,V007011,117,Slater Electrical Serv Limited,252.42,BAC004612
Liberty Leisure Limited,http://statistics.data.gov.uk/id/local-authority/37UD,Leisure,LEIS,Leisure Management,LMAN,Liberty Leisure Limited / Kimberley Leisure Centre,Repairs & Maintenance,1000,Central Pot,Central,01/07/2022,V006972,93.35,Slater Electrical Serv Limited,252.42,BAC004612
Liberty Leisure Limited,http://statistics.data.gov.uk/id/local-authority/37UD,Leisure,LEIS,Leisure Management,LMAN,Liberty Leisure Limited / Kimberley Leisure Centre,Service Contracts,3056,Other Supplies & Services,OtherSS,01/07/2022,V006969,621,Sterilizing Services,745.2,BAC004613
Liberty Leisure Limited,http://statistics.data.gov.uk/id/local-authority/37UD,Culture and Heritage,CULT,Events,LEVE,Liberty Leisure Limited / Events,Promotion of The Arts,3066,Office Supplies,Offsup,01/07/2022,V006998,2539,T J Bullock,2539,BAC004640
Liberty Leisure Limited,http://statistics.data.gov.uk/id/local-authority/37UD,Leisure,LEIS,Leisure Management,LMAN,Liberty Leisure Limited / Bramcote Leisure Centre,Repairs & Maintenance,1000,Central Pot,Central,01/07/2022,V006966,770.73,Technogym UK Ltd,924.88,BAC004614
Liberty Leisure Limited,http://statistics.data.gov.uk/id/local-authority/37UD,Leisure,LEIS,Leisure Management,LMAN,Liberty Leisure Limited / Kimberley Leisure Centre,Gas,1320,Utilities,Utility,01/07/2022,V006977,3007.37,The Kimberley School (EMET),6823.97,BAC004616
Liberty Leisure Limited,http://statistics.data.gov.uk/id/local-authority/37UD,Leisure,LEIS,Leisure Management,LMAN,Liberty Leisure Limited / Kimberley Leisure Centre,Gas,1320,Utilities,Utility,01/07/2022,V006977,2451.37,The Kimberley School (EMET),6823.97,BAC004616
Liberty Leisure Limited,http://statistics.data.gov.uk/id/local-authority/37UD,Leisure,LEIS,Leisure Management,LMAN,Liberty Leisure Limited / Kimberley Leisure Centre,Water Charges,1410,Utilities,Utility,01/07/2022,V006977,1365.23,The Kimberley School (EMET),6823.97,BAC004616
Liberty Leisure Limited,http://statistics.data.gov.uk/id/local-authority/37UD,Culture and Heritage,CULT,Events,LEVE,Liberty Leisure Limited / Events,Promotion of The Arts,3066,Office Supplies,Offsup,01/07/2022,V006995,350,The SKA`s C/O Paul Darbyshire,350,BAC004631
Liberty Leisure Limited,http://statistics.data.gov.uk/id/local-authority/37UD,Leisure,LEIS,Leisure Management,LMAN,Liberty Leisure Limited / Liberty Leisure Development,Business Development,3088,Other Supplies & Services,OtherSS,01/07/2022,V006978,300,Three65 Media Solutions Ltd,3300,BAC004629
Liberty Leisure Limited,http://statistics.data.gov.uk/id/local-authority/37UD,Leisure,LEIS,Leisure Management,LMAN,Liberty Leisure Limited / Liberty Leisure Development,Advertising,3412,Advertising,Advert,01/07/2022,V006979,3000,Three65 Media Solutions Ltd,3300,BAC004629
Liberty Leisure Limited,http://statistics.data.gov.uk/id/local-authority/37UD,Leisure,LEIS,Leisure Management,LMAN,Liberty Leisure Limited / Bramcote Leisure Centre,Chemicals,3152,Other Supplies & Services,OtherSS,01/07/2022,V006968,39.5,Univar Solutions BV,611.95,BAC004615
Liberty Leisure Limited,http://statistics.data.gov.uk/id/local-authority/37UD,Leisure,LEIS,Leisure Management,LMAN,Liberty Leisure Limited / Bramcote Leisure Centre,Chemicals,3152,Other Supplies & Services,OtherSS,01/07/2022,V006897,-14.5,Univar Solutions BV,611.95,BAC004615
Liberty Leisure Limited,http://statistics.data.gov.uk/id/local-authority/37UD,Leisure,LEIS,Leisure Management,LMAN,Liberty Leisure Limited / Bramcote Leisure Centre,Chemicals,3152,Other Supplies & Services,OtherSS,01/07/2022,V006968,14.5,Univar Solutions BV,611.95,BAC004615
Liberty Leisure Limited,http://statistics.data.gov.uk/id/local-authority/37UD,Leisure,LEIS,Leisure Management,LMAN,Liberty Leisure Limited / Bramcote Leisure Centre,Chemicals,3152,Other Supplies & Services,OtherSS,01/07/2022,V006968,470.46,Univar Solutions BV,611.95,BAC004615
Liberty Leisure Limited,http://statistics.data.gov.uk/id/local-authority/37UD,Leisure,LEIS,Leisure Management,LMAN,Liberty Leisure Limited / Bramcote Leisure Centre,Repairs & Maintenance,1000,Central Pot,Central,01/07/2022,V006967,3235.75,Ylem Energy Limited,3882.9,BAC004635
Liberty Leisure Limited,http://statistics.data.gov.uk/id/local-authority/37UD,Leisure,LEIS,Leisure Management,LMAN,Liberty Leisure Limited / Bramcote Leisure Centre,Repairs & Maintenance,1000,Central Pot,Central,07/07/2022,V006992,-266.31,BSS Pipeline & Heating Solutions,-319.57,BAC004641
Liberty Leisure Limited,http://statistics.data.gov.uk/id/local-authority/37UD,Leisure,LEIS,Leisure Management,LMAN,Liberty Leisure Limited / Kimberley Leisure Centre,Repairs & Maintenance,1000,Central Pot,Central,15/07/2022,V007018,215,Automatic Access Ltd,258,BAC004659
Liberty Leisure Limited,http://statistics.data.gov.uk/id/local-authority/37UD,Leisure,LEIS,Leisure Management,LMAN,Liberty Leisure Limited / Kimberley Leisure Centre,Vending Provisions  - Purchase,3204,Catering,Cat,15/07/2022,V006984,211.2,Automatic Retailing northern Ltd,1058.78,BAC004665
Liberty Leisure Limited,http://statistics.data.gov.uk/id/local-authority/37UD,Leisure,LEIS,Leisure Management,LMAN,Liberty Leisure Limited / Kimberley Leisure Centre,Vending Provisions  - Purchase,3204,Catering,Cat,15/07/2022,V006984,706.32,Automatic Retailing northern Ltd,1058.78,BAC004665
Liberty Leisure Limited,http://statistics.data.gov.uk/id/local-authority/37UD,Leisure,LEIS,Leisure Management,LMAN,Liberty Leisure Limited / Kimberley Leisure Centre,Service Contracts,3056,Other Supplies & Services,OtherSS,15/07/2022,V006982,565,BG Energy Solutions,678,BAC004662
Liberty Leisure Limited,http://statistics.data.gov.uk/id/local-authority/37UD,Leisure,LEIS,Leisure Management,LMAN,Liberty Leisure Limited / Bramcote Leisure Centre,Repairs & Maintenance,1000,Central Pot,Central,15/07/2022,V006992,266.31,BSS Pipeline & Heating Solutions,319.57,BAC004673
Liberty Leisure Limited,http://statistics.data.gov.uk/id/local-authority/37UD,Leisure,LEIS,Leisure Management,LMAN,Liberty Leisure Limited / Kimberley Leisure Centre,Chemicals,3152,Other Supplies & Services,OtherSS,15/07/2022,V007039,1071.31,Cryoservice Limited,1285.57,BAC004648
Liberty Leisure Limited,http://statistics.data.gov.uk/id/local-authority/37UD,Leisure,LEIS,Leisure Management,LMAN,Liberty Leisure Limited / Bramcote Leisure Centre,Business Development,3088,Other Supplies & Services,OtherSS,15/07/2022,V007046,830,East Midlands Vending,1193.77,BAC004671
Liberty Leisure Limited,http://statistics.data.gov.uk/id/local-authority/37UD,Leisure,LEIS,Leisure Management,LMAN,Liberty Leisure Limited / Bramcote Leisure Centre,Repairs & Maintenance,1000,Central Pot,Central,15/07/2022,V007045,90,East Midlands Vending,1193.77,BAC004671
Liberty Leisure Limited,http://statistics.data.gov.uk/id/local-authority/37UD,Leisure,LEIS,Leisure Management,LMAN,Liberty Leisure Limited / Bramcote Leisure Centre,Repairs & Maintenance,1000,Central Pot,Central,15/07/2022,V007045,32.05,East Midlands Vending,1193.77,BAC004671
Liberty Leisure Limited,http://statistics.data.gov.uk/id/local-authority/37UD,Leisure,LEIS,Leisure Management,LMAN,Liberty Leisure Limited / Bramcote Leisure Centre,Repairs & Maintenance,1000,Central Pot,Central,15/07/2022,V007045,33.94,East Midlands Vending,1193.77,BAC004671
Liberty Leisure Limited,http://statistics.data.gov.uk/id/local-authority/37UD,Leisure,LEIS,Leisure Management,LMAN,Liberty Leisure Limited / Bramcote Leisure Centre,Repairs & Maintenance,1000,Central Pot,Central,15/07/2022,V007045,8.82,East Midlands Vending,1193.77,BAC004671
Liberty Leisure Limited,http://statistics.data.gov.uk/id/local-authority/37UD,Leisure,LEIS,Leisure Management,LMAN,Liberty Leisure Limited / Kimberley Leisure Centre,Service Contracts,3056,Other Supplies & Services,OtherSS,15/07/2022,V007017,701,ESG Pool Ventilation Ltd,841.2,BAC004658
Liberty Leisure Limited,http://statistics.data.gov.uk/id/local-authority/37UD,Leisure,LEIS,Leisure Management,LMAN,Liberty Leisure Limited / Bramcote Leisure Centre,Chemicals,3152,Other Supplies & Services,OtherSS,15/07/2022,V007044,748,Gaffey Technical Services,897.6,BAC004649
Liberty Leisure Limited,http://statistics.data.gov.uk/id/local-authority/37UD,Leisure,LEIS,Leisure Management,LMAN,Liberty Leisure Limited / Kimberley Leisure Centre,Repairs & Maintenance,1000,Central Pot,Central,15/07/2022,V007035,209.25,Gate & Barrier Services Ltd,251.1,BAC004675
Liberty Leisure Limited,http://statistics.data.gov.uk/id/local-authority/37UD,Leisure,LEIS,Leisure Management,LMAN,Liberty Leisure Limited / Kimberley Leisure Centre,Licences,3613,Other Supplies & Services,OtherSS,15/07/2022,V007038,150,Halo Leisure Enterprises Ltd,540,BAC004667
Liberty Leisure Limited,http://statistics.data.gov.uk/id/local-authority/37UD,Leisure,LEIS,Leisure Management,LMAN,Liberty Leisure Limited / Kimberley Leisure Centre,Licences,3613,Other Supplies & Services,OtherSS,15/07/2022,V007038,150,Halo Leisure Enterprises Ltd,540,BAC004667
Liberty Leisure Limited,http://statistics.data.gov.uk/id/local-authority/37UD,Leisure,LEIS,Leisure Management,LMAN,Liberty Leisure Limited / Kimberley Leisure Centre,Licences,3613,Other Supplies & Services,OtherSS,15/07/2022,V007038,150,Halo Leisure Enterprises Ltd,540,BAC004667
Liberty Leisure Limited,http://statistics.data.gov.uk/id/local-authority/37UD,Leisure,LEIS,Leisure Management,LMAN,Liberty Leisure Limited / Kimberley Leisure Centre,Repairs & Maintenance,1000,Central Pot,Central,15/07/2022,V007036,880,Jack Dobbs Plastering,880,BAC004674
Liberty Leisure Limited,http://statistics.data.gov.uk/id/local-authority/37UD,Leisure,LEIS,Leisure Management,LMAN,Liberty Leisure Limited / Kimberley Leisure Centre,Service Contracts,3056,Other Supplies & Services,OtherSS,15/07/2022,V007034,150,M A Technical Services Ltd,684,BAC004650
Liberty Leisure Limited,http://statistics.data.gov.uk/id/local-authority/37UD,Leisure,LEIS,Leisure Management,LMAN,Liberty Leisure Limited / Kimberley Leisure Centre,Service Contracts,3056,Other Supplies & Services,OtherSS,15/07/2022,V007034,50,M A Technical Services Ltd,684,BAC004650
Liberty Leisure Limited,http://statistics.data.gov.uk/id/local-authority/37UD,Leisure,LEIS,Leisure Management,LMAN,Liberty Leisure Limited / Kimberley Leisure Centre,Service Contracts,3056,Other Supplies & Services,OtherSS,15/07/2022,V007034,200,M A Technical Services Ltd,684,BAC004650
Liberty Leisure Limited,http://statistics.data.gov.uk/id/local-authority/37UD,Leisure,LEIS,Leisure Management,LMAN,Liberty Leisure Limited / Kimberley Leisure Centre,Service Contracts,3056,Other Supplies & Services,OtherSS,15/07/2022,V007034,170,M A Technical Services Ltd,684,BAC004650
Liberty Leisure Limited,http://statistics.data.gov.uk/id/local-authority/37UD,Leisure,LEIS,Leisure Management,LMAN,Liberty Leisure Limited / Chilwell Olympia,Cleaning Materials,1510,Other Prem,OthPrem,15/07/2022,V007031,75.7,Mark-Douglas Industrial Supplies Limited,468.95,BAC004656
Liberty Leisure Limited,http://statistics.data.gov.uk/id/local-authority/37UD,Leisure,LEIS,Leisure Management,LMAN,Liberty Leisure Limited / Chilwell Olympia,Cleaning Materials,1510,Other Prem,OthPrem,15/07/2022,V007031,203.15,Mark-Douglas Industrial Supplies Limited,468.95,BAC004656
Liberty Leisure Limited,http://statistics.data.gov.uk/id/local-authority/37UD,Leisure,LEIS,Leisure Management,LMAN,Liberty Leisure Limited / Chilwell Olympia,Cleaning Materials,1510,Other Prem,OthPrem,15/07/2022,V007031,83.76,Mark-Douglas Industrial Supplies Limited,468.95,BAC004656
Liberty Leisure Limited,http://statistics.data.gov.uk/id/local-authority/37UD,Leisure,LEIS,Leisure Management,LMAN,Liberty Leisure Limited / Kimberley Leisure Centre,Cleaning Materials,1510,Other Prem,OthPrem,15/07/2022,V007020,28.18,Mark-Douglas Industrial Supplies Limited,468.95,BAC004656
Liberty Leisure Limited,http://statistics.data.gov.uk/id/local-authority/37UD,Culture and Heritage,CULT,Events,LEVE,Liberty Leisure Limited / DHL Museum,Promotion of The Arts,3066,Office Supplies,Offsup,15/07/2022,V007026,350,Miss J C Barton,350,BAC004660
Liberty Leisure Limited,http://statistics.data.gov.uk/id/local-authority/37UD,Leisure,LEIS,Leisure Management,LMAN,Liberty Leisure Limited / Bramcote Leisure Centre,Repairs & Maintenance,1000,Central Pot,Central,15/07/2022,V007033,376.81,NBE Fire and Security Limited,613.87,BAC004664
Liberty Leisure Limited,http://statistics.data.gov.uk/id/local-authority/37UD,Leisure,LEIS,Leisure Management,LMAN,Liberty Leisure Limited / Bramcote Leisure Centre,Repairs & Maintenance,1000,Central Pot,Central,15/07/2022,V007032,134.75,NBE Fire and Security Limited,613.87,BAC004664
Liberty Leisure Limited,http://statistics.data.gov.uk/id/local-authority/37UD,Culture and Heritage,CULT,Events,LEVE,Liberty Leisure Limited / DHL Museum,Promotion of The Arts,3066,Office Supplies,Offsup,15/07/2022,V007024,420,Nottingham Partners,504,BAC004661
Liberty Leisure Limited,http://statistics.data.gov.uk/id/local-authority/37UD,Leisure,LEIS,Leisure Management,LMAN,Liberty Leisure Limited / Kimberley Leisure Centre,Repairs & Maintenance,1000,Central Pot,Central,15/07/2022,V007021,189.8,Slater Electrical Serv Limited,418.09,BAC004652
Liberty Leisure Limited,http://statistics.data.gov.uk/id/local-authority/37UD,Leisure,LEIS,Leisure Management,LMAN,Liberty Leisure Limited / Kimberley Leisure Centre,Repairs & Maintenance,1000,Central Pot,Central,15/07/2022,V007037,158.61,Slater Electrical Serv Limited,418.09,BAC004652
Liberty Leisure Limited,http://statistics.data.gov.uk/id/local-authority/37UD,Leisure,LEIS,Leisure Management,LMAN,Liberty Leisure Limited / Kimberley Leisure Centre,Course & Examination Fees,720,Indirect Employee Exp Oncosts,Oncosts,15/07/2022,V007041,900,SPORTSED,2700,BAC004670
Liberty Leisure Limited,http://statistics.data.gov.uk/id/local-authority/37UD,Leisure,LEIS,Leisure Management,LMAN,Liberty Leisure Limited / Kimberley Leisure Centre,Course & Examination Fees,720,Indirect Employee Exp Oncosts,Oncosts,15/07/2022,V006983,1800,SPORTSED,2700,BAC004670
Liberty Leisure Limited,http://statistics.data.gov.uk/id/local-authority/37UD,Leisure,LEIS,Leisure Management,LMAN,Liberty Leisure Limited / Bramcote Leisure Centre,Legionella Testing,1042,Central Pot,Central,15/07/2022,V007030,87,Sterilizing Services,452.4,BAC004653
Liberty Leisure Limited,http://statistics.data.gov.uk/id/local-authority/37UD,Leisure,LEIS,Leisure Management,LMAN,Liberty Leisure Limited / Kimberley Leisure Centre,Legionella Testing,1042,Central Pot,Central,15/07/2022,V007016,98,Sterilizing Services,452.4,BAC004653
Liberty Leisure Limited,http://statistics.data.gov.uk/id/local-authority/37UD,Leisure,LEIS,Leisure Management,LMAN,Liberty Leisure Limited / Kimberley Leisure Centre,Legionella Testing,1042,Central Pot,Central,15/07/2022,V007042,58,Sterilizing Services,452.4,BAC004653
Liberty Leisure Limited,http://statistics.data.gov.uk/id/local-authority/37UD,Leisure,LEIS,Leisure Management,LMAN,Liberty Leisure Limited / Kimberley Leisure Centre,Service Contracts,3056,Other Supplies & Services,OtherSS,15/07/2022,V007015,134,Sterilizing Services,452.4,BAC004653
Liberty Leisure Limited,http://statistics.data.gov.uk/id/local-authority/37UD,Leisure,LEIS,Leisure Management,LMAN,Liberty Leisure Limited / Bramcote Leisure Centre,Purchase of Miscellaneous Items for Sale,3160,Other Supplies & Services,OtherSS,15/07/2022,V007029,20,Swim England Trading Ltd,2022.6,BAC004647
Liberty Leisure Limited,http://statistics.data.gov.uk/id/local-authority/37UD,Leisure,LEIS,Leisure Management,LMAN,Liberty Leisure Limited / Bramcote Leisure Centre,Purchase of Miscellaneous Items for Sale,3160,Other Supplies & Services,OtherSS,15/07/2022,V007029,200,Swim England Trading Ltd,2022.6,BAC004647
Liberty Leisure Limited,http://statistics.data.gov.uk/id/local-authority/37UD,Leisure,LEIS,Leisure Management,LMAN,Liberty Leisure Limited / Bramcote Leisure Centre,Purchase of Miscellaneous Items for Sale,3160,Other Supplies & Services,OtherSS,15/07/2022,V007029,160,Swim England Trading Ltd,2022.6,BAC004647
Liberty Leisure Limited,http://statistics.data.gov.uk/id/local-authority/37UD,Leisure,LEIS,Leisure Management,LMAN,Liberty Leisure Limited / Bramcote Leisure Centre,Purchase of Miscellaneous Items for Sale,3160,Other Supplies & Services,OtherSS,15/07/2022,V007029,160,Swim England Trading Ltd,2022.6,BAC004647
Liberty Leisure Limited,http://statistics.data.gov.uk/id/local-authority/37UD,Leisure,LEIS,Leisure Management,LMAN,Liberty Leisure Limited / Bramcote Leisure Centre,Purchase of Miscellaneous Items for Sale,3160,Other Supplies & Services,OtherSS,15/07/2022,V007029,200,Swim England Trading Ltd,2022.6,BAC004647
Liberty Leisure Limited,http://statistics.data.gov.uk/id/local-authority/37UD,Leisure,LEIS,Leisure Management,LMAN,Liberty Leisure Limited / Bramcote Leisure Centre,Purchase of Miscellaneous Items for Sale,3160,Other Supplies & Services,OtherSS,15/07/2022,V007029,2,Swim England Trading Ltd,2022.6,BAC004647
Liberty Leisure Limited,http://statistics.data.gov.uk/id/local-authority/37UD,Leisure,LEIS,Leisure Management,LMAN,Liberty Leisure Limited / Bramcote Leisure Centre,Purchase of Miscellaneous Items for Sale,3160,Other Supplies & Services,OtherSS,15/07/2022,V007029,200,Swim England Trading Ltd,2022.6,BAC004647
Liberty Leisure Limited,http://statistics.data.gov.uk/id/local-authority/37UD,Leisure,LEIS,Leisure Management,LMAN,Liberty Leisure Limited / Bramcote Leisure Centre,Purchase of Miscellaneous Items for Sale,3160,Other Supplies & Services,OtherSS,15/07/2022,V007029,100,Swim England Trading Ltd,2022.6,BAC004647
Liberty Leisure Limited,http://statistics.data.gov.uk/id/local-authority/37UD,Leisure,LEIS,Leisure Management,LMAN,Liberty Leisure Limited / Bramcote Leisure Centre,Purchase of Miscellaneous Items for Sale,3160,Other Supplies & Services,OtherSS,15/07/2022,V007029,100,Swim England Trading Ltd,2022.6,BAC004647
Liberty Leisure Limited,http://statistics.data.gov.uk/id/local-authority/37UD,Leisure,LEIS,Leisure Management,LMAN,Liberty Leisure Limited / Kimberley Leisure Centre,Sports Equipment - Sale,3004,Equipment,Equip,15/07/2022,V007019,60,Swim England Trading Ltd,2022.6,BAC004647
Liberty Leisure Limited,http://statistics.data.gov.uk/id/local-authority/37UD,Leisure,LEIS,Leisure Management,LMAN,Liberty Leisure Limited / Kimberley Leisure Centre,Sports Equipment - Sale,3004,Equipment,Equip,15/07/2022,V007019,20,Swim England Trading Ltd,2022.6,BAC004647
Liberty Leisure Limited,http://statistics.data.gov.uk/id/local-authority/37UD,Leisure,LEIS,Leisure Management,LMAN,Liberty Leisure Limited / Kimberley Leisure Centre,Sports Equipment - Sale,3004,Equipment,Equip,15/07/2022,V007019,50,Swim England Trading Ltd,2022.6,BAC004647
Liberty Leisure Limited,http://statistics.data.gov.uk/id/local-authority/37UD,Leisure,LEIS,Leisure Management,LMAN,Liberty Leisure Limited / Kimberley Leisure Centre,Sports Equipment - Sale,3004,Equipment,Equip,15/07/2022,V007019,20,Swim England Trading Ltd,2022.6,BAC004647
Liberty Leisure Limited,http://statistics.data.gov.uk/id/local-authority/37UD,Leisure,LEIS,Leisure Management,LMAN,Liberty Leisure Limited / Kimberley Leisure Centre,Sports Equipment - Sale,3004,Equipment,Equip,15/07/2022,V007019,20,Swim England Trading Ltd,2022.6,BAC004647
Liberty Leisure Limited,http://statistics.data.gov.uk/id/local-authority/37UD,Leisure,LEIS,Leisure Management,LMAN,Liberty Leisure Limited / Kimberley Leisure Centre,Sports Equipment - Sale,3004,Equipment,Equip,15/07/2022,V007019,40,Swim England Trading Ltd,2022.6,BAC004647
Liberty Leisure Limited,http://statistics.data.gov.uk/id/local-authority/37UD,Leisure,LEIS,Leisure Management,LMAN,Liberty Leisure Limited / Kimberley Leisure Centre,Sports Equipment - Sale,3004,Equipment,Equip,15/07/2022,V007019,60,Swim England Trading Ltd,2022.6,BAC004647
Liberty Leisure Limited,http://statistics.data.gov.uk/id/local-authority/37UD,Leisure,LEIS,Leisure Management,LMAN,Liberty Leisure Limited / Kimberley Leisure Centre,Sports Equipment - Sale,3004,Equipment,Equip,15/07/2022,V007019,40,Swim England Trading Ltd,2022.6,BAC004647
Liberty Leisure Limited,http://statistics.data.gov.uk/id/local-authority/37UD,Leisure,LEIS,Leisure Management,LMAN,Liberty Leisure Limited / Kimberley Leisure Centre,Sports Equipment - Sale,3004,Equipment,Equip,15/07/2022,V007019,13.5,Swim England Trading Ltd,2022.6,BAC004647
Liberty Leisure Limited,http://statistics.data.gov.uk/id/local-authority/37UD,Leisure,LEIS,Leisure Management,LMAN,Liberty Leisure Limited / Kimberley Leisure Centre,Sports Equipment - Sale,3004,Equipment,Equip,15/07/2022,V007019,20,Swim England Trading Ltd,2022.6,BAC004647
Liberty Leisure Limited,http://statistics.data.gov.uk/id/local-authority/37UD,Leisure,LEIS,Leisure Management,LMAN,Liberty Leisure Limited / Kimberley Leisure Centre,Sports Equipment - Sale,3004,Equipment,Equip,15/07/2022,V007019,60,Swim England Trading Ltd,2022.6,BAC004647
Liberty Leisure Limited,http://statistics.data.gov.uk/id/local-authority/37UD,Leisure,LEIS,Leisure Management,LMAN,Liberty Leisure Limited / Kimberley Leisure Centre,Sports Equipment - Sale,3004,Equipment,Equip,15/07/2022,V007019,60,Swim England Trading Ltd,2022.6,BAC004647
Liberty Leisure Limited,http://statistics.data.gov.uk/id/local-authority/37UD,Leisure,LEIS,Leisure Management,LMAN,Liberty Leisure Limited / Kimberley Leisure Centre,Sports Equipment - Sale,3004,Equipment,Equip,15/07/2022,V007019,20,Swim England Trading Ltd,2022.6,BAC004647
Liberty Leisure Limited,http://statistics.data.gov.uk/id/local-authority/37UD,Leisure,LEIS,Leisure Management,LMAN,Liberty Leisure Limited / Kimberley Leisure Centre,Sports Equipment - Sale,3004,Equipment,Equip,15/07/2022,V007019,20,Swim England Trading Ltd,2022.6,BAC004647
Liberty Leisure Limited,http://statistics.data.gov.uk/id/local-authority/37UD,Leisure,LEIS,Leisure Management,LMAN,Liberty Leisure Limited / Kimberley Leisure Centre,Sports Equipment - Sale,3004,Equipment,Equip,15/07/2022,V007019,40,Swim England Trading Ltd,2022.6,BAC004647
Liberty Leisure Limited,http://statistics.data.gov.uk/id/local-authority/37UD,Leisure,LEIS,Leisure Management,LMAN,Liberty Leisure Limited / Kimberley Leisure Centre,Water Charges,1410,Utilities,Utility,15/07/2022,V007040,4906.92,The Kimberley School (EMET),4906.92,BAC004655
Liberty Leisure Limited,http://statistics.data.gov.uk/id/local-authority/37UD,Leisure,LEIS,Leisure Management,LMAN,Liberty Leisure Limited / Bramcote Leisure Centre,Electricity,1310,Utilities,Utility,15/07/2022,V007047,3900.83,TotalEnergies Gas & Power Ltd,4681,BAC004663
Liberty Leisure Limited,http://statistics.data.gov.uk/id/local-authority/37UD,Leisure,LEIS,Leisure Management,LMAN,Liberty Leisure Limited / Kimberley Leisure Centre,Chemicals,3152,Other Supplies & Services,OtherSS,15/07/2022,V007043,648.11,Univar Solutions BV,777.73,BAC004654
Liberty Leisure Limited,http://statistics.data.gov.uk/id/local-authority/37UD,Leisure,LEIS,Leisure Management,LMAN,Liberty Leisure Limited / Chilwell Olympia,Repairs & Maintenance,1000,Central Pot,Central,29/07/2022,V007082,340,Attenborough Industrial Doors,408,BAC004676
Liberty Leisure Limited,http://statistics.data.gov.uk/id/local-authority/37UD,Leisure,LEIS,Leisure Management,LMAN,Liberty Leisure Limited / Bramcote Leisure Centre,Vending Provisions  - Purchase,3204,Catering,Cat,29/07/2022,V007081,-116.16,Automatic Retailing northern Ltd,1540.4,BAC004688
Liberty Leisure Limited,http://statistics.data.gov.uk/id/local-authority/37UD,Leisure,LEIS,Leisure Management,LMAN,Liberty Leisure Limited / Bramcote Leisure Centre,Vending Provisions  - Purchase,3204,Catering,Cat,29/07/2022,V007079,1270.34,Automatic Retailing northern Ltd,1540.4,BAC004688
Liberty Leisure Limited,http://statistics.data.gov.uk/id/local-authority/37UD,Leisure,LEIS,Leisure Management,LMAN,Liberty Leisure Limited / Bramcote Leisure Centre,Vending Provisions  - Purchase,3204,Catering,Cat,29/07/2022,V007079,155.38,Automatic Retailing northern Ltd,1540.4,BAC004688
Liberty Leisure Limited,http://statistics.data.gov.uk/id/local-authority/37UD,Culture and Heritage,CULT,Events,LEVE,Liberty Leisure Limited / Events,Promotion of The Arts,3066,Office Supplies,Offsup,29/07/2022,V007086,7510,Big TV (UK) Ltd,9012,BAC004691
Liberty Leisure Limited,http://statistics.data.gov.uk/id/local-authority/37UD,Leisure,LEIS,Leisure Management,LMAN,Liberty Leisure Limited / Bramcote Leisure Centre,Chemicals,3152,Other Supplies & Services,OtherSS,29/07/2022,V007048,748,Gaffey Technical Services,897.6,BAC004677
Liberty Leisure Limited,http://statistics.data.gov.uk/id/local-authority/37UD,Leisure,LEIS,Leisure Management,LMAN,Liberty Leisure Limited / Liberty Leisure Development,Professional Fees,730,Indirect Employee Exp Oncosts,Oncosts,29/07/2022,V007057,1920,Haines Watts Nottingham Ltd,1920,BAC004693
Liberty Leisure Limited,http://statistics.data.gov.uk/id/local-authority/37UD,Leisure,LEIS,Leisure Management,LMAN,Liberty Leisure Limited / Bramcote Leisure Centre,Cleaning Materials,1510,Other Prem,OthPrem,29/07/2022,V007078,89.72,Mark-Douglas Industrial Supplies Limited,510.33,BAC004680
Liberty Leisure Limited,http://statistics.data.gov.uk/id/local-authority/37UD,Leisure,LEIS,Leisure Management,LMAN,Liberty Leisure Limited / Bramcote Leisure Centre,Cleaning Materials,1510,Other Prem,OthPrem,29/07/2022,V007078,52.6,Mark-Douglas Industrial Supplies Limited,510.33,BAC004680
Liberty Leisure Limited,http://statistics.data.gov.uk/id/local-authority/37UD,Leisure,LEIS,Leisure Management,LMAN,Liberty Leisure Limited / Bramcote Leisure Centre,Cleaning Materials,1510,Other Prem,OthPrem,29/07/2022,V007078,23.64,Mark-Douglas Industrial Supplies Limited,510.33,BAC004680
Liberty Leisure Limited,http://statistics.data.gov.uk/id/local-authority/37UD,Leisure,LEIS,Leisure Management,LMAN,Liberty Leisure Limited / Bramcote Leisure Centre,Cleaning Materials,1510,Other Prem,OthPrem,29/07/2022,V007078,9.78,Mark-Douglas Industrial Supplies Limited,510.33,BAC004680
Liberty Leisure Limited,http://statistics.data.gov.uk/id/local-authority/37UD,Leisure,LEIS,Leisure Management,LMAN,Liberty Leisure Limited / Bramcote Leisure Centre,Cleaning Materials,1510,Other Prem,OthPrem,29/07/2022,V007078,43.08,Mark-Douglas Industrial Supplies Limited,510.33,BAC004680
Liberty Leisure Limited,http://statistics.data.gov.uk/id/local-authority/37UD,Leisure,LEIS,Leisure Management,LMAN,Liberty Leisure Limited / Bramcote Leisure Centre,Cleaning Materials,1510,Other Prem,OthPrem,29/07/2022,V007078,38.5,Mark-Douglas Industrial Supplies Limited,510.33,BAC004680
Liberty Leisure Limited,http://statistics.data.gov.uk/id/local-authority/37UD,Leisure,LEIS,Leisure Management,LMAN,Liberty Leisure Limited / Bramcote Leisure Centre,Cleaning Materials,1510,Other Prem,OthPrem,29/07/2022,V007078,28.24,Mark-Douglas Industrial Supplies Limited,510.33,BAC004680
Liberty Leisure Limited,http://statistics.data.gov.uk/id/local-authority/37UD,Leisure,LEIS,Leisure Management,LMAN,Liberty Leisure Limited / Bramcote Leisure Centre,Cleaning Materials,1510,Other Prem,OthPrem,29/07/2022,V007078,7.95,Mark-Douglas Industrial Supplies Limited,510.33,BAC004680
Liberty Leisure Limited,http://statistics.data.gov.uk/id/local-authority/37UD,Leisure,LEIS,Leisure Management,LMAN,Liberty Leisure Limited / Bramcote Leisure Centre,Cleaning Materials,1510,Other Prem,OthPrem,29/07/2022,V007078,12.45,Mark-Douglas Industrial Supplies Limited,510.33,BAC004680
Liberty Leisure Limited,http://statistics.data.gov.uk/id/local-authority/37UD,Leisure,LEIS,Leisure Management,LMAN,Liberty Leisure Limited / Bramcote Leisure Centre,Cleaning Materials,1510,Other Prem,OthPrem,29/07/2022,V007078,39.56,Mark-Douglas Industrial Supplies Limited,510.33,BAC004680
Liberty Leisure Limited,http://statistics.data.gov.uk/id/local-authority/37UD,Leisure,LEIS,Leisure Management,LMAN,Liberty Leisure Limited / Bramcote Leisure Centre,Cleaning Materials,1510,Other Prem,OthPrem,29/07/2022,V007078,79.75,Mark-Douglas Industrial Supplies Limited,510.33,BAC004680
Liberty Leisure Limited,http://statistics.data.gov.uk/id/local-authority/37UD,Culture and Heritage,CULT,Events,LEVE,Liberty Leisure Limited / Events,Basic Pay,10,Employee Direct Costs,Direct,29/07/2022,V007088,800,NinaSmithMusic,2000,BAC004694
Liberty Leisure Limited,http://statistics.data.gov.uk/id/local-authority/37UD,Culture and Heritage,CULT,Events,LEVE,Liberty Leisure Limited / Events,Basic Pay,10,Employee Direct Costs,Direct,29/07/2022,V007088,700,NinaSmithMusic,2000,BAC004694
Liberty Leisure Limited,http://statistics.data.gov.uk/id/local-authority/37UD,Culture and Heritage,CULT,Events,LEVE,Liberty Leisure Limited / Events,Promotion of The Arts,3066,Office Supplies,Offsup,29/07/2022,V007088,500,NinaSmithMusic,2000,BAC004694
Liberty Leisure Limited,http://statistics.data.gov.uk/id/local-authority/37UD,Leisure,LEIS,Leisure Management,LMAN,Liberty Leisure Limited / Bramcote Leisure Centre,Repairs & Maintenance,1000,Central Pot,Central,29/07/2022,V007067,554,Sterilizing Services,1184.4,BAC004679
Liberty Leisure Limited,http://statistics.data.gov.uk/id/local-authority/37UD,Leisure,LEIS,Leisure Management,LMAN,Liberty Leisure Limited / Bramcote Leisure Centre,Legionella Testing,1042,Central Pot,Central,29/07/2022,V007066,433,Sterilizing Services,1184.4,BAC004679
Liberty Leisure Limited,http://statistics.data.gov.uk/id/local-authority/37UD,Leisure,LEIS,Leisure Management,LMAN,Liberty Leisure Limited / Liberty Leisure Development,Professional Fees,730,Indirect Employee Exp Oncosts,Oncosts,29/07/2022,V007055,485,The Copyright Licensing Agency,1168.8,BAC004690
Liberty Leisure Limited,http://statistics.data.gov.uk/id/local-authority/37UD,Leisure,LEIS,Leisure Management,LMAN,Liberty Leisure Limited / Liberty Leisure Development,Professional Fees,730,Indirect Employee Exp Oncosts,Oncosts,29/07/2022,V007056,489,The Copyright Licensing Agency,1168.8,BAC004690
Liberty Leisure Limited,http://statistics.data.gov.uk/id/local-authority/37UD,Leisure,LEIS,Leisure Management,LMAN,Liberty Leisure Limited / Bramcote Leisure Centre,Gas,1320,Utilities,Utility,29/07/2022,V007049,4569.29,TotalEnergies Gas & Power Ltd,5483.15,BAC004684
Liberty Leisure Limited,http://statistics.data.gov.uk/id/local-authority/37UD,Leisure,LEIS,Leisure Management,LMAN,Liberty Leisure Limited / Chilwell Olympia,Repairs & Maintenance,1000,Central Pot,Central,12/08/2022,V007089,2068,Attenborough Industrial Doors,2481.6,BAC004699
Liberty Leisure Limited,http://statistics.data.gov.uk/id/local-authority/37UD,Leisure,LEIS,Leisure Management,LMAN,Liberty Leisure Limited / Kimberley Leisure Centre,Vending Provisions  - Purchase,3204,Catering,Cat,12/08/2022,V007105,132.7,Automatic Retailing northern Ltd,729.41,BAC004721
Liberty Leisure Limited,http://statistics.data.gov.uk/id/local-authority/37UD,Leisure,LEIS,Leisure Management,LMAN,Liberty Leisure Limited / Kimberley Leisure Centre,Vending Provisions  - Purchase,3204,Catering,Cat,12/08/2022,V007105,497.26,Automatic Retailing northern Ltd,729.41,BAC004721
Liberty Leisure Limited,http://statistics.data.gov.uk/id/local-authority/37UD,Leisure,LEIS,Leisure Management,LMAN,Liberty Leisure Limited / Chilwell Olympia,Repairs & Maintenance,1000,Central Pot,Central,12/08/2022,V007095,1160,Chilwell School,17212.07,BAC004713
Liberty Leisure Limited,http://statistics.data.gov.uk/id/local-authority/37UD,Leisure,LEIS,Leisure Management,LMAN,Liberty Leisure Limited / Chilwell Olympia,Electrical Testing,1043,Central Pot,Central,12/08/2022,V007095,231,Chilwell School,17212.07,BAC004713
Liberty Leisure Limited,http://statistics.data.gov.uk/id/local-authority/37UD,Leisure,LEIS,Leisure Management,LMAN,Liberty Leisure Limited / Chilwell Olympia,Electricity,1310,Utilities,Utility,12/08/2022,V007096,2886.95,Chilwell School,17212.07,BAC004713
Liberty Leisure Limited,http://statistics.data.gov.uk/id/local-authority/37UD,Leisure,LEIS,Leisure Management,LMAN,Liberty Leisure Limited / Chilwell Olympia,Electricity,1310,Utilities,Utility,12/08/2022,V007096,2665.6,Chilwell School,17212.07,BAC004713
Liberty Leisure Limited,http://statistics.data.gov.uk/id/local-authority/37UD,Leisure,LEIS,Leisure Management,LMAN,Liberty Leisure Limited / Chilwell Olympia,Electricity,1310,Utilities,Utility,12/08/2022,V007096,2958.33,Chilwell School,17212.07,BAC004713
Liberty Leisure Limited,http://statistics.data.gov.uk/id/local-authority/37UD,Leisure,LEIS,Leisure Management,LMAN,Liberty Leisure Limited / Chilwell Olympia,Solid Fuel,1330,Utilities,Utility,12/08/2022,V007096,938.26,Chilwell School,17212.07,BAC004713
Liberty Leisure Limited,http://statistics.data.gov.uk/id/local-authority/37UD,Leisure,LEIS,Leisure Management,LMAN,Liberty Leisure Limited / Chilwell Olympia,Solid Fuel,1330,Utilities,Utility,12/08/2022,V007096,3875.06,Chilwell School,17212.07,BAC004713
Liberty Leisure Limited,http://statistics.data.gov.uk/id/local-authority/37UD,Leisure,LEIS,Leisure Management,LMAN,Liberty Leisure Limited / Chilwell Olympia,Solid Fuel,1330,Utilities,Utility,12/08/2022,V007096,613.56,Chilwell School,17212.07,BAC004713
Liberty Leisure Limited,http://statistics.data.gov.uk/id/local-authority/37UD,Leisure,LEIS,Leisure Management,LMAN,Liberty Leisure Limited / Chilwell Olympia,Water Charges,1410,Utilities,Utility,12/08/2022,V007096,534.43,Chilwell School,17212.07,BAC004713
Liberty Leisure Limited,http://statistics.data.gov.uk/id/local-authority/37UD,Leisure,LEIS,Leisure Management,LMAN,Liberty Leisure Limited / Chilwell Olympia,Water Charges,1410,Utilities,Utility,12/08/2022,V007096,677.14,Chilwell School,17212.07,BAC004713
Liberty Leisure Limited,http://statistics.data.gov.uk/id/local-authority/37UD,Leisure,LEIS,Leisure Management,LMAN,Liberty Leisure Limited / Chilwell Olympia,Water Charges,1410,Utilities,Utility,12/08/2022,V007096,671.74,Chilwell School,17212.07,BAC004713
Liberty Leisure Limited,http://statistics.data.gov.uk/id/local-authority/37UD,Leisure,LEIS,Leisure Management,LMAN,Liberty Leisure Limited / Kimberley Leisure Centre,Uniforms,3221,Other Supplies & Services,OtherSS,12/08/2022,V007068,387.52,Corporate Trends,534.23,BAC004715
Liberty Leisure Limited,http://statistics.data.gov.uk/id/local-authority/37UD,Leisure,LEIS,Leisure Management,LMAN,Liberty Leisure Limited / Kimberley Leisure Centre,Uniforms,3221,Other Supplies & Services,OtherSS,12/08/2022,V007069,57.68,Corporate Trends,534.23,BAC004715
Liberty Leisure Limited,http://statistics.data.gov.uk/id/local-authority/37UD,Leisure,LEIS,Leisure Management,LMAN,Liberty Leisure Limited / Kimberley Leisure Centre,Chemicals,3152,Other Supplies & Services,OtherSS,12/08/2022,V007102,689.58,Cryoservice Limited,841.54,BAC004702
Liberty Leisure Limited,http://statistics.data.gov.uk/id/local-authority/37UD,Leisure,LEIS,Leisure Management,LMAN,Liberty Leisure Limited / Kimberley Leisure Centre,Chemicals,3152,Other Supplies & Services,OtherSS,12/08/2022,V007074,11.7,Cryoservice Limited,841.54,BAC004702
Liberty Leisure Limited,http://statistics.data.gov.uk/id/local-authority/37UD,Leisure,LEIS,Leisure Management,LMAN,Liberty Leisure Limited / Bramcote Leisure Centre,Legionella Testing,1042,Central Pot,Central,12/08/2022,V007094,748,Gaffey Technical Services,897.6,BAC004703
Liberty Leisure Limited,http://statistics.data.gov.uk/id/local-authority/37UD,Leisure,LEIS,Leisure Management,LMAN,Liberty Leisure Limited / Kimberley Leisure Centre,Repairs & Maintenance,1000,Central Pot,Central,12/08/2022,V007100,715,Geoff Green Joinery,858,BAC004710
Liberty Leisure Limited,http://statistics.data.gov.uk/id/local-authority/37UD,Leisure,LEIS,Leisure Management,LMAN,Liberty Leisure Limited / Liberty Leisure Development,Licences,3613,Other Supplies & Services,OtherSS,12/08/2022,V007083,3250,Gladstone MRM Limited,3900,BAC004728
Liberty Leisure Limited,http://statistics.data.gov.uk/id/local-authority/37UD,Culture and Heritage,CULT,Heritage,LHER,Liberty Leisure Limited / DHL Museum,Retail Sales,8270,Sales,Sales,12/08/2022,V007113,309.16,If Cardboard Creations Ltd,370.99,BAC004722
Liberty Leisure Limited,http://statistics.data.gov.uk/id/local-authority/37UD,Leisure,LEIS,Leisure Management,LMAN,Liberty Leisure Limited / Liberty Leisure Development,Licences,3613,Other Supplies & Services,OtherSS,12/08/2022,V007119,294.36,Innovatise GmbH,294.36,BAC004731
Liberty Leisure Limited,http://statistics.data.gov.uk/id/local-authority/37UD,Leisure,LEIS,Leisure Management,LMAN,Liberty Leisure Limited / Bramcote Leisure Centre,Repairs & Maintenance,1000,Central Pot,Central,12/08/2022,V007091,89.64,J P Carty Limited,303.17,BAC004701
Liberty Leisure Limited,http://statistics.data.gov.uk/id/local-authority/37UD,Leisure,LEIS,Leisure Management,LMAN,Liberty Leisure Limited / Chilwell Olympia,Repairs & Maintenance,1000,Central Pot,Central,12/08/2022,V007112,163,J P Carty Limited,303.17,BAC004701
Liberty Leisure Limited,http://statistics.data.gov.uk/id/local-authority/37UD,Leisure,LEIS,Leisure Management,LMAN,Liberty Leisure Limited / Kimberley Leisure Centre,Repairs & Maintenance,1000,Central Pot,Central,12/08/2022,V007103,800,M A Technical Services Ltd,960,BAC004704
Liberty Leisure Limited,http://statistics.data.gov.uk/id/local-authority/37UD,Leisure,LEIS,Leisure Management,LMAN,Liberty Leisure Limited / Bramcote Leisure Centre,Cleaning Materials,1510,Other Prem,OthPrem,12/08/2022,V007093,115.5,Mark-Douglas Industrial Supplies Limited,575.1,BAC004714
Liberty Leisure Limited,http://statistics.data.gov.uk/id/local-authority/37UD,Leisure,LEIS,Leisure Management,LMAN,Liberty Leisure Limited / Bramcote Leisure Centre,Cleaning Materials,1510,Other Prem,OthPrem,12/08/2022,V007093,9.78,Mark-Douglas Industrial Supplies Limited,575.1,BAC004714
Liberty Leisure Limited,http://statistics.data.gov.uk/id/local-authority/37UD,Leisure,LEIS,Leisure Management,LMAN,Liberty Leisure Limited / Bramcote Leisure Centre,Cleaning Materials,1510,Other Prem,OthPrem,12/08/2022,V007093,27.5,Mark-Douglas Industrial Supplies Limited,575.1,BAC004714
Liberty Leisure Limited,http://statistics.data.gov.uk/id/local-authority/37UD,Leisure,LEIS,Leisure Management,LMAN,Liberty Leisure Limited / Bramcote Leisure Centre,Cleaning Materials,1510,Other Prem,OthPrem,12/08/2022,V007093,28.72,Mark-Douglas Industrial Supplies Limited,575.1,BAC004714
Liberty Leisure Limited,http://statistics.data.gov.uk/id/local-authority/37UD,Leisure,LEIS,Leisure Management,LMAN,Liberty Leisure Limited / Bramcote Leisure Centre,Cleaning Materials,1510,Other Prem,OthPrem,12/08/2022,V007093,203.15,Mark-Douglas Industrial Supplies Limited,575.1,BAC004714
Liberty Leisure Limited,http://statistics.data.gov.uk/id/local-authority/37UD,Leisure,LEIS,Leisure Management,LMAN,Liberty Leisure Limited / Bramcote Leisure Centre,Cleaning Materials,1510,Other Prem,OthPrem,12/08/2022,V007093,79.12,Mark-Douglas Industrial Supplies Limited,575.1,BAC004714
Liberty Leisure Limited,http://statistics.data.gov.uk/id/local-authority/37UD,Leisure,LEIS,Leisure Management,LMAN,Liberty Leisure Limited / Kimberley Leisure Centre,Cleaning Materials,1510,Other Prem,OthPrem,12/08/2022,V007070,15.48,Mark-Douglas Industrial Supplies Limited,575.1,BAC004714
Liberty Leisure Limited,http://statistics.data.gov.uk/id/local-authority/37UD,Culture and Heritage,CULT,Events,LEVE,Liberty Leisure Limited / Events,Promotion of The Arts,3066,Office Supplies,Offsup,12/08/2022,V007117,1350,Sports 4 kidz kidz 4 sport,1350,BAC004725
Liberty Leisure Limited,http://statistics.data.gov.uk/id/local-authority/37UD,Leisure,LEIS,Leisure Management,LMAN,Liberty Leisure Limited / Bramcote Leisure Centre,Legionella Testing,1042,Central Pot,Central,12/08/2022,V007106,237,Sterilizing Services,423.6,BAC004708
Liberty Leisure Limited,http://statistics.data.gov.uk/id/local-authority/37UD,Leisure,LEIS,Leisure Management,LMAN,Liberty Leisure Limited / Bramcote Leisure Centre,Legionella Testing,1042,Central Pot,Central,12/08/2022,V007111,87,Sterilizing Services,423.6,BAC004708
Liberty Leisure Limited,http://statistics.data.gov.uk/id/local-authority/37UD,Leisure,LEIS,Leisure Management,LMAN,Liberty Leisure Limited / Kimberley Leisure Centre,Legionella Testing,1042,Central Pot,Central,12/08/2022,V007075,29,Sterilizing Services,423.6,BAC004708
Liberty Leisure Limited,http://statistics.data.gov.uk/id/local-authority/37UD,Culture and Heritage,CULT,Events,LEVE,Liberty Leisure Limited / DHL Museum,Promotion of The Arts,3066,Office Supplies,Offsup,12/08/2022,V007097,404,Targettip T/A Phase,404,BAC004706
Liberty Leisure Limited,http://statistics.data.gov.uk/id/local-authority/37UD,Culture and Heritage,CULT,Events,LEVE,Liberty Leisure Limited / DHL Museum,Promotion of The Arts,3066,Office Supplies,Offsup,12/08/2022,V007115,703,The Creation Station,1403,BAC004730
Liberty Leisure Limited,http://statistics.data.gov.uk/id/local-authority/37UD,Culture and Heritage,CULT,Events,LEVE,Liberty Leisure Limited / DHL Museum,Promotion of The Arts,3066,Office Supplies,Offsup,12/08/2022,V007115,700,The Creation Station,1403,BAC004730
Liberty Leisure Limited,http://statistics.data.gov.uk/id/local-authority/37UD,Leisure,LEIS,Leisure Management,LMAN,Liberty Leisure Limited / Kimberley Leisure Centre,Electricity,1310,Utilities,Utility,12/08/2022,V007073,4018.81,TotalEnergies Gas & Power Ltd,4822.57,BAC004718
Liberty Leisure Limited,http://statistics.data.gov.uk/id/local-authority/37UD,Culture and Heritage,CULT,Events,LEVE,Liberty Leisure Limited / Events,Promotion of The Arts,3066,Office Supplies,Offsup,26/08/2022,V007148,360,African Ark,920,BAC004743
Liberty Leisure Limited,http://statistics.data.gov.uk/id/local-authority/37UD,Culture and Heritage,CULT,Events,LEVE,Liberty Leisure Limited / Events,Promotion of The Arts,3066,Office Supplies,Offsup,26/08/2022,V007148,200,African Ark,920,BAC004743
Liberty Leisure Limited,http://statistics.data.gov.uk/id/local-authority/37UD,Culture and Heritage,CULT,Events,LEVE,Liberty Leisure Limited / Events,Promotion of The Arts,3066,Office Supplies,Offsup,26/08/2022,V007148,160,African Ark,920,BAC004743
Liberty Leisure Limited,http://statistics.data.gov.uk/id/local-authority/37UD,Culture and Heritage,CULT,Events,LEVE,Liberty Leisure Limited / Events,Promotion of The Arts,3066,Office Supplies,Offsup,26/08/2022,V007148,200,African Ark,920,BAC004743
Liberty Leisure Limited,http://statistics.data.gov.uk/id/local-authority/37UD,Culture and Heritage,CULT,Events,LEVE,Liberty Leisure Limited / DHL Museum,Promotion of The Arts,3066,Office Supplies,Offsup,26/08/2022,V007134,590,Aurora`s Carnival,590,BAC004749
Liberty Leisure Limited,http://statistics.data.gov.uk/id/local-authority/37UD,Culture and Heritage,CULT,Events,LEVE,Liberty Leisure Limited / DHL Museum,Promotion of The Arts,3066,Office Supplies,Offsup,26/08/2022,V007135,1400,Beatfeet Limited,1400,BAC004756
Liberty Leisure Limited,http://statistics.data.gov.uk/id/local-authority/37UD,Culture and Heritage,CULT,Events,LEVE,Liberty Leisure Limited / DHL Museum,Promotion of The Arts,3066,Office Supplies,Offsup,26/08/2022,V007137,720,Central Medical Services,4464,BAC004758
Liberty Leisure Limited,http://statistics.data.gov.uk/id/local-authority/37UD,Culture and Heritage,CULT,Events,LEVE,Liberty Leisure Limited / DHL Museum,Promotion of The Arts,3066,Office Supplies,Offsup,26/08/2022,V007138,1200,Central Medical Services,4464,BAC004758
Liberty Leisure Limited,http://statistics.data.gov.uk/id/local-authority/37UD,Culture and Heritage,CULT,Events,LEVE,Liberty Leisure Limited / DHL Museum,Promotion of The Arts,3066,Office Supplies,Offsup,26/08/2022,V007136,1800,Central Medical Services,4464,BAC004758
Liberty Leisure Limited,http://statistics.data.gov.uk/id/local-authority/37UD,Culture and Heritage,CULT,Events,LEVE,Liberty Leisure Limited / DHL Museum,Promotion of The Arts,3066,Office Supplies,Offsup,26/08/2022,V007162,610,Climb Higher Ltd,610,BAC004753
Liberty Leisure Limited,http://statistics.data.gov.uk/id/local-authority/37UD,Culture and Heritage,CULT,Heritage,LHER,Liberty Leisure Limited / DHL Museum,Purchase of Miscellaneous Items for Sale,3160,Other Supplies & Services,OtherSS,26/08/2022,V007145,126.98,Gardners Books Ltd,291.04,BAC004747
Liberty Leisure Limited,http://statistics.data.gov.uk/id/local-authority/37UD,Culture and Heritage,CULT,Heritage,LHER,Liberty Leisure Limited / DHL Museum,Purchase of Miscellaneous Items for Sale,3160,Other Supplies & Services,OtherSS,26/08/2022,V007145,164.06,Gardners Books Ltd,291.04,BAC004747
Liberty Leisure Limited,http://statistics.data.gov.uk/id/local-authority/37UD,Leisure,LEIS,Leisure Management,LMAN,Liberty Leisure Limited / Bramcote Leisure Centre,Repairs & Maintenance,1000,Central Pot,Central,26/08/2022,V007153,150,Geoff Green Joinery,360,BAC004737
Liberty Leisure Limited,http://statistics.data.gov.uk/id/local-authority/37UD,Leisure,LEIS,Leisure Management,LMAN,Liberty Leisure Limited / Bramcote Leisure Centre,Repairs & Maintenance,1000,Central Pot,Central,26/08/2022,V007143,150,Geoff Green Joinery,360,BAC004737
Liberty Leisure Limited,http://statistics.data.gov.uk/id/local-authority/37UD,Culture and Heritage,CULT,Events,LEVE,Liberty Leisure Limited / Events,Promotion of The Arts,3066,Office Supplies,Offsup,26/08/2022,V007150,845,Highline Adventure Ltd,1014,BAC004764
Liberty Leisure Limited,http://statistics.data.gov.uk/id/local-authority/37UD,Culture and Heritage,CULT,Events,LEVE,Liberty Leisure Limited / DHL Museum,Promotion of The Arts,3066,Office Supplies,Offsup,26/08/2022,V007139,2240,Kniftons Mobile Toilets,4896,BAC004740
Liberty Leisure Limited,http://statistics.data.gov.uk/id/local-authority/37UD,Culture and Heritage,CULT,Events,LEVE,Liberty Leisure Limited / DHL Museum,Promotion of The Arts,3066,Office Supplies,Offsup,26/08/2022,V007146,1840,Kniftons Mobile Toilets,4896,BAC004740
Liberty Leisure Limited,http://statistics.data.gov.uk/id/local-authority/37UD,Culture and Heritage,CULT,Events,LEVE,Liberty Leisure Limited / DHL Museum,Promotion of The Arts,3066,Office Supplies,Offsup,26/08/2022,V007131,277.5,Map Marketing Ltd,333,BAC004765
Liberty Leisure Limited,http://statistics.data.gov.uk/id/local-authority/37UD,Culture and Heritage,CULT,Events,LEVE,Liberty Leisure Limited / DHL Museum,Promotion of The Arts,3066,Office Supplies,Offsup,26/08/2022,V007140,800,Mr G Wright,800,BAC004738
Liberty Leisure Limited,http://statistics.data.gov.uk/id/local-authority/37UD,Culture and Heritage,CULT,Events,LEVE,Liberty Leisure Limited / Events,Basic Pay,10,Employee Direct Costs,Direct,26/08/2022,V007151,503.95,NinaSmithMusic,2103.95,BAC004762
Liberty Leisure Limited,http://statistics.data.gov.uk/id/local-authority/37UD,Culture and Heritage,CULT,Events,LEVE,Liberty Leisure Limited / Events,Basic Pay,10,Employee Direct Costs,Direct,26/08/2022,V007151,1217.32,NinaSmithMusic,2103.95,BAC004762
Liberty Leisure Limited,http://statistics.data.gov.uk/id/local-authority/37UD,Culture and Heritage,CULT,Events,LEVE,Liberty Leisure Limited / Events,Basic Pay,10,Employee Direct Costs,Direct,26/08/2022,V007151,382.68,NinaSmithMusic,2103.95,BAC004762
Liberty Leisure Limited,http://statistics.data.gov.uk/id/local-authority/37UD,Culture and Heritage,CULT,Events,LEVE,Liberty Leisure Limited / DHL Museum,Promotion of The Arts,3066,Office Supplies,Offsup,26/08/2022,V007161,900,Paris Bubbles,900,BAC004755
Liberty Leisure Limited,http://statistics.data.gov.uk/id/local-authority/37UD,Culture and Heritage,CULT,Events,LEVE,Liberty Leisure Limited / DHL Museum,Promotion of The Arts,3066,Office Supplies,Offsup,26/08/2022,V007164,621.5,SA Atkin Services,2939.7,BAC004745
Liberty Leisure Limited,http://statistics.data.gov.uk/id/local-authority/37UD,Culture and Heritage,CULT,Events,LEVE,Liberty Leisure Limited / DHL Museum,Promotion of The Arts,3066,Office Supplies,Offsup,26/08/2022,V007165,1243,SA Atkin Services,2939.7,BAC004745
Liberty Leisure Limited,http://statistics.data.gov.uk/id/local-authority/37UD,Culture and Heritage,CULT,Events,LEVE,Liberty Leisure Limited / DHL Museum,Promotion of The Arts,3066,Office Supplies,Offsup,26/08/2022,V007163,585.25,SA Atkin Services,2939.7,BAC004745
Liberty Leisure Limited,http://statistics.data.gov.uk/id/local-authority/37UD,Culture and Heritage,CULT,Events,LEVE,Liberty Leisure Limited / Events,Promotion of The Arts,3066,Office Supplies,Offsup,26/08/2022,V007149,600,Same Difference Arts Limited,2840,BAC004754
Liberty Leisure Limited,http://statistics.data.gov.uk/id/local-authority/37UD,Culture and Heritage,CULT,Events,LEVE,Liberty Leisure Limited / Events,Promotion of The Arts,3066,Office Supplies,Offsup,26/08/2022,V007149,2240,Same Difference Arts Limited,2840,BAC004754
Liberty Leisure Limited,http://statistics.data.gov.uk/id/local-authority/37UD,Leisure,LEIS,Leisure Management,LMAN,Liberty Leisure Limited / Kimberley Leisure Centre,Repairs & Maintenance,1000,Central Pot,Central,26/08/2022,V007152,644.63,Slater Electrical Serv Limited,2075.32,BAC004734
Liberty Leisure Limited,http://statistics.data.gov.uk/id/local-authority/37UD,Leisure,LEIS,Leisure Management,LMAN,Liberty Leisure Limited / Kimberley Leisure Centre,Repairs & Maintenance,1000,Central Pot,Central,26/08/2022,V007127,431.29,Slater Electrical Serv Limited,2075.32,BAC004734
Liberty Leisure Limited,http://statistics.data.gov.uk/id/local-authority/37UD,Leisure,LEIS,Leisure Management,LMAN,Liberty Leisure Limited / Kimberley Leisure Centre,Repairs & Maintenance,1000,Central Pot,Central,26/08/2022,V007126,653.51,Slater Electrical Serv Limited,2075.32,BAC004734
Liberty Leisure Limited,http://statistics.data.gov.uk/id/local-authority/37UD,Leisure,LEIS,Leisure Management,LMAN,Liberty Leisure Limited / Kimberley Leisure Centre,Repairs & Maintenance,1000,Central Pot,Central,26/08/2022,V007122,2650,Stoney Ceramics,3180,BAC004759
Liberty Leisure Limited,http://statistics.data.gov.uk/id/local-authority/37UD,Culture and Heritage,CULT,Events,LEVE,Liberty Leisure Limited / DHL Museum,Promotion of The Arts,3066,Office Supplies,Offsup,26/08/2022,V007166,880,TMS Ltd,2346,BAC004746
Liberty Leisure Limited,http://statistics.data.gov.uk/id/local-authority/37UD,Culture and Heritage,CULT,Events,LEVE,Liberty Leisure Limited / DHL Museum,Promotion of The Arts,3066,Office Supplies,Offsup,26/08/2022,V007167,1075,TMS Ltd,2346,BAC004746
Liberty Leisure Limited,http://statistics.data.gov.uk/id/local-authority/37UD,Leisure,LEIS,Leisure Management,LMAN,Liberty Leisure Limited / Bramcote Leisure Centre,Electricity,1310,Utilities,Utility,26/08/2022,V007155,5926.23,TotalEnergies Gas & Power Ltd,11913.61,BAC004748
Liberty Leisure Limited,http://statistics.data.gov.uk/id/local-authority/37UD,Leisure,LEIS,Leisure Management,LMAN,Liberty Leisure Limited / Bramcote Leisure Centre,Gas,1320,Utilities,Utility,26/08/2022,V007154,4001.76,TotalEnergies Gas & Power Ltd,11913.61,BAC004748
Liberty Leisure Limited,http://statistics.data.gov.uk/id/local-authority/37UD,Leisure,LEIS,Leisure Management,LMAN,Liberty Leisure Limited / Kimberley Leisure Centre,Chemicals,3152,Other Supplies & Services,OtherSS,26/08/2022,V007124,308.61,Univar Solutions BV,1127.48,BAC004736
Liberty Leisure Limited,http://statistics.data.gov.uk/id/local-authority/37UD,Leisure,LEIS,Leisure Management,LMAN,Liberty Leisure Limited / Kimberley Leisure Centre,Chemicals,3152,Other Supplies & Services,OtherSS,26/08/2022,V007125,630.96,Univar Solutions BV,1127.48,BAC004736
Liberty Leisure Limited,http://statistics.data.gov.uk/id/local-authority/37UD,Leisure,LEIS,Leisure Management,LMAN,Liberty Leisure Limited / Bramcote Leisure Centre,Water Charges,1410,Utilities,Utility,26/08/2022,V007156,7519.84,Waterplus,7519.84,BAC004760
Liberty Leisure Limited,http://statistics.data.gov.uk/id/local-authority/37UD,Leisure,LEIS,Leisure Management,LMAN,Liberty Leisure Limited / Kimberley Leisure Centre,Vending Provisions  - Purchase,3204,Catering,Cat,09/09/2022,V007175,615.77,Automatic Retailing northern Ltd,878.86,BAC004779
Liberty Leisure Limited,http://statistics.data.gov.uk/id/local-authority/37UD,Leisure,LEIS,Leisure Management,LMAN,Liberty Leisure Limited / Kimberley Leisure Centre,Vending Provisions  - Purchase,3204,Catering,Cat,09/09/2022,V007175,139.94,Automatic Retailing northern Ltd,878.86,BAC004779
Liberty Leisure Limited,http://statistics.data.gov.uk/id/local-authority/37UD,Culture and Heritage,CULT,Events,LEVE,Liberty Leisure Limited / Events,Promotion of The Arts,3066,Office Supplies,Offsup,09/09/2022,V007182,2000,Black Diamond Promotions,2000,BAC004767
Liberty Leisure Limited,http://statistics.data.gov.uk/id/local-authority/37UD,Culture and Heritage,CULT,Heritage,LHER,Liberty Leisure Limited / DHL Museum,MDEM Expenditure,3671,Other Supplies & Services,OtherSS,09/09/2022,V007197,750,Culture Syndicates CIC,750,BAC004775
Liberty Leisure Limited,http://statistics.data.gov.uk/id/local-authority/37UD,Leisure,LEIS,Leisure Management,LMAN,Liberty Leisure Limited / Liberty Leisure Development,Licences,3613,Other Supplies & Services,OtherSS,09/09/2022,V007157,6840,Gladstone MRM Limited,36490.8,BAC004785
Liberty Leisure Limited,http://statistics.data.gov.uk/id/local-authority/37UD,Leisure,LEIS,Leisure Management,LMAN,Liberty Leisure Limited / Liberty Leisure Development,Licences,3613,Other Supplies & Services,OtherSS,09/09/2022,V007158,3569,Gladstone MRM Limited,36490.8,BAC004785
Liberty Leisure Limited,http://statistics.data.gov.uk/id/local-authority/37UD,Leisure,LEIS,Leisure Management,LMAN,Liberty Leisure Limited / Liberty Leisure Development,Licences,3613,Other Supplies & Services,OtherSS,09/09/2022,V007158,2600,Gladstone MRM Limited,36490.8,BAC004785
Liberty Leisure Limited,http://statistics.data.gov.uk/id/local-authority/37UD,Leisure,LEIS,Leisure Management,LMAN,Liberty Leisure Limited / Liberty Leisure Development,Licences,3613,Other Supplies & Services,OtherSS,09/09/2022,V007157,5400,Gladstone MRM Limited,36490.8,BAC004785
Liberty Leisure Limited,http://statistics.data.gov.uk/id/local-authority/37UD,Leisure,LEIS,Leisure Management,LMAN,Liberty Leisure Limited / Liberty Leisure Development,Licences,3613,Other Supplies & Services,OtherSS,09/09/2022,V007157,12000,Gladstone MRM Limited,36490.8,BAC004785
Liberty Leisure Limited,http://statistics.data.gov.uk/id/local-authority/37UD,Leisure,LEIS,Leisure Management,LMAN,Liberty Leisure Limited / Liberty Leisure Development,Licences,3613,Other Supplies & Services,OtherSS,09/09/2022,V007198,294.36,Innovatise GmbH,294.36,BAC004787
Liberty Leisure Limited,http://statistics.data.gov.uk/id/local-authority/37UD,Culture and Heritage,CULT,Events,LEVE,Liberty Leisure Limited / DHL Museum,Promotion of The Arts,3066,Office Supplies,Offsup,09/09/2022,V007188,726.83,Showsec International Limited,8856.11,BAC004771
Liberty Leisure Limited,http://statistics.data.gov.uk/id/local-authority/37UD,Culture and Heritage,CULT,Events,LEVE,Liberty Leisure Limited / DHL Museum,Promotion of The Arts,3066,Office Supplies,Offsup,09/09/2022,V007187,767.5,Showsec International Limited,8856.11,BAC004771
Liberty Leisure Limited,http://statistics.data.gov.uk/id/local-authority/37UD,Culture and Heritage,CULT,Events,LEVE,Liberty Leisure Limited / DHL Museum,Promotion of The Arts,3066,Office Supplies,Offsup,09/09/2022,V007184,2837.91,Showsec International Limited,8856.11,BAC004771
Liberty Leisure Limited,http://statistics.data.gov.uk/id/local-authority/37UD,Culture and Heritage,CULT,Events,LEVE,Liberty Leisure Limited / DHL Museum,Promotion of The Arts,3066,Office Supplies,Offsup,09/09/2022,V007185,767.5,Showsec International Limited,8856.11,BAC004771
Liberty Leisure Limited,http://statistics.data.gov.uk/id/local-authority/37UD,Culture and Heritage,CULT,Events,LEVE,Liberty Leisure Limited / DHL Museum,Promotion of The Arts,3066,Office Supplies,Offsup,09/09/2022,V007186,767.5,Showsec International Limited,8856.11,BAC004771
Liberty Leisure Limited,http://statistics.data.gov.uk/id/local-authority/37UD,Culture and Heritage,CULT,Events,LEVE,Liberty Leisure Limited / DHL Museum,Promotion of The Arts,3066,Office Supplies,Offsup,09/09/2022,V007190,411.35,Showsec International Limited,8856.11,BAC004771
Liberty Leisure Limited,http://statistics.data.gov.uk/id/local-authority/37UD,Culture and Heritage,CULT,Events,LEVE,Liberty Leisure Limited / DHL Museum,Promotion of The Arts,3066,Office Supplies,Offsup,09/09/2022,V007192,102.5,Showsec International Limited,8856.11,BAC004771
Liberty Leisure Limited,http://statistics.data.gov.uk/id/local-authority/37UD,Culture and Heritage,CULT,Events,LEVE,Liberty Leisure Limited / DHL Museum,Promotion of The Arts,3066,Office Supplies,Offsup,09/09/2022,V007189,86.1,Showsec International Limited,8856.11,BAC004771
Liberty Leisure Limited,http://statistics.data.gov.uk/id/local-authority/37UD,Culture and Heritage,CULT,Events,LEVE,Liberty Leisure Limited / DHL Museum,Promotion of The Arts,3066,Office Supplies,Offsup,09/09/2022,V007194,411.35,Showsec International Limited,8856.11,BAC004771
Liberty Leisure Limited,http://statistics.data.gov.uk/id/local-authority/37UD,Culture and Heritage,CULT,Events,LEVE,Liberty Leisure Limited / DHL Museum,Promotion of The Arts,3066,Office Supplies,Offsup,09/09/2022,V007191,411.35,Showsec International Limited,8856.11,BAC004771
Liberty Leisure Limited,http://statistics.data.gov.uk/id/local-authority/37UD,Culture and Heritage,CULT,Events,LEVE,Liberty Leisure Limited / DHL Museum,Promotion of The Arts,3066,Office Supplies,Offsup,09/09/2022,V007193,90.2,Showsec International Limited,8856.11,BAC004771
Liberty Leisure Limited,http://statistics.data.gov.uk/id/local-authority/37UD,Culture and Heritage,CULT,Events,LEVE,Liberty Leisure Limited / DHL Museum,Promotion of The Arts,3066,Office Supplies,Offsup,09/09/2022,V007179,2700,Table Football Plus,2700,BAC004786
Liberty Leisure Limited,http://statistics.data.gov.uk/id/local-authority/37UD,Leisure,LEIS,Leisure Management,LMAN,Liberty Leisure Limited / Liberty Leisure Development,Advertising,3412,Advertising,Advert,09/09/2022,V007200,400,Three65 Media Solutions Ltd,400,BAC004780
Liberty Leisure Limited,http://statistics.data.gov.uk/id/local-authority/37UD,Leisure,LEIS,Leisure Management,LMAN,Liberty Leisure Limited / Bramcote Leisure Centre,Course & Examination Fees,720,Indirect Employee Exp Oncosts,Oncosts,23/09/2022,V007257,390,Athleticum Morelli Enterprises Ltd,468,BAC004817
Liberty Leisure Limited,http://statistics.data.gov.uk/id/local-authority/37UD,Culture and Heritage,CULT,Events,LEVE,Liberty Leisure Limited / Events,Promotion of The Arts,3066,Office Supplies,Offsup,23/09/2022,V007229,590,Aurora`s Carnival,590,BAC004818
Liberty Leisure Limited,http://statistics.data.gov.uk/id/local-authority/37UD,Leisure,LEIS,Leisure Management,LMAN,Liberty Leisure Limited / Kimberley Leisure Centre,Vending Provisions  - Purchase,3204,Catering,Cat,23/09/2022,V007240,29.95,Automatic Retailing northern Ltd,505.55,BAC004819
Liberty Leisure Limited,http://statistics.data.gov.uk/id/local-authority/37UD,Leisure,LEIS,Leisure Management,LMAN,Liberty Leisure Limited / Kimberley Leisure Centre,Vending Provisions  - Purchase,3204,Catering,Cat,23/09/2022,V007240,396.33,Automatic Retailing northern Ltd,505.55,BAC004819
Liberty Leisure Limited,http://statistics.data.gov.uk/id/local-authority/37UD,Culture and Heritage,CULT,Events,LEVE,Liberty Leisure Limited / Events,Promotion of The Arts,3066,Office Supplies,Offsup,23/09/2022,V007251,115,Broxtowe Borough Council,529.8,BAC004791
Liberty Leisure Limited,http://statistics.data.gov.uk/id/local-authority/37UD,Culture and Heritage,CULT,Events,LEVE,Liberty Leisure Limited / Events,Promotion of The Arts,3066,Office Supplies,Offsup,23/09/2022,V007249,187.5,Broxtowe Borough Council,529.8,BAC004791
Liberty Leisure Limited,http://statistics.data.gov.uk/id/local-authority/37UD,Culture and Heritage,CULT,Events,LEVE,Liberty Leisure Limited / Events,Promotion of The Arts,3066,Office Supplies,Offsup,23/09/2022,V007248,84,Broxtowe Borough Council,529.8,BAC004791
Liberty Leisure Limited,http://statistics.data.gov.uk/id/local-authority/37UD,Culture and Heritage,CULT,Events,LEVE,Liberty Leisure Limited / Events,Promotion of The Arts,3066,Office Supplies,Offsup,23/09/2022,V007250,55,Broxtowe Borough Council,529.8,BAC004791
Liberty Leisure Limited,http://statistics.data.gov.uk/id/local-authority/37UD,Leisure,LEIS,Leisure Management,LMAN,Liberty Leisure Limited / Liberty Leisure Development,Licences,3613,Other Supplies & Services,OtherSS,23/09/2022,V007226,329,Cascade 3D,780,BAC004822
Liberty Leisure Limited,http://statistics.data.gov.uk/id/local-authority/37UD,Leisure,LEIS,Leisure Management,LMAN,Liberty Leisure Limited / Liberty Leisure Development,Licences,3613,Other Supplies & Services,OtherSS,23/09/2022,V007225,321,Cascade 3D,780,BAC004822
Liberty Leisure Limited,http://statistics.data.gov.uk/id/local-authority/37UD,Leisure,LEIS,Leisure Management,LMAN,Liberty Leisure Limited / Kimberley Leisure Centre,Chemicals,3152,Other Supplies & Services,OtherSS,23/09/2022,V007204,882.15,Cryoservice Limited,1503.15,BAC004792
Liberty Leisure Limited,http://statistics.data.gov.uk/id/local-authority/37UD,Leisure,LEIS,Leisure Management,LMAN,Liberty Leisure Limited / Kimberley Leisure Centre,Chemicals,3152,Other Supplies & Services,OtherSS,23/09/2022,V007237,370.47,Cryoservice Limited,1503.15,BAC004792
Liberty Leisure Limited,http://statistics.data.gov.uk/id/local-authority/37UD,Culture and Heritage,CULT,Events,LEVE,Liberty Leisure Limited / Events,Promotion of The Arts,3066,Office Supplies,Offsup,23/09/2022,V007232,2000,Fuse Fireworks,2400,BAC004830
Liberty Leisure Limited,http://statistics.data.gov.uk/id/local-authority/37UD,Culture and Heritage,CULT,Events,LEVE,Liberty Leisure Limited / Events,Promotion of The Arts,3066,Office Supplies,Offsup,23/09/2022,V007219,740,G H Platts Services,740,BAC004798
Liberty Leisure Limited,http://statistics.data.gov.uk/id/local-authority/37UD,Leisure,LEIS,Leisure Management,LMAN,Liberty Leisure Limited / Bramcote Leisure Centre,Legionella Testing,1042,Central Pot,Central,23/09/2022,V007201,748,Gaffey Technical Services,897.6,BAC004793
Liberty Leisure Limited,http://statistics.data.gov.uk/id/local-authority/37UD,Leisure,LEIS,Leisure Management,LMAN,Liberty Leisure Limited / Bramcote Leisure Centre,Repairs & Maintenance,1000,Central Pot,Central,23/09/2022,V007258,751.56,Heronridge Services (Nottm) Ltd,901.87,BAC004824
Liberty Leisure Limited,http://statistics.data.gov.uk/id/local-authority/37UD,Culture and Heritage,CULT,Events,LEVE,Liberty Leisure Limited / Events,Promotion of The Arts,3066,Office Supplies,Offsup,23/09/2022,V007263,900,Interactive Science Ltd,900,BAC004816
Liberty Leisure Limited,http://statistics.data.gov.uk/id/local-authority/37UD,Leisure,LEIS,Leisure Management,LMAN,Liberty Leisure Limited / Bramcote Leisure Centre,Electrical Testing,1043,Central Pot,Central,23/09/2022,V007255,1000,JIH Electrical Ltd,1200,BAC004814
Liberty Leisure Limited,http://statistics.data.gov.uk/id/local-authority/37UD,Culture and Heritage,CULT,Events,LEVE,Liberty Leisure Limited / Events,Promotion of The Arts,3066,Office Supplies,Offsup,23/09/2022,V007216,235,Kniftons Mobile Toilets,282,BAC004805
Liberty Leisure Limited,http://statistics.data.gov.uk/id/local-authority/37UD,Leisure,LEIS,Leisure Management,LMAN,Liberty Leisure Limited / Kimberley Leisure Centre,Repairs & Maintenance,1000,Central Pot,Central,23/09/2022,V007203,100,M & D Scrap Metals,350,BAC004827
Liberty Leisure Limited,http://statistics.data.gov.uk/id/local-authority/37UD,Leisure,LEIS,Leisure Management,LMAN,Liberty Leisure Limited / Kimberley Leisure Centre,Repairs & Maintenance,1000,Central Pot,Central,23/09/2022,V007203,250,M & D Scrap Metals,350,BAC004827
Liberty Leisure Limited,http://statistics.data.gov.uk/id/local-authority/37UD,Leisure,LEIS,Leisure Management,LMAN,Liberty Leisure Limited / Bramcote Leisure Centre,Repairs & Maintenance,1000,Central Pot,Central,23/09/2022,V007208,210,M A Technical Services Ltd,2379.94,BAC004794
Liberty Leisure Limited,http://statistics.data.gov.uk/id/local-authority/37UD,Leisure,LEIS,Leisure Management,LMAN,Liberty Leisure Limited / Bramcote Leisure Centre,Repairs & Maintenance,1000,Central Pot,Central,23/09/2022,V007210,1143.29,M A Technical Services Ltd,2379.94,BAC004794
Liberty Leisure Limited,http://statistics.data.gov.uk/id/local-authority/37UD,Leisure,LEIS,Leisure Management,LMAN,Liberty Leisure Limited / Bramcote Leisure Centre,Repairs & Maintenance,1000,Central Pot,Central,23/09/2022,V007209,260,M A Technical Services Ltd,2379.94,BAC004794
Liberty Leisure Limited,http://statistics.data.gov.uk/id/local-authority/37UD,Leisure,LEIS,Leisure Management,LMAN,Liberty Leisure Limited / Kimberley Leisure Centre,Repairs & Maintenance,1000,Central Pot,Central,23/09/2022,V007202,370,M A Technical Services Ltd,2379.94,BAC004794
Liberty Leisure Limited,http://statistics.data.gov.uk/id/local-authority/37UD,Leisure,LEIS,Leisure Management,LMAN,Liberty Leisure Limited / Bramcote Leisure Centre,Cleaning Materials,1510,Other Prem,OthPrem,23/09/2022,V007205,34.76,Mark-Douglas Industrial Supplies Limited,735.17,BAC004807
Liberty Leisure Limited,http://statistics.data.gov.uk/id/local-authority/37UD,Leisure,LEIS,Leisure Management,LMAN,Liberty Leisure Limited / Bramcote Leisure Centre,Cleaning Materials,1510,Other Prem,OthPrem,23/09/2022,V007205,11.85,Mark-Douglas Industrial Supplies Limited,735.17,BAC004807
Liberty Leisure Limited,http://statistics.data.gov.uk/id/local-authority/37UD,Leisure,LEIS,Leisure Management,LMAN,Liberty Leisure Limited / Bramcote Leisure Centre,Cleaning Materials,1510,Other Prem,OthPrem,23/09/2022,V007205,11.85,Mark-Douglas Industrial Supplies Limited,735.17,BAC004807
Liberty Leisure Limited,http://statistics.data.gov.uk/id/local-authority/37UD,Leisure,LEIS,Leisure Management,LMAN,Liberty Leisure Limited / Bramcote Leisure Centre,Cleaning Materials,1510,Other Prem,OthPrem,23/09/2022,V007205,17.73,Mark-Douglas Industrial Supplies Limited,735.17,BAC004807
Liberty Leisure Limited,http://statistics.data.gov.uk/id/local-authority/37UD,Leisure,LEIS,Leisure Management,LMAN,Liberty Leisure Limited / Bramcote Leisure Centre,Cleaning Materials,1510,Other Prem,OthPrem,23/09/2022,V007205,19.56,Mark-Douglas Industrial Supplies Limited,735.17,BAC004807
Liberty Leisure Limited,http://statistics.data.gov.uk/id/local-authority/37UD,Leisure,LEIS,Leisure Management,LMAN,Liberty Leisure Limited / Bramcote Leisure Centre,Cleaning Materials,1510,Other Prem,OthPrem,23/09/2022,V007244,28.72,Mark-Douglas Industrial Supplies Limited,735.17,BAC004807
Liberty Leisure Limited,http://statistics.data.gov.uk/id/local-authority/37UD,Leisure,LEIS,Leisure Management,LMAN,Liberty Leisure Limited / Bramcote Leisure Centre,Cleaning Materials,1510,Other Prem,OthPrem,23/09/2022,V007205,43.08,Mark-Douglas Industrial Supplies Limited,735.17,BAC004807
Liberty Leisure Limited,http://statistics.data.gov.uk/id/local-authority/37UD,Leisure,LEIS,Leisure Management,LMAN,Liberty Leisure Limited / Bramcote Leisure Centre,Cleaning Materials,1510,Other Prem,OthPrem,23/09/2022,V007205,42.58,Mark-Douglas Industrial Supplies Limited,735.17,BAC004807
Liberty Leisure Limited,http://statistics.data.gov.uk/id/local-authority/37UD,Leisure,LEIS,Leisure Management,LMAN,Liberty Leisure Limited / Bramcote Leisure Centre,Cleaning Materials,1510,Other Prem,OthPrem,23/09/2022,V007205,2.37,Mark-Douglas Industrial Supplies Limited,735.17,BAC004807
Liberty Leisure Limited,http://statistics.data.gov.uk/id/local-authority/37UD,Leisure,LEIS,Leisure Management,LMAN,Liberty Leisure Limited / Bramcote Leisure Centre,Cleaning Materials,1510,Other Prem,OthPrem,23/09/2022,V007205,38.5,Mark-Douglas Industrial Supplies Limited,735.17,BAC004807
Liberty Leisure Limited,http://statistics.data.gov.uk/id/local-authority/37UD,Leisure,LEIS,Leisure Management,LMAN,Liberty Leisure Limited / Bramcote Leisure Centre,Cleaning Materials,1510,Other Prem,OthPrem,23/09/2022,V007244,77,Mark-Douglas Industrial Supplies Limited,735.17,BAC004807
Liberty Leisure Limited,http://statistics.data.gov.uk/id/local-authority/37UD,Leisure,LEIS,Leisure Management,LMAN,Liberty Leisure Limited / Bramcote Leisure Centre,Cleaning Materials,1510,Other Prem,OthPrem,23/09/2022,V007244,28.24,Mark-Douglas Industrial Supplies Limited,735.17,BAC004807
Liberty Leisure Limited,http://statistics.data.gov.uk/id/local-authority/37UD,Leisure,LEIS,Leisure Management,LMAN,Liberty Leisure Limited / Bramcote Leisure Centre,Cleaning Materials,1510,Other Prem,OthPrem,23/09/2022,V007205,3.16,Mark-Douglas Industrial Supplies Limited,735.17,BAC004807
Liberty Leisure Limited,http://statistics.data.gov.uk/id/local-authority/37UD,Leisure,LEIS,Leisure Management,LMAN,Liberty Leisure Limited / Bramcote Leisure Centre,Cleaning Materials,1510,Other Prem,OthPrem,23/09/2022,V007205,59.34,Mark-Douglas Industrial Supplies Limited,735.17,BAC004807
Liberty Leisure Limited,http://statistics.data.gov.uk/id/local-authority/37UD,Leisure,LEIS,Leisure Management,LMAN,Liberty Leisure Limited / Chilwell Olympia,Cleaning Materials,1510,Other Prem,OthPrem,23/09/2022,V007218,12.36,Mark-Douglas Industrial Supplies Limited,735.17,BAC004807
Liberty Leisure Limited,http://statistics.data.gov.uk/id/local-authority/37UD,Leisure,LEIS,Leisure Management,LMAN,Liberty Leisure Limited / Chilwell Olympia,Cleaning Materials,1510,Other Prem,OthPrem,23/09/2022,V007218,11.74,Mark-Douglas Industrial Supplies Limited,735.17,BAC004807
Liberty Leisure Limited,http://statistics.data.gov.uk/id/local-authority/37UD,Leisure,LEIS,Leisure Management,LMAN,Liberty Leisure Limited / Chilwell Olympia,Cleaning Materials,1510,Other Prem,OthPrem,23/09/2022,V007218,20.64,Mark-Douglas Industrial Supplies Limited,735.17,BAC004807
Liberty Leisure Limited,http://statistics.data.gov.uk/id/local-authority/37UD,Leisure,LEIS,Leisure Management,LMAN,Liberty Leisure Limited / Chilwell Olympia,Cleaning Materials,1510,Other Prem,OthPrem,23/09/2022,V007218,33.6,Mark-Douglas Industrial Supplies Limited,735.17,BAC004807
Liberty Leisure Limited,http://statistics.data.gov.uk/id/local-authority/37UD,Leisure,LEIS,Leisure Management,LMAN,Liberty Leisure Limited / Chilwell Olympia,Cleaning Materials,1510,Other Prem,OthPrem,23/09/2022,V007218,20.8,Mark-Douglas Industrial Supplies Limited,735.17,BAC004807
Liberty Leisure Limited,http://statistics.data.gov.uk/id/local-authority/37UD,Leisure,LEIS,Leisure Management,LMAN,Liberty Leisure Limited / Chilwell Olympia,Cleaning Materials,1510,Other Prem,OthPrem,23/09/2022,V007218,15.2,Mark-Douglas Industrial Supplies Limited,735.17,BAC004807
Liberty Leisure Limited,http://statistics.data.gov.uk/id/local-authority/37UD,Leisure,LEIS,Leisure Management,LMAN,Liberty Leisure Limited / Chilwell Olympia,Cleaning Materials,1510,Other Prem,OthPrem,23/09/2022,V007218,10.02,Mark-Douglas Industrial Supplies Limited,735.17,BAC004807
Liberty Leisure Limited,http://statistics.data.gov.uk/id/local-authority/37UD,Leisure,LEIS,Leisure Management,LMAN,Liberty Leisure Limited / Chilwell Olympia,Cleaning Materials,1510,Other Prem,OthPrem,23/09/2022,V007218,42.36,Mark-Douglas Industrial Supplies Limited,735.17,BAC004807
Liberty Leisure Limited,http://statistics.data.gov.uk/id/local-authority/37UD,Leisure,LEIS,Leisure Management,LMAN,Liberty Leisure Limited / Chilwell Olympia,Cleaning Materials,1510,Other Prem,OthPrem,23/09/2022,V007218,27.18,Mark-Douglas Industrial Supplies Limited,735.17,BAC004807
Liberty Leisure Limited,http://statistics.data.gov.uk/id/local-authority/37UD,Culture and Heritage,CULT,Events,LEVE,Liberty Leisure Limited / Events,Promotion of The Arts,3066,Office Supplies,Offsup,23/09/2022,V007228,30,Nine Hundred Communications Ltd,540.36,BAC004808
Liberty Leisure Limited,http://statistics.data.gov.uk/id/local-authority/37UD,Culture and Heritage,CULT,Events,LEVE,Liberty Leisure Limited / Events,Promotion of The Arts,3066,Office Supplies,Offsup,23/09/2022,V007217,425.3,Nine Hundred Communications Ltd,540.36,BAC004808
Liberty Leisure Limited,http://statistics.data.gov.uk/id/local-authority/37UD,Culture and Heritage,CULT,Events,LEVE,Liberty Leisure Limited / Events,Promotion of The Arts,3066,Office Supplies,Offsup,23/09/2022,V007230,910,Peter Johnson Entertainments Ltd,2937,BAC004806
Liberty Leisure Limited,http://statistics.data.gov.uk/id/local-authority/37UD,Culture and Heritage,CULT,Events,LEVE,Liberty Leisure Limited / Events,Promotion of The Arts,3066,Office Supplies,Offsup,23/09/2022,V007230,1225,Peter Johnson Entertainments Ltd,2937,BAC004806
Liberty Leisure Limited,http://statistics.data.gov.uk/id/local-authority/37UD,Culture and Heritage,CULT,Events,LEVE,Liberty Leisure Limited / Events,Promotion of The Arts,3066,Office Supplies,Offsup,23/09/2022,V007230,375,Peter Johnson Entertainments Ltd,2937,BAC004806
Liberty Leisure Limited,http://statistics.data.gov.uk/id/local-authority/37UD,Culture and Heritage,CULT,Events,LEVE,Liberty Leisure Limited / Events,Promotion of The Arts,3066,Office Supplies,Offsup,23/09/2022,V007236,1819.25,SA Atkin Services,2183.1,BAC004809
Liberty Leisure Limited,http://statistics.data.gov.uk/id/local-authority/37UD,Leisure,LEIS,Leisure Management,LMAN,Liberty Leisure Limited / Kimberley Leisure Centre,Repairs & Maintenance,1000,Central Pot,Central,23/09/2022,V007206,3666,Slater Electrical Serv Limited,14599.2,BAC004799
Liberty Leisure Limited,http://statistics.data.gov.uk/id/local-authority/37UD,Leisure,LEIS,Leisure Management,LMAN,Liberty Leisure Limited / Kimberley Leisure Centre,Legionella Testing,1042,Central Pot,Central,23/09/2022,V007206,500,Slater Electrical Serv Limited,14599.2,BAC004799
Liberty Leisure Limited,http://statistics.data.gov.uk/id/local-authority/37UD,Leisure,LEIS,Leisure Management,LMAN,Liberty Leisure Limited / Kimberley Leisure Centre,Electrical Testing,1043,Central Pot,Central,23/09/2022,V007206,2000,Slater Electrical Serv Limited,14599.2,BAC004799
Liberty Leisure Limited,http://statistics.data.gov.uk/id/local-authority/37UD,Leisure,LEIS,Leisure Management,LMAN,Liberty Leisure Limited / Kimberley Leisure Centre,Electricity,1310,Utilities,Utility,23/09/2022,V007206,500,Slater Electrical Serv Limited,14599.2,BAC004799
Liberty Leisure Limited,http://statistics.data.gov.uk/id/local-authority/37UD,Leisure,LEIS,Leisure Management,LMAN,Liberty Leisure Limited / Kimberley Leisure Centre,Gas,1320,Utilities,Utility,23/09/2022,V007206,3000,Slater Electrical Serv Limited,14599.2,BAC004799
Liberty Leisure Limited,http://statistics.data.gov.uk/id/local-authority/37UD,Leisure,LEIS,Leisure Management,LMAN,Liberty Leisure Limited / Kimberley Leisure Centre,Sewerage Charges,1420,Utilities,Utility,23/09/2022,V007206,500,Slater Electrical Serv Limited,14599.2,BAC004799
Liberty Leisure Limited,http://statistics.data.gov.uk/id/local-authority/37UD,Leisure,LEIS,Leisure Management,LMAN,Liberty Leisure Limited / Kimberley Leisure Centre,Cleaning Materials,1510,Other Prem,OthPrem,23/09/2022,V007206,1000,Slater Electrical Serv Limited,14599.2,BAC004799
Liberty Leisure Limited,http://statistics.data.gov.uk/id/local-authority/37UD,Leisure,LEIS,Leisure Management,LMAN,Liberty Leisure Limited / Kimberley Leisure Centre,Service Contracts,3056,Other Supplies & Services,OtherSS,23/09/2022,V007206,1000,Slater Electrical Serv Limited,14599.2,BAC004799
Liberty Leisure Limited,http://statistics.data.gov.uk/id/local-authority/37UD,Leisure,LEIS,Leisure Management,LMAN,Liberty Leisure Limited / Bramcote Leisure Centre,Repairs & Maintenance,1000,Central Pot,Central,23/09/2022,V007259,685.76,Sterling Hydrotech Limited,1922.88,BAC004801
Liberty Leisure Limited,http://statistics.data.gov.uk/id/local-authority/37UD,Leisure,LEIS,Leisure Management,LMAN,Liberty Leisure Limited / Bramcote Leisure Centre,Repairs & Maintenance,1000,Central Pot,Central,23/09/2022,V007253,159,Sterling Hydrotech Limited,1922.88,BAC004801
Liberty Leisure Limited,http://statistics.data.gov.uk/id/local-authority/37UD,Leisure,LEIS,Leisure Management,LMAN,Liberty Leisure Limited / Bramcote Leisure Centre,Repairs & Maintenance,1000,Central Pot,Central,23/09/2022,V007261,424,Sterling Hydrotech Limited,1922.88,BAC004801
Liberty Leisure Limited,http://statistics.data.gov.uk/id/local-authority/37UD,Leisure,LEIS,Leisure Management,LMAN,Liberty Leisure Limited / Bramcote Leisure Centre,Service Contracts,3056,Other Supplies & Services,OtherSS,23/09/2022,V007260,333.64,Sterling Hydrotech Limited,1922.88,BAC004801
Liberty Leisure Limited,http://statistics.data.gov.uk/id/local-authority/37UD,Leisure,LEIS,Leisure Management,LMAN,Liberty Leisure Limited / Bramcote Leisure Centre,Repairs & Maintenance,1000,Central Pot,Central,23/09/2022,V007224,31.2,Sun Changing Rooms Limited,699.83,BAC004802
Liberty Leisure Limited,http://statistics.data.gov.uk/id/local-authority/37UD,Leisure,LEIS,Leisure Management,LMAN,Liberty Leisure Limited / Bramcote Leisure Centre,Repairs & Maintenance,1000,Central Pot,Central,23/09/2022,V007224,153.72,Sun Changing Rooms Limited,699.83,BAC004802
Liberty Leisure Limited,http://statistics.data.gov.uk/id/local-authority/37UD,Leisure,LEIS,Leisure Management,LMAN,Liberty Leisure Limited / Bramcote Leisure Centre,Repairs & Maintenance,1000,Central Pot,Central,23/09/2022,V007224,9,Sun Changing Rooms Limited,699.83,BAC004802
Liberty Leisure Limited,http://statistics.data.gov.uk/id/local-authority/37UD,Leisure,LEIS,Leisure Management,LMAN,Liberty Leisure Limited / Bramcote Leisure Centre,Repairs & Maintenance,1000,Central Pot,Central,23/09/2022,V007224,90.82,Sun Changing Rooms Limited,699.83,BAC004802
Liberty Leisure Limited,http://statistics.data.gov.uk/id/local-authority/37UD,Leisure,LEIS,Leisure Management,LMAN,Liberty Leisure Limited / Bramcote Leisure Centre,Repairs & Maintenance,1000,Central Pot,Central,23/09/2022,V007224,170,Sun Changing Rooms Limited,699.83,BAC004802
Liberty Leisure Limited,http://statistics.data.gov.uk/id/local-authority/37UD,Leisure,LEIS,Leisure Management,LMAN,Liberty Leisure Limited / Bramcote Leisure Centre,Repairs & Maintenance,1000,Central Pot,Central,23/09/2022,V007224,20,Sun Changing Rooms Limited,699.83,BAC004802
Liberty Leisure Limited,http://statistics.data.gov.uk/id/local-authority/37UD,Leisure,LEIS,Leisure Management,LMAN,Liberty Leisure Limited / Bramcote Leisure Centre,Repairs & Maintenance,1000,Central Pot,Central,23/09/2022,V007224,87.4,Sun Changing Rooms Limited,699.83,BAC004802
Liberty Leisure Limited,http://statistics.data.gov.uk/id/local-authority/37UD,Leisure,LEIS,Leisure Management,LMAN,Liberty Leisure Limited / Bramcote Leisure Centre,Repairs & Maintenance,1000,Central Pot,Central,23/09/2022,V007224,9,Sun Changing Rooms Limited,699.83,BAC004802
Liberty Leisure Limited,http://statistics.data.gov.uk/id/local-authority/37UD,Leisure,LEIS,Leisure Management,LMAN,Liberty Leisure Limited / Bramcote Leisure Centre,Repairs & Maintenance,1000,Central Pot,Central,23/09/2022,V007224,12.06,Sun Changing Rooms Limited,699.83,BAC004802
Liberty Leisure Limited,http://statistics.data.gov.uk/id/local-authority/37UD,Leisure,LEIS,Leisure Management,LMAN,Liberty Leisure Limited / Kimberley Leisure Centre,Sports Equipment - Sale,3004,Equipment,Equip,23/09/2022,V007239,20,Swim England Trading Ltd,712.2,BAC004790
Liberty Leisure Limited,http://statistics.data.gov.uk/id/local-authority/37UD,Leisure,LEIS,Leisure Management,LMAN,Liberty Leisure Limited / Kimberley Leisure Centre,Sports Equipment - Sale,3004,Equipment,Equip,23/09/2022,V007239,20,Swim England Trading Ltd,712.2,BAC004790
Liberty Leisure Limited,http://statistics.data.gov.uk/id/local-authority/37UD,Leisure,LEIS,Leisure Management,LMAN,Liberty Leisure Limited / Kimberley Leisure Centre,Sports Equipment - Sale,3004,Equipment,Equip,23/09/2022,V007239,20,Swim England Trading Ltd,712.2,BAC004790
Liberty Leisure Limited,http://statistics.data.gov.uk/id/local-authority/37UD,Leisure,LEIS,Leisure Management,LMAN,Liberty Leisure Limited / Kimberley Leisure Centre,Sports Equipment - Sale,3004,Equipment,Equip,23/09/2022,V007239,20,Swim England Trading Ltd,712.2,BAC004790
Liberty Leisure Limited,http://statistics.data.gov.uk/id/local-authority/37UD,Leisure,LEIS,Leisure Management,LMAN,Liberty Leisure Limited / Kimberley Leisure Centre,Sports Equipment - Sale,3004,Equipment,Equip,23/09/2022,V007239,20,Swim England Trading Ltd,712.2,BAC004790
Liberty Leisure Limited,http://statistics.data.gov.uk/id/local-authority/37UD,Leisure,LEIS,Leisure Management,LMAN,Liberty Leisure Limited / Kimberley Leisure Centre,Sports Equipment - Sale,3004,Equipment,Equip,23/09/2022,V007239,40,Swim England Trading Ltd,712.2,BAC004790
Liberty Leisure Limited,http://statistics.data.gov.uk/id/local-authority/37UD,Leisure,LEIS,Leisure Management,LMAN,Liberty Leisure Limited / Kimberley Leisure Centre,Sports Equipment - Sale,3004,Equipment,Equip,23/09/2022,V007239,20,Swim England Trading Ltd,712.2,BAC004790
Liberty Leisure Limited,http://statistics.data.gov.uk/id/local-authority/37UD,Leisure,LEIS,Leisure Management,LMAN,Liberty Leisure Limited / Kimberley Leisure Centre,Sports Equipment - Sale,3004,Equipment,Equip,23/09/2022,V007239,40,Swim England Trading Ltd,712.2,BAC004790
Liberty Leisure Limited,http://statistics.data.gov.uk/id/local-authority/37UD,Leisure,LEIS,Leisure Management,LMAN,Liberty Leisure Limited / Kimberley Leisure Centre,Sports Equipment - Sale,3004,Equipment,Equip,23/09/2022,V007239,13.5,Swim England Trading Ltd,712.2,BAC004790
Liberty Leisure Limited,http://statistics.data.gov.uk/id/local-authority/37UD,Leisure,LEIS,Leisure Management,LMAN,Liberty Leisure Limited / Kimberley Leisure Centre,Sports Equipment - Sale,3004,Equipment,Equip,23/09/2022,V007239,40,Swim England Trading Ltd,712.2,BAC004790
Liberty Leisure Limited,http://statistics.data.gov.uk/id/local-authority/37UD,Leisure,LEIS,Leisure Management,LMAN,Liberty Leisure Limited / Kimberley Leisure Centre,Sports Equipment - Sale,3004,Equipment,Equip,23/09/2022,V007239,40,Swim England Trading Ltd,712.2,BAC004790
Liberty Leisure Limited,http://statistics.data.gov.uk/id/local-authority/37UD,Leisure,LEIS,Leisure Management,LMAN,Liberty Leisure Limited / Kimberley Leisure Centre,Sports Equipment - Sale,3004,Equipment,Equip,23/09/2022,V007239,20,Swim England Trading Ltd,712.2,BAC004790
Liberty Leisure Limited,http://statistics.data.gov.uk/id/local-authority/37UD,Leisure,LEIS,Leisure Management,LMAN,Liberty Leisure Limited / Kimberley Leisure Centre,Sports Equipment - Sale,3004,Equipment,Equip,23/09/2022,V007239,40,Swim England Trading Ltd,712.2,BAC004790
Liberty Leisure Limited,http://statistics.data.gov.uk/id/local-authority/37UD,Leisure,LEIS,Leisure Management,LMAN,Liberty Leisure Limited / Kimberley Leisure Centre,Sports Equipment - Sale,3004,Equipment,Equip,23/09/2022,V007239,40,Swim England Trading Ltd,712.2,BAC004790
Liberty Leisure Limited,http://statistics.data.gov.uk/id/local-authority/37UD,Leisure,LEIS,Leisure Management,LMAN,Liberty Leisure Limited / Kimberley Leisure Centre,Sports Equipment - Sale,3004,Equipment,Equip,23/09/2022,V007239,20,Swim England Trading Ltd,712.2,BAC004790
Liberty Leisure Limited,http://statistics.data.gov.uk/id/local-authority/37UD,Leisure,LEIS,Leisure Management,LMAN,Liberty Leisure Limited / Kimberley Leisure Centre,Sports Equipment - Sale,3004,Equipment,Equip,23/09/2022,V007239,60,Swim England Trading Ltd,712.2,BAC004790
Liberty Leisure Limited,http://statistics.data.gov.uk/id/local-authority/37UD,Leisure,LEIS,Leisure Management,LMAN,Liberty Leisure Limited / Kimberley Leisure Centre,Sports Equipment - Sale,3004,Equipment,Equip,23/09/2022,V007239,20,Swim England Trading Ltd,712.2,BAC004790
Liberty Leisure Limited,http://statistics.data.gov.uk/id/local-authority/37UD,Leisure,LEIS,Leisure Management,LMAN,Liberty Leisure Limited / Kimberley Leisure Centre,Sports Equipment - Sale,3004,Equipment,Equip,23/09/2022,V007239,40,Swim England Trading Ltd,712.2,BAC004790
Liberty Leisure Limited,http://statistics.data.gov.uk/id/local-authority/37UD,Leisure,LEIS,Leisure Management,LMAN,Liberty Leisure Limited / Kimberley Leisure Centre,Sports Equipment - Sale,3004,Equipment,Equip,23/09/2022,V007239,40,Swim England Trading Ltd,712.2,BAC004790
Liberty Leisure Limited,http://statistics.data.gov.uk/id/local-authority/37UD,Leisure,LEIS,Leisure Management,LMAN,Liberty Leisure Limited / Kimberley Leisure Centre,Sports Equipment - Sale,3004,Equipment,Equip,23/09/2022,V007239,20,Swim England Trading Ltd,712.2,BAC004790
Liberty Leisure Limited,http://statistics.data.gov.uk/id/local-authority/37UD,Culture and Heritage,CULT,Events,LEVE,Liberty Leisure Limited / Events,Promotion of The Arts,3066,Office Supplies,Offsup,23/09/2022,V007220,220,Targettip T/A Phase,672,BAC004796
Liberty Leisure Limited,http://statistics.data.gov.uk/id/local-authority/37UD,Culture and Heritage,CULT,Events,LEVE,Liberty Leisure Limited / Events,Promotion of The Arts,3066,Office Supplies,Offsup,23/09/2022,V007221,173,Targettip T/A Phase,672,BAC004796
Liberty Leisure Limited,http://statistics.data.gov.uk/id/local-authority/37UD,Leisure,LEIS,Leisure Management,LMAN,Liberty Leisure Limited / Liberty Leisure Development,Advertising,3412,Advertising,Advert,23/09/2022,V007212,167,Targettip T/A Phase,672,BAC004796
